Workbook

Sheet 1. Information Sheet
U1: a | AA1: =IF(OR(F16="", F16="(if applicable)"), F14, F14 & " - " & F16) -> Halton Hills Hydro Inc. - Town of Halton Hills
M12: Version | N12: 1
E14: Utility Name | F14: Halton Hills Hydro Inc.
E16: Service Territory | F16: Town of Halton Hills
E18: Assigned EB Number | F18: EB-2014-0079
E20: Name of Contact and Title | F20: David J. Smelsky, Chief Financial Officer
E22: Phone Number | F22: 519-853-3700 ext 208
E24: Email Address | F24: dsmelsky@haltonhillshydro.com
E26: We are applying for rates effective | F26: 2015-05-01
E28: Rate-Setting Method | F28: Price Cap IR
A30: Please indicate in which Rate Year the Group 1 accounts were last cleared1 | F30: 2014
A32: Please indicate the last Cost of Service Re-Basing Year | F32: 2012
B35: Notes
C37: Pale green cells represent input cells.
C39: Pale blue cells represent drop-down lists. The applicant should select the appropriate item from the drop-down list.
C41: White cells contain fixed values, automatically generated values or formulae.
A44: Note: 1. Rate year of application

Sheet 2. Related Links
A13: ● | B13: Ontario Energy Board's 2015 Electricity Distribution Rates Webpage
A15: ● | B15: An updated version of Chapter 3 of the Filing Requirements for Electricity Distribution Rate Applications for 2015 rates.

Sheet 3. Rate Class Selection
A12: Select the appropriate rate classes as they appear on your most recent Board-Approved Tariff of Rates and Charges, including the MicroFit Class.
A14: How many classes are on your most recent Board-Approved Tariff of Rates and Charges? | J14: 9
A16: Select Your Rate Classes from the Blue Cells below. Please ensure that a rate class is assigned to each shaded cell.
B18: Rate Class Classification | Q18: # of duplicates
A19: 1 | B19: RESIDENTIAL - TIME OF USE | P19: =COUNTIF($B$19:$J$40, B19) -> 1 | Q19: =COUNTIF(P19:P40, 2)/2 -> 0
A20: 2 | B20: GENERAL SERVICE LESS THAN 50 KW | P20: =COUNTIF($B$19:$J$40, B20) -> 1
A21: 3 | B21: GENERAL SERVICE 50 TO 999 KW | P21: 1
A22: 4 | B22: GENERAL SERVICE 1,000 TO 4,999 KW - INTERVAL METERS | P22: 1
A23: 5 | B23: GENERAL SERVICE GREATER THAN 50 kW - WMP | P23: 1
A24: 6 | B24: UNMETERED SCATTERED LOAD | P24: 1
A25: 7 | B25: SENTINEL LIGHTING | P25: 1
A26: 8 | B26: STREET LIGHTING | P26: 1
A27: 9 | B27: microFIT | P27: 1
P28: 0
P29: 0
P30: 0
P31: 0
P32: 0
P33: 0

Sheet 4. Current Tariff Schedule
Z1: 3 | AA1: January | AB1: ≥
AA2: February
AA3: March
AA4: April
AA5: May
AA6: June
AA7: July
AA8: August
AA9: September
AA10: October
AA11: November
B12: For each class, Applicants are required to copy and paste the class descriptions (located directly under the class name) and the description of the applicability of those rates (description is found under the class name and directly under the word "APPLICATION"). By using the drop-down lists located under the column labeled "Rate Description", please select the descriptions of the rates and charges that BEST MATCHES the descriptions on your most recent Board-Approved Tariff of Rates and Charges. If the description is not found in the drop-down list, please enter the description in the green cells under the correct class exactly as it appears on the tariff. Please do not enter more than one "Service Charge" for each class for which a base monthly fixed charge applies. | AA12: December
B21: =IF(ISBLANK('1. Information Sheet'!F14), "Please Choose Distributor Name on Sheet 1", '1. Information Sheet'!F14) -> Halton Hills Hydro Inc.
B22: TARIFF OF RATES AND CHARGES
A24: RESIDENTIAL - TIME OF USE | B24: RESIDENTIAL - TIME OF USE Service Classification
A25: RESIDENTIAL - TIME OF USE
A26: RESIDENTIAL - TIME OF USE | B26: This classification applies to an account taking electricity at 750 volts or less where the electricity is used exclusively in a separate metered living accommodation. Customers shall be residing in single-dwelling units that consist of a detached house or one unit of a semi-detached, duplex, triplex or quadruplex house, with a residential zoning. Separately metered dwellings within a town house complex or apartment building also qualify as residential customers. The customer will be supplied at one service entrance only. Further servicing details are available in the distributor’s Conditions of Service.
A27: RESIDENTIAL - TIME OF USE
A28: RESIDENTIAL - TIME OF USE
A29: RESIDENTIAL - TIME OF USE
A30: RESIDENTIAL - TIME OF USE
A31: RESIDENTIAL - TIME OF USE
A32: RESIDENTIAL - TIME OF USE | B32: APPLICATION
A33: RESIDENTIAL - TIME OF USE
A34: RESIDENTIAL - TIME OF USE | B34: The application of these rates and charges shall be in accordance with the Licence of the Distributor and any Code or Order of the Board, and amendments thereto as approved by the Board, which may be applicable to the administration of this schedule.
A35: RESIDENTIAL - TIME OF USE
A36: RESIDENTIAL - TIME OF USE
A37: RESIDENTIAL - TIME OF USE | B37: No rates and charges for the distribution of electricity and charges to meet the costs of any work or service done or furnished for the purpose of the distribution of electricity shall be made except as permitted by this schedule, unless required by the Distributor’s Licence or a Code or Order of the Board, and amendments thereto as approved by the Board, or as specified herein.
A38: RESIDENTIAL - TIME OF USE
A39: RESIDENTIAL - TIME OF USE
A40: RESIDENTIAL - TIME OF USE
A41: RESIDENTIAL - TIME OF USE | B41: Unless specifically noted, this schedule does not contain any charges for the electricity commodity, be it under the Regulated Price Plan, a contract with a retailer or the wholesale market price, as applicable. In addition, the charges in the MONTHLY RATES AND CHARGES - Regulatory of this schedule do not apply to a customer that is an embedded wholesale market participant.
A42: RESIDENTIAL - TIME OF USE
A43: RESIDENTIAL - TIME OF USE
A44: RESIDENTIAL - TIME OF USE | B44: It should be noted that this schedule does not list any charges, assessments or credits that are required by law to be invoiced by a distributor and that are not subject to Board approval, such as the Debt Retirement Charge, the Global Adjustment, the Ontario Clean Energy Benefit and the HST.
A45: RESIDENTIAL - TIME OF USE
A46: RESIDENTIAL - TIME OF USE
A47: RESIDENTIAL - TIME OF USE
A48: RESIDENTIAL - TIME OF USE | B48: MONTHLY RATES AND CHARGES - Delivery Component (If applicable, Effective Date MUST be included in rate description)
A49: RESIDENTIAL - TIME OF USE | B49: Service Charge | H49: $ | I49: 12.52 | K49: 1_C_MSC
A50: RESIDENTIAL - TIME OF USE | B50: Rate Rider for Disposition of Residual Historical Smart Meter Costs - effective until April 30, 2016 | H50: $ | I50: 1.31 | K50: 1_C_MSC_Rate_Rider_1 | L50: 2016-04-30
A51: RESIDENTIAL - TIME OF USE | B51: Rate Rider for Recovery of Stranded Meter Assets - effective July 1, 2012 - April 30, 2016 | H51: $ | I51: 1.13 | K51: 1_C_MSC_Rate_Rider_2 | L51: 2016-04-30
A52: RESIDENTIAL - TIME OF USE | B52: Rate Rider for Smart Metering Entity Charge - effective until October 31, 2018 | H52: $ | I52: 0.79 | K52: 1_C_SMEC | L52: 2018-10-31
A53: RESIDENTIAL - TIME OF USE | B53: Distribution Volumetric Rate | H53: $/kWh | I53: 0.0118 | K53: 1_C_VC_1
A54: RESIDENTIAL - TIME OF USE | B54: Low Voltage Service Rate | H54: $/kWh | I54: 0.0012 | K54: 1_C_LVrate
A55: RESIDENTIAL - TIME OF USE | B55: Retail Transmission Rate - Network Service Rate | H55: $/kWh | I55: 0.0073 | K55: 1_C_RTSR_Network
A56: RESIDENTIAL - TIME OF USE | B56: Retail Transmission Rate - Line and Transformation Connection Service Rate | H56: $/kWh | I56: 0.0052 | K56: 1_C_RTSR_Connection
A57: RESIDENTIAL - TIME OF USE
A58: RESIDENTIAL - TIME OF USE
A59: RESIDENTIAL - TIME OF USE
A60: RESIDENTIAL - TIME OF USE
A61: RESIDENTIAL - TIME OF USE
A62: RESIDENTIAL - TIME OF USE
A63: RESIDENTIAL - TIME OF USE
A64: RESIDENTIAL - TIME OF USE
A65: RESIDENTIAL - TIME OF USE
A66: RESIDENTIAL - TIME OF USE
A67: RESIDENTIAL - TIME OF USE
A68: RESIDENTIAL - TIME OF USE
A69: RESIDENTIAL - TIME OF USE
A70: RESIDENTIAL - TIME OF USE
A71: RESIDENTIAL - TIME OF USE
A72: RESIDENTIAL - TIME OF USE
A73: RESIDENTIAL - TIME OF USE | B73: Rate Rider for Disposition of Deferral/Varianace Accounts (2014) - effective until April 30, 2015 | H73: $/kWh | I73: -0.0001 | K73: 1_C_VC_Rate_Rider_kWh_1 | L73: 2015-04-30
A74: RESIDENTIAL - TIME OF USE | B74: Rate Rider for Disposition of Global Adjustment Account (2014) - effective until April 30, 2015 Applicable only for Non-RPP Customers | H74: $/kWh | I74: 0.0044 | K74: 1_C_VC_GA_Rate_Rider_kWh_1 | L74: 2015-04-30
A75: RESIDENTIAL - TIME OF USE
A76: RESIDENTIAL - TIME OF USE
A77: RESIDENTIAL - TIME OF USE
A78: RESIDENTIAL - TIME OF USE
A79: RESIDENTIAL - TIME OF USE | B79: MONTHLY RATES AND CHARGES - Regulatory Component
A80: RESIDENTIAL - TIME OF USE
A81: RESIDENTIAL - TIME OF USE | B81: Wholesale Market Service Rate | H81: $/kWh | I81: 0.0044 | K81: 1_C_WMSR
A82: RESIDENTIAL - TIME OF USE | B82: Rural or Remote Electricity Rate Protection Charge (RRRP) | H82: $/kWh | I82: 0.0013 | K82: 1_C_RRPC
A83: RESIDENTIAL - TIME OF USE | B83: Standard Supply Service - Administrative Charge (if applicable) | H83: $ | I83: 0.25 | K83: 1_C_SSS
A84: RESIDENTIAL - TIME OF USE
A87: GENERAL SERVICE LESS THAN 50 KW | B87: GENERAL SERVICE LESS THAN 50 KW Service Classification
A88: GENERAL SERVICE LESS THAN 50 KW
A89: GENERAL SERVICE LESS THAN 50 KW | B89: This classification applies to a non residential account taking electricity at 750 volts or less whose average monthly maximum demand is less than, or is forecast to be less than, 50 kW. Further servicing details are available in the distributor’s Conditions of Service.
A90: GENERAL SERVICE LESS THAN 50 KW
A91: GENERAL SERVICE LESS THAN 50 KW
A92: GENERAL SERVICE LESS THAN 50 KW
A93: GENERAL SERVICE LESS THAN 50 KW
A94: GENERAL SERVICE LESS THAN 50 KW
A95: GENERAL SERVICE LESS THAN 50 KW | B95: APPLICATION
A96: GENERAL SERVICE LESS THAN 50 KW
A97: GENERAL SERVICE LESS THAN 50 KW | B97: The application of these rates and charges shall be in accordance with the Licence of the Distributor and any Code or Order of the Board, and amendments thereto as approved by the Board, which may be applicable to the administration of this schedule.
A98: GENERAL SERVICE LESS THAN 50 KW
A99: GENERAL SERVICE LESS THAN 50 KW
A100: GENERAL SERVICE LESS THAN 50 KW | B100: No rates and charges for the distribution of electricity and charges to meet the costs of any work or service done or furnished for the purpose of the distribution of electricity shall be made except as permitted by this schedule, unless required by the Distributor’s Licence or a Code or Order of the Board, and amendments thereto as approved by the Board, or as specified herein.
A101: GENERAL SERVICE LESS THAN 50 KW
A102: GENERAL SERVICE LESS THAN 50 KW
A103: GENERAL SERVICE LESS THAN 50 KW
A104: GENERAL SERVICE LESS THAN 50 KW | B104: Unless specifically noted, this schedule does not contain any charges for the electricity commodity, be it under the Regulated Price Plan, a contract with a retailer or the wholesale market price, as applicable.In addition, the charges in the MONTHLY RATES AND CHARGES - Regulatory of this schedule do not apply to a customer that is an embedded wholesale market participant.
A105: GENERAL SERVICE LESS THAN 50 KW
A106: GENERAL SERVICE LESS THAN 50 KW
A107: GENERAL SERVICE LESS THAN 50 KW | B107: It should be noted that this schedule does not list any charges, assessments or credits that are required by law to be invoiced by a distributor and that are not subject to Board approval, such as the Debt Retirement Charge, the Global Adjustment, the Ontario Clean Energy Benefit and the HST.
A108: GENERAL SERVICE LESS THAN 50 KW
A109: GENERAL SERVICE LESS THAN 50 KW
A110: GENERAL SERVICE LESS THAN 50 KW
A111: GENERAL SERVICE LESS THAN 50 KW | B111: MONTHLY RATES AND CHARGES - Delivery Component (If applicable, Effective Date MUST be included in rate description)
A112: GENERAL SERVICE LESS THAN 50 KW | B112: Service Charge | H112: $ | I112: 27.08 | K112: 2_C_MSC
A113: GENERAL SERVICE LESS THAN 50 KW | B113: Rate Rider for Disposition of Residual Historical Smart Meter Costs - effective until April 30, 2016 | H113: $ | I113: 1.38 | K113: 2_C_MSC_Rate_Rider_1 | L113: 2016-04-30
A114: GENERAL SERVICE LESS THAN 50 KW | B114: Rate Rider for Recovery of Stranded Meter Assets - effective until April 30, 2016 | H114: $ | I114: 1.46 | K114: 2_C_MSC_Rate_Rider_2 | L114: 2016-04-30
A115: GENERAL SERVICE LESS THAN 50 KW | B115: Rate Rider for Smart Metering Entity Charge - effective until October 31, 2018 | H115: $ | I115: 0.79 | K115: 2_C_SMEC | L115: 2018-10-31
A116: GENERAL SERVICE LESS THAN 50 KW | B116: Distribution Volumetric Rate | H116: $/kWh | I116: 0.0084 | K116: 2_C_VC_1
A117: GENERAL SERVICE LESS THAN 50 KW | B117: Low Voltage Service Rate | H117: $/kWh | I117: 0.0011 | K117: 2_C_LVrate
A118: GENERAL SERVICE LESS THAN 50 KW | B118: Retail Transmission Rate - Network Service Rate | H118: $/kWh | I118: 0.0065 | K118: 2_C_RTSR_Network
A119: GENERAL SERVICE LESS THAN 50 KW | B119: Retail Transmission Rate - Line and Transformation Connection Service Rate | H119: $/kWh | I119: 0.0049 | K119: 2_C_RTSR_Connection
A120: GENERAL SERVICE LESS THAN 50 KW
A121: GENERAL SERVICE LESS THAN 50 KW
A122: GENERAL SERVICE LESS THAN 50 KW
A123: GENERAL SERVICE LESS THAN 50 KW
A124: GENERAL SERVICE LESS THAN 50 KW
A125: GENERAL SERVICE LESS THAN 50 KW
A126: GENERAL SERVICE LESS THAN 50 KW
A127: GENERAL SERVICE LESS THAN 50 KW
A128: GENERAL SERVICE LESS THAN 50 KW
A129: GENERAL SERVICE LESS THAN 50 KW
A130: GENERAL SERVICE LESS THAN 50 KW
A131: GENERAL SERVICE LESS THAN 50 KW
A132: GENERAL SERVICE LESS THAN 50 KW
A133: GENERAL SERVICE LESS THAN 50 KW
A134: GENERAL SERVICE LESS THAN 50 KW
A135: GENERAL SERVICE LESS THAN 50 KW
A136: GENERAL SERVICE LESS THAN 50 KW | B136: Rate Rider for Disposition of Deferral/Varianace Accounts (2014) - effective until April 30, 2015 | H136: $/kWh | I136: -0.0001 | K136: 2_C_VC_Rate_Rider_kWh_1 | L136: 2015-04-30
A137: GENERAL SERVICE LESS THAN 50 KW | B137: Rate Rider for Disposition of Global Adjustment Account (2014) - effective until April 30, 2015 Applicable only for Non-RPP Customers | H137: $/kWh | I137: 0.0044 | K137: 2_C_VC_GA_Rate_Rider_kWh_1 | L137: 2015-04-30
A138: GENERAL SERVICE LESS THAN 50 KW
A139: GENERAL SERVICE LESS THAN 50 KW
A140: GENERAL SERVICE LESS THAN 50 KW
A141: GENERAL SERVICE LESS THAN 50 KW
A142: GENERAL SERVICE LESS THAN 50 KW | B142: MONTHLY RATES AND CHARGES - Regulatory Component
A143: GENERAL SERVICE LESS THAN 50 KW
A144: GENERAL SERVICE LESS THAN 50 KW | B144: Wholesale Market Service Rate | H144: $/kWh | I144: 0.0044 | K144: 2_C_WMSR
A145: GENERAL SERVICE LESS THAN 50 KW | B145: Rural or Remote Electricity Rate Protection Charge (RRRP) | H145: $/kWh | I145: 0.0013 | K145: 2_C_RRPC
A146: GENERAL SERVICE LESS THAN 50 KW | B146: Standard Supply Service - Administrative Charge (if applicable) | H146: $ | I146: 0.25 | K146: 2_C_SSS
A147: GENERAL SERVICE LESS THAN 50 KW
A150: GENERAL SERVICE 50 TO 999 KW | B150: GENERAL SERVICE 50 TO 999 KW Service Classification
A151: GENERAL SERVICE 50 TO 999 KW
A152: GENERAL SERVICE 50 TO 999 KW | B152: This classification applies to a non-residential customer with an average peak demand equal to or greater than 50 kW over the past twelve months, or is forecast to be equal to or greater than 50 kW, but less than 1,000 kW. For a new customer without prior billing history, the peak demand will be based on 90% of the proposed capacity or installed transformer. Further servicing details are available in the distributor’s Conditions of Service.
A153: GENERAL SERVICE 50 TO 999 KW
A154: GENERAL SERVICE 50 TO 999 KW
A155: GENERAL SERVICE 50 TO 999 KW
A156: GENERAL SERVICE 50 TO 999 KW
A157: GENERAL SERVICE 50 TO 999 KW
A158: GENERAL SERVICE 50 TO 999 KW | B158: APPLICATION
A159: GENERAL SERVICE 50 TO 999 KW
A160: GENERAL SERVICE 50 TO 999 KW | B160: The application of these rates and charges shall be in accordance with the Licence of the Distributor and any Code or Order of the Board, and amendments thereto as approved by the Board, which may be applicable to the administration of this schedule.
A161: GENERAL SERVICE 50 TO 999 KW
A162: GENERAL SERVICE 50 TO 999 KW
A163: GENERAL SERVICE 50 TO 999 KW | B163: No rates and charges for the distribution of electricity and charges to meet the costs of any work or service done or furnished for the purpose of the distribution of electricity shall be made except as permitted by this schedule, unless required by the Distributor’s Licence or a Code or Order of the Board, and amendments thereto as approved by the Board, or as specified herein.
A164: GENERAL SERVICE 50 TO 999 KW
A165: GENERAL SERVICE 50 TO 999 KW
A166: GENERAL SERVICE 50 TO 999 KW
A167: GENERAL SERVICE 50 TO 999 KW | B167: Unless specifically noted, this schedule does not contain any charges for the electricity commodity, be it under the Regulated Price Plan, a contract with a retailer or the wholesale market price, as applicable. In addition, the charges in the MONTHLY RATES AND CHARGES - Regulatory of this schedule do not apply to a customer that is an embedded wholesale market participant.
A168: GENERAL SERVICE 50 TO 999 KW
A169: GENERAL SERVICE 50 TO 999 KW
A170: GENERAL SERVICE 50 TO 999 KW | B170: It should be noted that this schedule does not list any charges, assessments or credits that are required by law to be invoiced by a distributor and that are not subject to Board approval, such as the Debt Retirement Charge, the Global Adjustment, the Ontario Clean Energy Benefit and the HST.
A171: GENERAL SERVICE 50 TO 999 KW
A172: GENERAL SERVICE 50 TO 999 KW
A173: GENERAL SERVICE 50 TO 999 KW
A174: GENERAL SERVICE 50 TO 999 KW | B174: MONTHLY RATES AND CHARGES - Delivery Component (If applicable, Effective Date MUST be included in rate description)
A175: GENERAL SERVICE 50 TO 999 KW | B175: Service Charge | H175: $ | I175: 76.28 | K175: 3_C_MSC
A176: GENERAL SERVICE 50 TO 999 KW | B176: Distribution Volumetric Rate | H176: $/kW | I176: 3.4016 | K176: 3_C_VC_1
A177: GENERAL SERVICE 50 TO 999 KW | B177: Low Voltage Service Rate | H177: $/kW | I177: 0.4734 | K177: 3_C_LVrate
A178: GENERAL SERVICE 50 TO 999 KW | B178: Retail Transmission Rate - Network Service Rate | H178: $/kW | I178: 2.8269 | K178: 3_C_RTSR_Network
A179: GENERAL SERVICE 50 TO 999 KW | B179: Retail Transmission Rate - Line and Transformation Connection Service Rate | H179: $/kW | I179: 2.0801 | K179: 3_C_RTSR_Connection
A180: GENERAL SERVICE 50 TO 999 KW
A181: GENERAL SERVICE 50 TO 999 KW
A182: GENERAL SERVICE 50 TO 999 KW
A183: GENERAL SERVICE 50 TO 999 KW
A184: GENERAL SERVICE 50 TO 999 KW
A185: GENERAL SERVICE 50 TO 999 KW
A186: GENERAL SERVICE 50 TO 999 KW
A187: GENERAL SERVICE 50 TO 999 KW
A188: GENERAL SERVICE 50 TO 999 KW
A189: GENERAL SERVICE 50 TO 999 KW
A190: GENERAL SERVICE 50 TO 999 KW
A191: GENERAL SERVICE 50 TO 999 KW
A192: GENERAL SERVICE 50 TO 999 KW
A193: GENERAL SERVICE 50 TO 999 KW
A194: GENERAL SERVICE 50 TO 999 KW
A195: GENERAL SERVICE 50 TO 999 KW
A196: GENERAL SERVICE 50 TO 999 KW
A197: GENERAL SERVICE 50 TO 999 KW
A198: GENERAL SERVICE 50 TO 999 KW
A199: GENERAL SERVICE 50 TO 999 KW | B199: Rate Rider for Disposition of Deferral/Varianace Accounts (2014) - effective until April 30, 2015 | H199: $/kW | I199: -0.0425 | K199: 3_C_VC_Rate_Rider_kW_1 | L199: 2015-04-30
A200: GENERAL SERVICE 50 TO 999 KW | B200: Rate Rider for Disposition of Global Adjustment Account (2014) - effective until April 30, 2015 Applicable only for Non-RPP Customers | H200: $/kW | I200: 1.5594 | K200: 3_C_VC_GA_Rate_Rider_kW_1 | L200: 2015-04-30
A201: GENERAL SERVICE 50 TO 999 KW
A202: GENERAL SERVICE 50 TO 999 KW
A203: GENERAL SERVICE 50 TO 999 KW
A204: GENERAL SERVICE 50 TO 999 KW
A205: GENERAL SERVICE 50 TO 999 KW | B205: MONTHLY RATES AND CHARGES - Regulatory Component
A206: GENERAL SERVICE 50 TO 999 KW
A207: GENERAL SERVICE 50 TO 999 KW | B207: Wholesale Market Service Rate | H207: $/kWh | I207: 0.0044 | K207: 3_C_WMSR
A208: GENERAL SERVICE 50 TO 999 KW | B208: Rural or Remote Electricity Rate Protection Charge (RRRP) | H208: $/kWh | I208: 0.0013 | K208: 3_C_RRPC
A209: GENERAL SERVICE 50 TO 999 KW | B209: Standard Supply Service - Administrative Charge (if applicable) | H209: $ | I209: 0.25 | K209: 3_C_SSS
A210: GENERAL SERVICE 50 TO 999 KW
A213: GENERAL SERVICE 1,000 TO 4,999 KW - INTERVAL METERS | B213: GENERAL SERVICE 1,000 TO 4,999 KW - INTERVAL METERS Service Classification
A214: GENERAL SERVICE 1,000 TO 4,999 KW - INTERVAL METERS
A215: GENERAL SERVICE 1,000 TO 4,999 KW - INTERVAL METERS | B215: This classification applies to a non-residential customer with an average peak demand equal to or greater than 1,000 kW over the past twelve months, or is forecast to be equal to or greater than 1,000 kW, but less than 5,000 kW. For a new customer without prior billing history, the peak demand will be based on 90% of the installed transformer. Further servicing details are available in the distributor’s Conditions of Service.
... 357 more rows

Sheet 4. Hidden (hidden)
M1: Current Rate Classes | N1: Changed to Rate Classes | O1: Values in A that are NOT in B | P1: Values in B that are Not in A | Q1: Count of A | R1: Count of B
M2: RESIDENTIAL - TIME OF USE | N2: RESIDENTIAL - TIME OF USE | Q2: 9 | R2: 9
M3: GENERAL SERVICE LESS THAN 50 KW | N3: GENERAL SERVICE LESS THAN 50 KW
M4: GENERAL SERVICE 50 TO 999 KW | N4: GENERAL SERVICE 50 TO 999 KW
M5: GENERAL SERVICE 1,000 TO 4,999 KW - INTERVAL METERS | N5: GENERAL SERVICE 1,000 TO 4,999 KW - INTERVAL METERS
M6: GENERAL SERVICE GREATER THAN 50 kW - WMP | N6: GENERAL SERVICE GREATER THAN 50 kW - WMP
M7: UNMETERED SCATTERED LOAD | N7: UNMETERED SCATTERED LOAD
M8: SENTINEL LIGHTING | N8: SENTINEL LIGHTING
M9: STREET LIGHTING | N9: STREET LIGHTING
M10: microFIT | N10: microFIT
A24: RESIDENTIAL - TIME OF USE | B24: RESIDENTIAL - TIME OF USE Service Classification
A25: RESIDENTIAL - TIME OF USE
A26: RESIDENTIAL - TIME OF USE | B26: This classification applies to an account taking electricity at 750 volts or less where the electricity is used exclusively in a separate metered living accommodation. Customers shall be residing in single-dwelling units that consist of a detached house or one unit of a semi-detached, duplex, triplex or quadruplex house, with a residential zoning. Separately metered dwellings within a town house complex or apartment building also qualify as residential customers. The customer will be supplied at one service entrance only. Further servicing details are available in the distributor’s Conditions of Service. | F26: This classification applies to an account taking electricity at 750 volts or less where the electricity is used exclusively in a separate metered living accommodation. Customers shall be residing in single-dwelling units that consist of a detached house or one unit of a semi-detached, duplex, triplex or quadruplex house, with a residential zoning. Separately metered dwellings within a town house complex or apartment building also qualify as residential customers. The customer will be supplied at one service entrance only. Further servicing details are available in the distributor’s Conditions of Service.
A27: RESIDENTIAL - TIME OF USE | B27: This classification applies to an account taking electricity at 750 volts or less where the electricity is used exclusively in a separate metered living accommodation. Customers shall be residing in single-dwelling units that consist of a detached house or one unit of a semi-detached, duplex, triplex or quadruplex house, with a residential zoning. Separately metered dwellings within a town house complex or apartment building also qualify as residential customers. The customer will be supplied at one service entrance only. Further servicing details are available in the distributor’s Conditions of Service. | F27: This classification applies to an account taking electricity at 750 volts or less where the electricity is used exclusively in a separate metered living accommodation. Customers shall be residing in single-dwelling units that consist of a detached house or one unit of a semi-detached, duplex, triplex or quadruplex house, with a residential zoning. Separately metered dwellings within a town house complex or apartment building also qualify as residential customers. The customer will be supplied at one service entrance only. Further servicing details are available in the distributor’s Conditions of Service.
A28: RESIDENTIAL - TIME OF USE | B28: This classification applies to an account taking electricity at 750 volts or less where the electricity is used exclusively in a separate metered living accommodation. Customers shall be residing in single-dwelling units that consist of a detached house or one unit of a semi-detached, duplex, triplex or quadruplex house, with a residential zoning. Separately metered dwellings within a town house complex or apartment building also qualify as residential customers. The customer will be supplied at one service entrance only. Further servicing details are available in the distributor’s Conditions of Service. | F28: This classification applies to an account taking electricity at 750 volts or less where the electricity is used exclusively in a separate metered living accommodation. Customers shall be residing in single-dwelling units that consist of a detached house or one unit of a semi-detached, duplex, triplex or quadruplex house, with a residential zoning. Separately metered dwellings within a town house complex or apartment building also qualify as residential customers. The customer will be supplied at one service entrance only. Further servicing details are available in the distributor’s Conditions of Service.
A29: RESIDENTIAL - TIME OF USE | B29: This classification applies to an account taking electricity at 750 volts or less where the electricity is used exclusively in a separate metered living accommodation. Customers shall be residing in single-dwelling units that consist of a detached house or one unit of a semi-detached, duplex, triplex or quadruplex house, with a residential zoning. Separately metered dwellings within a town house complex or apartment building also qualify as residential customers. The customer will be supplied at one service entrance only. Further servicing details are available in the distributor’s Conditions of Service. | F29: This classification applies to an account taking electricity at 750 volts or less where the electricity is used exclusively in a separate metered living accommodation. Customers shall be residing in single-dwelling units that consist of a detached house or one unit of a semi-detached, duplex, triplex or quadruplex house, with a residential zoning. Separately metered dwellings within a town house complex or apartment building also qualify as residential customers. The customer will be supplied at one service entrance only. Further servicing details are available in the distributor’s Conditions of Service.
A30: RESIDENTIAL - TIME OF USE | B30: This classification applies to an account taking electricity at 750 volts or less where the electricity is used exclusively in a separate metered living accommodation. Customers shall be residing in single-dwelling units that consist of a detached house or one unit of a semi-detached, duplex, triplex or quadruplex house, with a residential zoning. Separately metered dwellings within a town house complex or apartment building also qualify as residential customers. The customer will be supplied at one service entrance only. Further servicing details are available in the distributor’s Conditions of Service. | F30: This classification applies to an account taking electricity at 750 volts or less where the electricity is used exclusively in a separate metered living accommodation. Customers shall be residing in single-dwelling units that consist of a detached house or one unit of a semi-detached, duplex, triplex or quadruplex house, with a residential zoning. Separately metered dwellings within a town house complex or apartment building also qualify as residential customers. The customer will be supplied at one service entrance only. Further servicing details are available in the distributor’s Conditions of Service.
A31: RESIDENTIAL - TIME OF USE | B31: This classification applies to an account taking electricity at 750 volts or less where the electricity is used exclusively in a separate metered living accommodation. Customers shall be residing in single-dwelling units that consist of a detached house or one unit of a semi-detached, duplex, triplex or quadruplex house, with a residential zoning. Separately metered dwellings within a town house complex or apartment building also qualify as residential customers. The customer will be supplied at one service entrance only. Further servicing details are available in the distributor’s Conditions of Service. | F31: This classification applies to an account taking electricity at 750 volts or less where the electricity is used exclusively in a separate metered living accommodation. Customers shall be residing in single-dwelling units that consist of a detached house or one unit of a semi-detached, duplex, triplex or quadruplex house, with a residential zoning. Separately metered dwellings within a town house complex or apartment building also qualify as residential customers. The customer will be supplied at one service entrance only. Further servicing details are available in the distributor’s Conditions of Service.
A32: RESIDENTIAL - TIME OF USE | B32: APPLICATION
A33: RESIDENTIAL - TIME OF USE
A34: RESIDENTIAL - TIME OF USE | B34: The application of these rates and charges shall be in accordance with the Licence of the Distributor and any Code or Order of the Board, and amendments thereto as approved by the Board, which may be applicable to the administration of this schedule. | F34: The application of these rates and charges shall be in accordance with the Licence of the Distributor and any Code or Order of the Board, and amendments thereto as approved by the Board, which may be applicable to the administration of this schedule.
A35: RESIDENTIAL - TIME OF USE | B35: The application of these rates and charges shall be in accordance with the Licence of the Distributor and any Code or Order of the Board, and amendments thereto as approved by the Board, which may be applicable to the administration of this schedule. | F35: The application of these rates and charges shall be in accordance with the Licence of the Distributor and any Code or Order of the Board, and amendments thereto as approved by the Board, which may be applicable to the administration of this schedule.
A36: RESIDENTIAL - TIME OF USE | B36: The application of these rates and charges shall be in accordance with the Licence of the Distributor and any Code or Order of the Board, and amendments thereto as approved by the Board, which may be applicable to the administration of this schedule. | F36: The application of these rates and charges shall be in accordance with the Licence of the Distributor and any Code or Order of the Board, and amendments thereto as approved by the Board, which may be applicable to the administration of this schedule.
A37: RESIDENTIAL - TIME OF USE | B37: No rates and charges for the distribution of electricity and charges to meet the costs of any work or service done or furnished for the purpose of the distribution of electricity shall be made except as permitted by this schedule, unless required by the Distributor’s Licence or a Code or Order of the Board, and amendments thereto as approved by the Board, or as specified herein. | F37: No rates and charges for the distribution of electricity and charges to meet the costs of any work or service done or furnished for the purpose of the distribution of electricity shall be made except as permitted by this schedule, unless required by the Distributor’s Licence or a Code or Order of the Board, and amendments thereto as approved by the Board, or as specified herein.
A38: RESIDENTIAL - TIME OF USE | B38: No rates and charges for the distribution of electricity and charges to meet the costs of any work or service done or furnished for the purpose of the distribution of electricity shall be made except as permitted by this schedule, unless required by the Distributor’s Licence or a Code or Order of the Board, and amendments thereto as approved by the Board, or as specified herein. | F38: No rates and charges for the distribution of electricity and charges to meet the costs of any work or service done or furnished for the purpose of the distribution of electricity shall be made except as permitted by this schedule, unless required by the Distributor’s Licence or a Code or Order of the Board, and amendments thereto as approved by the Board, or as specified herein.
A39: RESIDENTIAL - TIME OF USE | B39: No rates and charges for the distribution of electricity and charges to meet the costs of any work or service done or furnished for the purpose of the distribution of electricity shall be made except as permitted by this schedule, unless required by the Distributor’s Licence or a Code or Order of the Board, and amendments thereto as approved by the Board, or as specified herein. | F39: No rates and charges for the distribution of electricity and charges to meet the costs of any work or service done or furnished for the purpose of the distribution of electricity shall be made except as permitted by this schedule, unless required by the Distributor’s Licence or a Code or Order of the Board, and amendments thereto as approved by the Board, or as specified herein.
A40: RESIDENTIAL - TIME OF USE | B40: No rates and charges for the distribution of electricity and charges to meet the costs of any work or service done or furnished for the purpose of the distribution of electricity shall be made except as permitted by this schedule, unless required by the Distributor’s Licence or a Code or Order of the Board, and amendments thereto as approved by the Board, or as specified herein. | F40: No rates and charges for the distribution of electricity and charges to meet the costs of any work or service done or furnished for the purpose of the distribution of electricity shall be made except as permitted by this schedule, unless required by the Distributor’s Licence or a Code or Order of the Board, and amendments thereto as approved by the Board, or as specified herein.
A41: RESIDENTIAL - TIME OF USE | B41: Unless specifically noted, this schedule does not contain any charges for the electricity commodity, be it under the Regulated Price Plan, a contract with a retailer or the wholesale market price, as applicable. In addition, the charges in the MONTHLY RATES AND CHARGES - Regulatory of this schedule do not apply to a customer that is an embedded wholesale market participant. | F41: Unless specifically noted, this schedule does not contain any charges for the electricity commodity, be it under the Regulated Price Plan, a contract with a retailer or the wholesale market price, as applicable.
A42: RESIDENTIAL - TIME OF USE | B42: Unless specifically noted, this schedule does not contain any charges for the electricity commodity, be it under the Regulated Price Plan, a contract with a retailer or the wholesale market price, as applicable. | F42: Unless specifically noted, this schedule does not contain any charges for the electricity commodity, be it under the Regulated Price Plan, a contract with a retailer or the wholesale market price, as applicable.
A43: RESIDENTIAL - TIME OF USE | B43: Unless specifically noted, this schedule does not contain any charges for the electricity commodity, be it under the Regulated Price Plan, a contract with a retailer or the wholesale market price, as applicable. | F43: Unless specifically noted, this schedule does not contain any charges for the electricity commodity, be it under the Regulated Price Plan, a contract with a retailer or the wholesale market price, as applicable.
A44: RESIDENTIAL - TIME OF USE | B44: It should be noted that this schedule does not list any charges, assessments or credits that are required by law to be invoiced by a distributor and that are not subject to Board approval, such as the Debt Retirement Charge, the Global Adjustment, the Ontario Clean Energy Benefit and the HST. | F44: It should be noted that this schedule does not list any charges, assessments or credits that are required by law to be invoiced by a distributor and that are not subject to Board approval, such as the Debt Retirement Charge, the Global Adjustment, the Ontario Clean Energy Benefit and the HST.
A45: RESIDENTIAL - TIME OF USE | B45: It should be noted that this schedule does not list any charges, assessments or credits that are required by law to be invoiced by a distributor and that are not subject to Board approval, such as the Debt Retirement Charge, the Global Adjustment, the Ontario Clean Energy Benefit and the HST. | F45: It should be noted that this schedule does not list any charges, assessments or credits that are required by law to be invoiced by a distributor and that are not subject to Board approval, such as the Debt Retirement Charge, the Global Adjustment, the Ontario Clean Energy Benefit and the HST.
A46: RESIDENTIAL - TIME OF USE | B46: It should be noted that this schedule does not list any charges, assessments or credits that are required by law to be invoiced by a distributor and that are not subject to Board approval, such as the Debt Retirement Charge, the Global Adjustment, the Ontario Clean Energy Benefit and the HST. | F46: It should be noted that this schedule does not list any charges, assessments or credits that are required by law to be invoiced by a distributor and that are not subject to Board approval, such as the Debt Retirement Charge, the Global Adjustment, the Ontario Clean Energy Benefit and the HST.
A47: RESIDENTIAL - TIME OF USE | B47: It should be noted that this schedule does not list any charges, assessments or credits that are required by law to be invoiced by a distributor and that are not subject to Board approval, such as the Debt Retirement Charge, the Global Adjustment, the Ontario Clean Energy Benefit and the HST. | F47: It should be noted that this schedule does not list any charges, assessments or credits that are required by law to be invoiced by a distributor and that are not subject to Board approval, such as the Debt Retirement Charge, the Global Adjustment, the Ontario Clean Energy Benefit and the HST.
A48: RESIDENTIAL - TIME OF USE | B48: MONTHLY RATES AND CHARGES - Delivery Component (If applicable, Effective Date MUST be included in rate description)
A49: RESIDENTIAL - TIME OF USE | B49: Service Charge | H49: $ | I49: 12.52
A50: RESIDENTIAL - TIME OF USE | B50: Rate Rider for Disposition of Residual Historical Smart Meter Costs - effective until April 30, 2016 | H50: $ | I50: 1.31
A51: RESIDENTIAL - TIME OF USE | B51: Rate Rider for Recovery of Stranded Meter Assets - effective July 1, 2012 - April 30, 2016 | H51: $ | I51: 1.13
A52: RESIDENTIAL - TIME OF USE | B52: Rate Rider for Smart Metering Entity Charge - effective until October 31, 2018 | H52: $ | I52: 0.79
A53: RESIDENTIAL - TIME OF USE | B53: Distribution Volumetric Rate | H53: $/kWh | I53: 0.0118
A54: RESIDENTIAL - TIME OF USE | B54: Low Voltage Service Rate | H54: $/kWh | I54: 0.0012
A55: RESIDENTIAL - TIME OF USE | B55: Retail Transmission Rate - Network Service Rate | H55: $/kWh | I55: 0.0073
A56: RESIDENTIAL - TIME OF USE | B56: Retail Transmission Rate - Line and Transformation Connection Service Rate | H56: $/kWh | I56: 0.0052
A57: RESIDENTIAL - TIME OF USE
A58: RESIDENTIAL - TIME OF USE
A59: RESIDENTIAL - TIME OF USE
A60: RESIDENTIAL - TIME OF USE
A61: RESIDENTIAL - TIME OF USE
A62: RESIDENTIAL - TIME OF USE
A63: RESIDENTIAL - TIME OF USE
A64: RESIDENTIAL - TIME OF USE
A65: RESIDENTIAL - TIME OF USE
A66: RESIDENTIAL - TIME OF USE
A67: RESIDENTIAL - TIME OF USE
A68: RESIDENTIAL - TIME OF USE
A69: RESIDENTIAL - TIME OF USE
A70: RESIDENTIAL - TIME OF USE
A71: RESIDENTIAL - TIME OF USE
A72: RESIDENTIAL - TIME OF USE
A73: RESIDENTIAL - TIME OF USE | B73: Rate Rider for Disposition of Deferral/Varianace Accounts (2014) - effective until April 30, 2015 | H73: $/kWh | I73: -0.0001
A74: RESIDENTIAL - TIME OF USE | B74: Rate Rider for Disposition of Global Adjustment Account (2014) - effective until April 30, 2015 Applicable only for Non-RPP Customers | H74: $/kWh | I74: 0.0044
A75: RESIDENTIAL - TIME OF USE
A76: RESIDENTIAL - TIME OF USE
A77: RESIDENTIAL - TIME OF USE
A78: RESIDENTIAL - TIME OF USE
A79: RESIDENTIAL - TIME OF USE | B79: MONTHLY RATES AND CHARGES - Regulatory Component
A80: RESIDENTIAL - TIME OF USE
A81: RESIDENTIAL - TIME OF USE | B81: Wholesale Market Service Rate | H81: $/kWh | I81: 0.0044
A82: RESIDENTIAL - TIME OF USE | B82: Rural or Remote Electricity Rate Protection Charge (RRRP) | H82: $/kWh | I82: 0.0013
A83: RESIDENTIAL - TIME OF USE | B83: Standard Supply Service - Administrative Charge (if applicable) | H83: $ | I83: 0.25
A84: RESIDENTIAL - TIME OF USE
A87: GENERAL SERVICE LESS THAN 50 KW | B87: GENERAL SERVICE LESS THAN 50 KW Service Classification
A88: GENERAL SERVICE LESS THAN 50 KW
A89: GENERAL SERVICE LESS THAN 50 KW | B89: This classification applies to a non residential account taking electricity at 750 volts or less whose average monthly maximum demand is less than, or is forecast to be less than, 50 kW. Further servicing details are available in the distributor’s Conditions of Service. | F89: This classification applies to a non residential account taking electricity at 750 volts or less whose average monthly maximum demand is less than, or is forecast to be less than, 50 kW. Further servicing details are available in the distributor’s Conditions of Service.
A90: GENERAL SERVICE LESS THAN 50 KW | B90: This classification applies to a non residential account taking electricity at 750 volts or less whose average monthly maximum demand is less than, or is forecast to be less than, 50 kW. Further servicing details are available in the distributor’s Conditions of Service. | F90: This classification applies to a non residential account taking electricity at 750 volts or less whose average monthly maximum demand is less than, or is forecast to be less than, 50 kW. Further servicing details are available in the distributor’s Conditions of Service.
A91: GENERAL SERVICE LESS THAN 50 KW | B91: This classification applies to a non residential account taking electricity at 750 volts or less whose average monthly maximum demand is less than, or is forecast to be less than, 50 kW. Further servicing details are available in the distributor’s Conditions of Service. | F91: This classification applies to a non residential account taking electricity at 750 volts or less whose average monthly maximum demand is less than, or is forecast to be less than, 50 kW. Further servicing details are available in the distributor’s Conditions of Service.
A92: GENERAL SERVICE LESS THAN 50 KW | B92: This classification applies to a non residential account taking electricity at 750 volts or less whose average monthly maximum demand is less than, or is forecast to be less than, 50 kW. Further servicing details are available in the distributor’s Conditions of Service. | F92: This classification applies to a non residential account taking electricity at 750 volts or less whose average monthly maximum demand is less than, or is forecast to be less than, 50 kW. Further servicing details are available in the distributor’s Conditions of Service.
A93: GENERAL SERVICE LESS THAN 50 KW | B93: This classification applies to a non residential account taking electricity at 750 volts or less whose average monthly maximum demand is less than, or is forecast to be less than, 50 kW. Further servicing details are available in the distributor’s Conditions of Service. | F93: This classification applies to a non residential account taking electricity at 750 volts or less whose average monthly maximum demand is less than, or is forecast to be less than, 50 kW. Further servicing details are available in the distributor’s Conditions of Service.
A94: GENERAL SERVICE LESS THAN 50 KW | B94: This classification applies to a non residential account taking electricity at 750 volts or less whose average monthly maximum demand is less than, or is forecast to be less than, 50 kW. Further servicing details are available in the distributor’s Conditions of Service. | F94: This classification applies to a non residential account taking electricity at 750 volts or less whose average monthly maximum demand is less than, or is forecast to be less than, 50 kW. Further servicing details are available in the distributor’s Conditions of Service.
A95: GENERAL SERVICE LESS THAN 50 KW | B95: APPLICATION
A96: GENERAL SERVICE LESS THAN 50 KW
A97: GENERAL SERVICE LESS THAN 50 KW | B97: The application of these rates and charges shall be in accordance with the Licence of the Distributor and any Code or Order of the Board, and amendments thereto as approved by the Board, which may be applicable to the administration of this schedule. | F97: The application of these rates and charges shall be in accordance with the Licence of the Distributor and any Code or Order of the Board, and amendments thereto as approved by the Board, which may be applicable to the administration of this schedule.
A98: GENERAL SERVICE LESS THAN 50 KW | B98: The application of these rates and charges shall be in accordance with the Licence of the Distributor and any Code or Order of the Board, and amendments thereto as approved by the Board, which may be applicable to the administration of this schedule. | F98: The application of these rates and charges shall be in accordance with the Licence of the Distributor and any Code or Order of the Board, and amendments thereto as approved by the Board, which may be applicable to the administration of this schedule.
A99: GENERAL SERVICE LESS THAN 50 KW | B99: The application of these rates and charges shall be in accordance with the Licence of the Distributor and any Code or Order of the Board, and amendments thereto as approved by the Board, which may be applicable to the administration of this schedule. | F99: The application of these rates and charges shall be in accordance with the Licence of the Distributor and any Code or Order of the Board, and amendments thereto as approved by the Board, which may be applicable to the administration of this schedule.
A100: GENERAL SERVICE LESS THAN 50 KW | B100: No rates and charges for the distribution of electricity and charges to meet the costs of any work or service done or furnished for the purpose of the distribution of electricity shall be made except as permitted by this schedule, unless required by the Distributor’s Licence or a Code or Order of the Board, and amendments thereto as approved by the Board, or as specified herein. | F100: No rates and charges for the distribution of electricity and charges to meet the costs of any work or service done or furnished for the purpose of the distribution of electricity shall be made except as permitted by this schedule, unless required by the Distributor’s Licence or a Code or Order of the Board, and amendments thereto as approved by the Board, or as specified herein.
A101: GENERAL SERVICE LESS THAN 50 KW | B101: No rates and charges for the distribution of electricity and charges to meet the costs of any work or service done or furnished for the purpose of the distribution of electricity shall be made except as permitted by this schedule, unless required by the Distributor’s Licence or a Code or Order of the Board, and amendments thereto as approved by the Board, or as specified herein. | F101: No rates and charges for the distribution of electricity and charges to meet the costs of any work or service done or furnished for the purpose of the distribution of electricity shall be made except as permitted by this schedule, unless required by the Distributor’s Licence or a Code or Order of the Board, and amendments thereto as approved by the Board, or as specified herein.
A102: GENERAL SERVICE LESS THAN 50 KW | B102: No rates and charges for the distribution of electricity and charges to meet the costs of any work or service done or furnished for the purpose of the distribution of electricity shall be made except as permitted by this schedule, unless required by the Distributor’s Licence or a Code or Order of the Board, and amendments thereto as approved by the Board, or as specified herein. | F102: No rates and charges for the distribution of electricity and charges to meet the costs of any work or service done or furnished for the purpose of the distribution of electricity shall be made except as permitted by this schedule, unless required by the Distributor’s Licence or a Code or Order of the Board, and amendments thereto as approved by the Board, or as specified herein.
A103: GENERAL SERVICE LESS THAN 50 KW | B103: No rates and charges for the distribution of electricity and charges to meet the costs of any work or service done or furnished for the purpose of the distribution of electricity shall be made except as permitted by this schedule, unless required by the Distributor’s Licence or a Code or Order of the Board, and amendments thereto as approved by the Board, or as specified herein. | F103: No rates and charges for the distribution of electricity and charges to meet the costs of any work or service done or furnished for the purpose of the distribution of electricity shall be made except as permitted by this schedule, unless required by the Distributor’s Licence or a Code or Order of the Board, and amendments thereto as approved by the Board, or as specified herein.
A104: GENERAL SERVICE LESS THAN 50 KW | B104: Unless specifically noted, this schedule does not contain any charges for the electricity commodity, be it under the Regulated Price Plan, a contract with a retailer or the wholesale market price, as applicable.In addition, the charges in the MONTHLY RATES AND CHARGES - Regulatory of this schedule do not apply to a customer that is an embedded wholesale market participant. | F104: Unless specifically noted, this schedule does not contain any charges for the electricity commodity, be it under the Regulated Price Plan, a contract with a retailer or the wholesale market price, as applicable.
A105: GENERAL SERVICE LESS THAN 50 KW | B105: Unless specifically noted, this schedule does not contain any charges for the electricity commodity, be it under the Regulated Price Plan, a contract with a retailer or the wholesale market price, as applicable. | F105: Unless specifically noted, this schedule does not contain any charges for the electricity commodity, be it under the Regulated Price Plan, a contract with a retailer or the wholesale market price, as applicable.
A106: GENERAL SERVICE LESS THAN 50 KW | B106: Unless specifically noted, this schedule does not contain any charges for the electricity commodity, be it under the Regulated Price Plan, a contract with a retailer or the wholesale market price, as applicable. | F106: Unless specifically noted, this schedule does not contain any charges for the electricity commodity, be it under the Regulated Price Plan, a contract with a retailer or the wholesale market price, as applicable.
A107: GENERAL SERVICE LESS THAN 50 KW | B107: It should be noted that this schedule does not list any charges, assessments or credits that are required by law to be invoiced by a distributor and that are not subject to Board approval, such as the Debt Retirement Charge, the Global Adjustment, the Ontario Clean Energy Benefit and the HST. | F107: It should be noted that this schedule does not list any charges, assessments or credits that are required by law to be invoiced by a distributor and that are not subject to Board approval, such as the Debt Retirement Charge, the Global Adjustment, the Ontario Clean Energy Benefit and the HST.
A108: GENERAL SERVICE LESS THAN 50 KW | B108: It should be noted that this schedule does not list any charges, assessments or credits that are required by law to be invoiced by a distributor and that are not subject to Board approval, such as the Debt Retirement Charge, the Global Adjustment, the Ontario Clean Energy Benefit and the HST. | F108: It should be noted that this schedule does not list any charges, assessments or credits that are required by law to be invoiced by a distributor and that are not subject to Board approval, such as the Debt Retirement Charge, the Global Adjustment, the Ontario Clean Energy Benefit and the HST.
A109: GENERAL SERVICE LESS THAN 50 KW | B109: It should be noted that this schedule does not list any charges, assessments or credits that are required by law to be invoiced by a distributor and that are not subject to Board approval, such as the Debt Retirement Charge, the Global Adjustment, the Ontario Clean Energy Benefit and the HST. | F109: It should be noted that this schedule does not list any charges, assessments or credits that are required by law to be invoiced by a distributor and that are not subject to Board approval, such as the Debt Retirement Charge, the Global Adjustment, the Ontario Clean Energy Benefit and the HST.
A110: GENERAL SERVICE LESS THAN 50 KW | B110: It should be noted that this schedule does not list any charges, assessments or credits that are required by law to be invoiced by a distributor and that are not subject to Board approval, such as the Debt Retirement Charge, the Global Adjustment, the Ontario Clean Energy Benefit and the HST. | F110: It should be noted that this schedule does not list any charges, assessments or credits that are required by law to be invoiced by a distributor and that are not subject to Board approval, such as the Debt Retirement Charge, the Global Adjustment, the Ontario Clean Energy Benefit and the HST.
A111: GENERAL SERVICE LESS THAN 50 KW | B111: MONTHLY RATES AND CHARGES - Delivery Component (If applicable, Effective Date MUST be included in rate description)
A112: GENERAL SERVICE LESS THAN 50 KW | B112: Service Charge | H112: $ | I112: 27.08
A113: GENERAL SERVICE LESS THAN 50 KW | B113: Rate Rider for Disposition of Residual Historical Smart Meter Costs - effective until April 30, 2016 | H113: $ | I113: 1.38
A114: GENERAL SERVICE LESS THAN 50 KW | B114: Rate Rider for Recovery of Stranded Meter Assets - effective until April 30, 2016 | H114: $ | I114: 1.46
A115: GENERAL SERVICE LESS THAN 50 KW | B115: Rate Rider for Smart Metering Entity Charge - effective until October 31, 2018 | H115: $ | I115: 0.79
A116: GENERAL SERVICE LESS THAN 50 KW | B116: Distribution Volumetric Rate | H116: $/kWh | I116: 0.0084
A117: GENERAL SERVICE LESS THAN 50 KW | B117: Low Voltage Service Rate | H117: $/kWh | I117: 0.0011
A118: GENERAL SERVICE LESS THAN 50 KW | B118: Retail Transmission Rate - Network Service Rate | H118: $/kWh | I118: 0.0065
A119: GENERAL SERVICE LESS THAN 50 KW | B119: Retail Transmission Rate - Line and Transformation Connection Service Rate | H119: $/kWh | I119: 0.0049
A120: GENERAL SERVICE LESS THAN 50 KW
A121: GENERAL SERVICE LESS THAN 50 KW
A122: GENERAL SERVICE LESS THAN 50 KW
A123: GENERAL SERVICE LESS THAN 50 KW
A124: GENERAL SERVICE LESS THAN 50 KW
A125: GENERAL SERVICE LESS THAN 50 KW
A126: GENERAL SERVICE LESS THAN 50 KW
A127: GENERAL SERVICE LESS THAN 50 KW
A128: GENERAL SERVICE LESS THAN 50 KW
A129: GENERAL SERVICE LESS THAN 50 KW
A130: GENERAL SERVICE LESS THAN 50 KW
A131: GENERAL SERVICE LESS THAN 50 KW
A132: GENERAL SERVICE LESS THAN 50 KW
A133: GENERAL SERVICE LESS THAN 50 KW
A134: GENERAL SERVICE LESS THAN 50 KW
A135: GENERAL SERVICE LESS THAN 50 KW
A136: GENERAL SERVICE LESS THAN 50 KW | B136: Rate Rider for Disposition of Deferral/Varianace Accounts (2014) - effective until April 30, 2015 | H136: $/kWh | I136: -0.0001
A137: GENERAL SERVICE LESS THAN 50 KW | B137: Rate Rider for Disposition of Global Adjustment Account (2014) - effective until April 30, 2015 Applicable only for Non-RPP Customers | H137: $/kWh | I137: 0.0044
A138: GENERAL SERVICE LESS THAN 50 KW
A139: GENERAL SERVICE LESS THAN 50 KW
A140: GENERAL SERVICE LESS THAN 50 KW
A141: GENERAL SERVICE LESS THAN 50 KW
A142: GENERAL SERVICE LESS THAN 50 KW | B142: MONTHLY RATES AND CHARGES - Regulatory Component
A143: GENERAL SERVICE LESS THAN 50 KW
A144: GENERAL SERVICE LESS THAN 50 KW | B144: Wholesale Market Service Rate | H144: =H81 -> $/kWh | I144: 0.0044
A145: GENERAL SERVICE LESS THAN 50 KW | B145: Rural or Remote Electricity Rate Protection Charge (RRRP) | H145: $/kWh | I145: 0.0013
A146: GENERAL SERVICE LESS THAN 50 KW | B146: Standard Supply Service - Administrative Charge (if applicable) | H146: $ | I146: 0.25
A147: GENERAL SERVICE LESS THAN 50 KW
A150: GENERAL SERVICE 50 TO 999 KW | B150: GENERAL SERVICE 50 TO 999 KW Service Classification
A151: GENERAL SERVICE 50 TO 999 KW
A152: GENERAL SERVICE 50 TO 999 KW | B152: This classification applies to a non-residential customer with an average peak demand equal to or greater than 50 kW over the past twelve months, or is forecast to be equal to or greater than 50 kW, but less than 1,000 kW. For a new customer without prior billing history, the peak demand will be based on 90% of the proposed capacity or installed transformer. Further servicing details are available in the distributor’s Conditions of Service. | F152: This classification applies to a non-residential customer with an average peak demand equal to or greater than 50 kW over the past twelve months, or is forecast to be equal to or greater than 50 kW, but less than 1,000 kW. For a new customer without prior billing history, the peak demand will be based on 90% of the proposed capacity or installed transformer. Further servicing details are available in the distributor’s Conditions of Service.
A153: GENERAL SERVICE 50 TO 999 KW | B153: This classification applies to a non-residential customer with an average peak demand equal to or greater than 50 kW over the past twelve months, or is forecast to be equal to or greater than 50 kW, but less than 1,000 kW. For a new customer without prior billing history, the peak demand will be based on 90% of the proposed capacity or installed transformer. Further servicing details are available in the distributor’s Conditions of Service. | F153: This classification applies to a non-residential customer with an average peak demand equal to or greater than 50 kW over the past twelve months, or is forecast to be equal to or greater than 50 kW, but less than 1,000 kW. For a new customer without prior billing history, the peak demand will be based on 90% of the proposed capacity or installed transformer. Further servicing details are available in the distributor’s Conditions of Service.
A154: GENERAL SERVICE 50 TO 999 KW | B154: This classification applies to a non-residential customer with an average peak demand equal to or greater than 50 kW over the past twelve months, or is forecast to be equal to or greater than 50 kW, but less than 1,000 kW. For a new customer without prior billing history, the peak demand will be based on 90% of the proposed capacity or installed transformer. Further servicing details are available in the distributor’s Conditions of Service. | F154: This classification applies to a non-residential customer with an average peak demand equal to or greater than 50 kW over the past twelve months, or is forecast to be equal to or greater than 50 kW, but less than 1,000 kW. For a new customer without prior billing history, the peak demand will be based on 90% of the proposed capacity or installed transformer. Further servicing details are available in the distributor’s Conditions of Service.
A155: GENERAL SERVICE 50 TO 999 KW | B155: This classification applies to a non-residential customer with an average peak demand equal to or greater than 50 kW over the past twelve months, or is forecast to be equal to or greater than 50 kW, but less than 1,000 kW. For a new customer without prior billing history, the peak demand will be based on 90% of the proposed capacity or installed transformer. Further servicing details are available in the distributor’s Conditions of Service. | F155: This classification applies to a non-residential customer with an average peak demand equal to or greater than 50 kW over the past twelve months, or is forecast to be equal to or greater than 50 kW, but less than 1,000 kW. For a new customer without prior billing history, the peak demand will be based on 90% of the proposed capacity or installed transformer. Further servicing details are available in the distributor’s Conditions of Service.
A156: GENERAL SERVICE 50 TO 999 KW | B156: This classification applies to a non-residential customer with an average peak demand equal to or greater than 50 kW over the past twelve months, or is forecast to be equal to or greater than 50 kW, but less than 1,000 kW. For a new customer without prior billing history, the peak demand will be based on 90% of the proposed capacity or installed transformer. Further servicing details are available in the distributor’s Conditions of Service. | F156: This classification applies to a non-residential customer with an average peak demand equal to or greater than 50 kW over the past twelve months, or is forecast to be equal to or greater than 50 kW, but less than 1,000 kW. For a new customer without prior billing history, the peak demand will be based on 90% of the proposed capacity or installed transformer. Further servicing details are available in the distributor’s Conditions of Service.
A157: GENERAL SERVICE 50 TO 999 KW | B157: This classification applies to a non-residential customer with an average peak demand equal to or greater than 50 kW over the past twelve months, or is forecast to be equal to or greater than 50 kW, but less than 1,000 kW. For a new customer without prior billing history, the peak demand will be based on 90% of the proposed capacity or installed transformer. Further servicing details are available in the distributor’s Conditions of Service. | F157: This classification applies to a non-residential customer with an average peak demand equal to or greater than 50 kW over the past twelve months, or is forecast to be equal to or greater than 50 kW, but less than 1,000 kW. For a new customer without prior billing history, the peak demand will be based on 90% of the proposed capacity or installed transformer. Further servicing details are available in the distributor’s Conditions of Service.
A158: GENERAL SERVICE 50 TO 999 KW | B158: APPLICATION
A159: GENERAL SERVICE 50 TO 999 KW
A160: GENERAL SERVICE 50 TO 999 KW | B160: The application of these rates and charges shall be in accordance with the Licence of the Distributor and any Code or Order of the Board, and amendments thereto as approved by the Board, which may be applicable to the administration of this schedule. | F160: The application of these rates and charges shall be in accordance with the Licence of the Distributor and any Code or Order of the Board, and amendments thereto as approved by the Board, which may be applicable to the administration of this schedule.
A161: GENERAL SERVICE 50 TO 999 KW | B161: The application of these rates and charges shall be in accordance with the Licence of the Distributor and any Code or Order of the Board, and amendments thereto as approved by the Board, which may be applicable to the administration of this schedule. | F161: The application of these rates and charges shall be in accordance with the Licence of the Distributor and any Code or Order of the Board, and amendments thereto as approved by the Board, which may be applicable to the administration of this schedule.
A162: GENERAL SERVICE 50 TO 999 KW | B162: The application of these rates and charges shall be in accordance with the Licence of the Distributor and any Code or Order of the Board, and amendments thereto as approved by the Board, which may be applicable to the administration of this schedule. | F162: The application of these rates and charges shall be in accordance with the Licence of the Distributor and any Code or Order of the Board, and amendments thereto as approved by the Board, which may be applicable to the administration of this schedule.
A163: GENERAL SERVICE 50 TO 999 KW | B163: No rates and charges for the distribution of electricity and charges to meet the costs of any work or service done or furnished for the purpose of the distribution of electricity shall be made except as permitted by this schedule, unless required by the Distributor’s Licence or a Code or Order of the Board, and amendments thereto as approved by the Board, or as specified herein. | F163: No rates and charges for the distribution of electricity and charges to meet the costs of any work or service done or furnished for the purpose of the distribution of electricity shall be made except as permitted by this schedule, unless required by the Distributor’s Licence or a Code or Order of the Board, and amendments thereto as approved by the Board, or as specified herein.
A164: GENERAL SERVICE 50 TO 999 KW | B164: No rates and charges for the distribution of electricity and charges to meet the costs of any work or service done or furnished for the purpose of the distribution of electricity shall be made except as permitted by this schedule, unless required by the Distributor’s Licence or a Code or Order of the Board, and amendments thereto as approved by the Board, or as specified herein. | F164: No rates and charges for the distribution of electricity and charges to meet the costs of any work or service done or furnished for the purpose of the distribution of electricity shall be made except as permitted by this schedule, unless required by the Distributor’s Licence or a Code or Order of the Board, and amendments thereto as approved by the Board, or as specified herein.
A165: GENERAL SERVICE 50 TO 999 KW | B165: No rates and charges for the distribution of electricity and charges to meet the costs of any work or service done or furnished for the purpose of the distribution of electricity shall be made except as permitted by this schedule, unless required by the Distributor’s Licence or a Code or Order of the Board, and amendments thereto as approved by the Board, or as specified herein. | F165: No rates and charges for the distribution of electricity and charges to meet the costs of any work or service done or furnished for the purpose of the distribution of electricity shall be made except as permitted by this schedule, unless required by the Distributor’s Licence or a Code or Order of the Board, and amendments thereto as approved by the Board, or as specified herein.
A166: GENERAL SERVICE 50 TO 999 KW | B166: No rates and charges for the distribution of electricity and charges to meet the costs of any work or service done or furnished for the purpose of the distribution of electricity shall be made except as permitted by this schedule, unless required by the Distributor’s Licence or a Code or Order of the Board, and amendments thereto as approved by the Board, or as specified herein. | F166: No rates and charges for the distribution of electricity and charges to meet the costs of any work or service done or furnished for the purpose of the distribution of electricity shall be made except as permitted by this schedule, unless required by the Distributor’s Licence or a Code or Order of the Board, and amendments thereto as approved by the Board, or as specified herein.
A167: GENERAL SERVICE 50 TO 999 KW | B167: Unless specifically noted, this schedule does not contain any charges for the electricity commodity, be it under the Regulated Price Plan, a contract with a retailer or the wholesale market price, as applicable. In addition, the charges in the MONTHLY RATES AND CHARGES - Regulatory of this schedule do not apply to a customer that is an embedded wholesale market participant. | F167: Unless specifically noted, this schedule does not contain any charges for the electricity commodity, be it under the Regulated Price Plan, a contract with a retailer or the wholesale market price, as applicable.
A168: GENERAL SERVICE 50 TO 999 KW | B168: Unless specifically noted, this schedule does not contain any charges for the electricity commodity, be it under the Regulated Price Plan, a contract with a retailer or the wholesale market price, as applicable. | F168: Unless specifically noted, this schedule does not contain any charges for the electricity commodity, be it under the Regulated Price Plan, a contract with a retailer or the wholesale market price, as applicable.
A169: GENERAL SERVICE 50 TO 999 KW | B169: Unless specifically noted, this schedule does not contain any charges for the electricity commodity, be it under the Regulated Price Plan, a contract with a retailer or the wholesale market price, as applicable. | F169: Unless specifically noted, this schedule does not contain any charges for the electricity commodity, be it under the Regulated Price Plan, a contract with a retailer or the wholesale market price, as applicable.
A170: GENERAL SERVICE 50 TO 999 KW | B170: It should be noted that this schedule does not list any charges, assessments or credits that are required by law to be invoiced by a distributor and that are not subject to Board approval, such as the Debt Retirement Charge, the Global Adjustment, the Ontario Clean Energy Benefit and the HST. | F170: It should be noted that this schedule does not list any charges, assessments or credits that are required by law to be invoiced by a distributor and that are not subject to Board approval, such as the Debt Retirement Charge, the Global Adjustment, the Ontario Clean Energy Benefit and the HST.
A171: GENERAL SERVICE 50 TO 999 KW | B171: It should be noted that this schedule does not list any charges, assessments or credits that are required by law to be invoiced by a distributor and that are not subject to Board approval, such as the Debt Retirement Charge, the Global Adjustment, the Ontario Clean Energy Benefit and the HST. | F171: It should be noted that this schedule does not list any charges, assessments or credits that are required by law to be invoiced by a distributor and that are not subject to Board approval, such as the Debt Retirement Charge, the Global Adjustment, the Ontario Clean Energy Benefit and the HST.
A172: GENERAL SERVICE 50 TO 999 KW | B172: It should be noted that this schedule does not list any charges, assessments or credits that are required by law to be invoiced by a distributor and that are not subject to Board approval, such as the Debt Retirement Charge, the Global Adjustment, the Ontario Clean Energy Benefit and the HST. | F172: It should be noted that this schedule does not list any charges, assessments or credits that are required by law to be invoiced by a distributor and that are not subject to Board approval, such as the Debt Retirement Charge, the Global Adjustment, the Ontario Clean Energy Benefit and the HST.
A173: GENERAL SERVICE 50 TO 999 KW | B173: It should be noted that this schedule does not list any charges, assessments or credits that are required by law to be invoiced by a distributor and that are not subject to Board approval, such as the Debt Retirement Charge, the Global Adjustment, the Ontario Clean Energy Benefit and the HST. | F173: It should be noted that this schedule does not list any charges, assessments or credits that are required by law to be invoiced by a distributor and that are not subject to Board approval, such as the Debt Retirement Charge, the Global Adjustment, the Ontario Clean Energy Benefit and the HST.
A174: GENERAL SERVICE 50 TO 999 KW | B174: MONTHLY RATES AND CHARGES - Delivery Component (If applicable, Effective Date MUST be included in rate description)
A175: GENERAL SERVICE 50 TO 999 KW | B175: Service Charge | H175: $ | I175: 76.28
A176: GENERAL SERVICE 50 TO 999 KW | B176: Distribution Volumetric Rate | H176: $/kW | I176: 3.4016
A177: GENERAL SERVICE 50 TO 999 KW | B177: Low Voltage Service Rate | H177: $/kW | I177: 0.4734
A178: GENERAL SERVICE 50 TO 999 KW | B178: Retail Transmission Rate - Network Service Rate | H178: $/kW | I178: 2.8269
A179: GENERAL SERVICE 50 TO 999 KW | B179: Retail Transmission Rate - Line and Transformation Connection Service Rate | H179: $/kW | I179: 2.0801
A180: GENERAL SERVICE 50 TO 999 KW
A181: GENERAL SERVICE 50 TO 999 KW
A182: GENERAL SERVICE 50 TO 999 KW
A183: GENERAL SERVICE 50 TO 999 KW
A184: GENERAL SERVICE 50 TO 999 KW
A185: GENERAL SERVICE 50 TO 999 KW
A186: GENERAL SERVICE 50 TO 999 KW
A187: GENERAL SERVICE 50 TO 999 KW
A188: GENERAL SERVICE 50 TO 999 KW
A189: GENERAL SERVICE 50 TO 999 KW
A190: GENERAL SERVICE 50 TO 999 KW
A191: GENERAL SERVICE 50 TO 999 KW
A192: GENERAL SERVICE 50 TO 999 KW
A193: GENERAL SERVICE 50 TO 999 KW
A194: GENERAL SERVICE 50 TO 999 KW
A195: GENERAL SERVICE 50 TO 999 KW
A196: GENERAL SERVICE 50 TO 999 KW
A197: GENERAL SERVICE 50 TO 999 KW
A198: GENERAL SERVICE 50 TO 999 KW
A199: GENERAL SERVICE 50 TO 999 KW | B199: Rate Rider for Disposition of Deferral/Varianace Accounts (2014) - effective until April 30, 2015 | H199: $/kW | I199: -0.0425
A200: GENERAL SERVICE 50 TO 999 KW | B200: Rate Rider for Disposition of Global Adjustment Account (2014) - effective until April 30, 2015 Applicable only for Non-RPP Customers | H200: $/kW | I200: 1.5594
A201: GENERAL SERVICE 50 TO 999 KW
A202: GENERAL SERVICE 50 TO 999 KW
A203: GENERAL SERVICE 50 TO 999 KW
A204: GENERAL SERVICE 50 TO 999 KW
A205: GENERAL SERVICE 50 TO 999 KW | B205: MONTHLY RATES AND CHARGES - Regulatory Component
A206: GENERAL SERVICE 50 TO 999 KW
A207: GENERAL SERVICE 50 TO 999 KW | B207: Wholesale Market Service Rate | H207: $/kWh | I207: 0.0044
A208: GENERAL SERVICE 50 TO 999 KW | B208: Rural or Remote Electricity Rate Protection Charge (RRRP) | H208: $/kWh | I208: 0.0013
A209: GENERAL SERVICE 50 TO 999 KW | B209: Standard Supply Service - Administrative Charge (if applicable) | H209: $ | I209: 0.25
A210: GENERAL SERVICE 50 TO 999 KW
A213: GENERAL SERVICE 1,000 TO 4,999 KW - INTERVAL METERS | B213: GENERAL SERVICE 1,000 TO 4,999 KW - INTERVAL METERS Service Classification
A214: GENERAL SERVICE 1,000 TO 4,999 KW - INTERVAL METERS
A215: GENERAL SERVICE 1,000 TO 4,999 KW - INTERVAL METERS | B215: This classification applies to a non-residential customer with an average peak demand equal to or greater than 1,000 kW over the past twelve months, or is forecast to be equal to or greater than 1,000 kW, but less than 5,000 kW. For a new customer without prior billing history, the peak demand will be based on 90% of the installed transformer. Further servicing details are available in the distributor’s Conditions of Service. | F215: This classification applies to a non-residential customer with an average peak demand equal to or greater than 1,000 kW over the past twelve months, or is forecast to be equal to or greater than 1,000 kW, but less than 5,000 kW. For a new customer without prior billing history, the peak demand will be based on 90% of the installed transformer. Further servicing details are available in the distributor’s Conditions of Service.
A216: GENERAL SERVICE 1,000 TO 4,999 KW - INTERVAL METERS | B216: This classification applies to a non-residential customer with an average peak demand equal to or greater than 1,000 kW over the past twelve months, or is forecast to be equal to or greater than 1,000 kW, but less than 5,000 kW. For a new customer without prior billing history, the peak demand will be based on 90% of the installed transformer. Further servicing details are available in the distributor’s Conditions of Service. | F216: This classification applies to a non-residential customer with an average peak demand equal to or greater than 1,000 kW over the past twelve months, or is forecast to be equal to or greater than 1,000 kW, but less than 5,000 kW. For a new customer without prior billing history, the peak demand will be based on 90% of the installed transformer. Further servicing details are available in the distributor’s Conditions of Service.
A217: GENERAL SERVICE 1,000 TO 4,999 KW - INTERVAL METERS | B217: This classification applies to a non-residential customer with an average peak demand equal to or greater than 1,000 kW over the past twelve months, or is forecast to be equal to or greater than 1,000 kW, but less than 5,000 kW. For a new customer without prior billing history, the peak demand will be based on 90% of the installed transformer. Further servicing details are available in the distributor’s Conditions of Service. | F217: This classification applies to a non-residential customer with an average peak demand equal to or greater than 1,000 kW over the past twelve months, or is forecast to be equal to or greater than 1,000 kW, but less than 5,000 kW. For a new customer without prior billing history, the peak demand will be based on 90% of the installed transformer. Further servicing details are available in the distributor’s Conditions of Service.
A218: GENERAL SERVICE 1,000 TO 4,999 KW - INTERVAL METERS | B218: This classification applies to a non-residential customer with an average peak demand equal to or greater than 1,000 kW over the past twelve months, or is forecast to be equal to or greater than 1,000 kW, but less than 5,000 kW. For a new customer without prior billing history, the peak demand will be based on 90% of the installed transformer. Further servicing details are available in the distributor’s Conditions of Service. | F218: This classification applies to a non-residential customer with an average peak demand equal to or greater than 1,000 kW over the past twelve months, or is forecast to be equal to or greater than 1,000 kW, but less than 5,000 kW. For a new customer without prior billing history, the peak demand will be based on 90% of the installed transformer. Further servicing details are available in the distributor’s Conditions of Service.
A219: GENERAL SERVICE 1,000 TO 4,999 KW - INTERVAL METERS | B219: This classification applies to a non-residential customer with an average peak demand equal to or greater than 1,000 kW over the past twelve months, or is forecast to be equal to or greater than 1,000 kW, but less than 5,000 kW. For a new customer without prior billing history, the peak demand will be based on 90% of the installed transformer. Further servicing details are available in the distributor’s Conditions of Service. | F219: This classification applies to a non-residential customer with an average peak demand equal to or greater than 1,000 kW over the past twelve months, or is forecast to be equal to or greater than 1,000 kW, but less than 5,000 kW. For a new customer without prior billing history, the peak demand will be based on 90% of the installed transformer. Further servicing details are available in the distributor’s Conditions of Service.
... 292 more rows

Sheet 5. 2014 Continuity Schedule
C15: Please complete the following continuity schedule for the following Deferral / Variance Accounts. Enter information into green cells only. If you have received approval to dispose of balances from prior years, the starting point for entries in the 2015 DVA schedule below will be the balance sheet date as per your G/L for which you received approval. For example, if in the 2014 EDR process (CoS or IRM) you received approval for the December 31, 2012 balances, the starting point for your entries below should be the 2011 year. This will allow for the correct starting point for the 2012 opening balance columns for both principal and interest. Please refer to the footnotes for further instructions.
E19: 2010 | O19: 2011 | Y19: 2012 | AL19: 2013 | AY19: 2014 | BC19: Projected Interest on Dec-31-13 Balances | BF19: 2.1.7 RRR
C20: Account Descriptions | D20: Account Number | E20: Opening Principal Amounts as of Jan-1-10 | F20: Transactions Debit / (Credit) during 2010 excluding interest and adjustments 2 | G20: Board-Approved Disposition during 2010 | H20: Adjustments during 2010 - other 1 | I20: Closing Principal Balance as of Dec-31-10 | J20: Opening Interest Amounts as of Jan-1-10 | K20: Interest Jan-1 to Dec-31-10 | L20: Board-Approved Disposition during 2010 | M20: Adjustments during 2010 - other 2 | N20: Closing Interest Amounts as of Dec-31-10 | O20: Opening Principal Amounts as of Jan-1-11 | P20: Transactions Debit / (Credit) during 2011 excluding interest and adjustments 2 | Q20: Board-Approved Disposition during 2011 | R20: Adjustments during 2011 - other 1 | S20: Closing Principal Balance as of Dec-31-11 | T20: Opening Interest Amounts as of Jan-1-11 | U20: Interest Jan-1 to Dec-31-11 | V20: Board-Approved Disposition during 2011 | W20: Adjustments during 2011 - other 2 | X20: Closing Interest Amounts as of Dec-31-11 | Y20: Opening Principal Amounts as of Jan-1-12 | Z20: Transactions Debit / (Credit) during 2012 excluding interest and adjustments 2 | AA20: Board-Approved Disposition during 2012 | AB20: Other 1 Adjustments during Q1 2012 | AC20: Other 1 Adjustments during Q2 2012 | AD20: Other 1 Adjustments during Q3 2012 | AE20: Other 1 Adjustments during Q4 2012 | AF20: Closing Principal Balance as of Dec-31-12 | AG20: Opening Interest Amounts as of Jan-1-12 | AH20: Interest Jan-1 to Dec-31-12 | AI20: Board-Approved Disposition during 2012 | AJ20: Adjustments during 2012 - other 1 | AK20: Closing Interest Amounts as of Dec-31-12 | AL20: Opening Principal Amounts as of Jan-1-13 | AM20: Transactions Debit / (Credit) during 2013 excluding interest and adjustments 2 | AN20: Board-Approved Disposition during 2013 | AO20: Other 1 Adjustments during Q1 2013 | AP20: Other 1 Adjustments during Q2 2013 | AQ20: Other 1 Adjustments during Q3 2013 | AR20: Other 1 Adjustments during Q4 2013 | AS20: Closing Principal Balance as of Dec-31-13 | AT20: Opening Interest Amounts as of Jan-1-13 | AU20: Interest Jan-1 to Dec-31-13 | AV20: Board-Approved Disposition during 2013 | AW20: Adjustments during 2013 - other 1 | AX20: Closing Interest Amounts as of Dec-31-13 | AY20: Principal Disposition during 2014 - instructed by Board | AZ20: Interest Disposition during 2014 - instructed by Board | BA20: Closing Principal Balances as of Dec 31-13 Adjusted for Dispositions during 2014 | BB20: Closing Interest Balances as of Dec 31-13 Adjusted for Dispositions during 2014 | BC20: Projected Interest from Jan 1, 2014 to December 31, 2014 on Dec 31 -13 balance adjusted for disposition during 2014 3 | BD20: Projected Interest from January 1, 2015 to April 30, 2015 on Dec 31 -13 balance adjusted for disposition during 2014 3 | BE20: Total Claim | BF20: As of Dec 31-13 | BG20: Variance RRR vs. 2013 Balance (Principal + Interest)
BE22: Claim before Forecasted Transactions
C23: Group 1 Accounts
A24: 1 | C24: LV Variance Account | D24: 1550 | E24: -130252 | F24: -335611 | G24: 147411 | I24: =E24+F24-G24+H24 -> -613274 | J24: 8882 | K24: -3066 | L24: 7330 | N24: =J24+K24-L24+M24 -> -1514 | O24: =I24 -> -613274 | P24: -24512 | S24: =O24+P24-Q24+R24 -> -637786 | T24: =N24 -> -1514 | U24: -10680 | X24: =T24+U24-V24+W24 -> -12194 | Y24: =S24 -> -637786 | Z24: 65215 | AA24: -613274 | AF24: =Y24+Z24-AA24+SUM(AB24:AE24) -> 40703 | AG24: =X24 -> -12194 | AH24: -5790 | AI24: -13534 | AK24: =AG24+AH24-AI24+AJ24 -> -4450 | AL24: =AF24 -> 40703 | AM24: =11004-60100+74649+107739.18 -> 133292.18 | AS24: =AL24+AM24-AN24+SUM(AO24:AR24) -> 173995.18 | AT24: =AK24 -> -4450 | AU24: =148+64-30+335 -> 517 | AX24: =AT24+AU24-AV24+AW24 -> -3933 | AY24: 40703 | AZ24: -3652 | BA24: =AS24-AY24 -> 133292.18 | BB24: =AX24-AZ24 -> -281 | BC24: =BA24*1.47% -> 1959.395046 | BD24: =BA24*0.0147/12*4 -> 653.131682 | BE24: =SUM(BA24:BD24) -> 135623.7067 | BF24: 170062 | BG24: =BF24-SUM(AS24,AX24) -> -0.18
C25: Smart Metering Entity Charge Variance | D25: 1551 | AK25: 0 | AL25: =AK25 -> 0 | AM25: =0+0+39040-614-21130 -> 17296 | AS25: =AL25+AM25-AN25+SUM(AO25:AR25) -> 17296 | AT25: =AK25 -> 0 | AU25: =0+0+142+122 -> 264 | AX25: 264 | AY25: 0 | AZ25: 0 | BA25: =AS25-AY25 -> 17296 | BB25: =AX25-AZ25 -> 264 | BC25: =BA25*1.47% -> 254.2512 | BD25: =BA25*0.0147/12*4 -> 84.7504 | BE25: =SUM(BA25:BD25) -> 17899.0016 | BF25: 17560 | BG25: =BF25-SUM(AS25,AX25) -> 0
A26: 2 | C26: RSVA - Wholesale Market Service Charge | D26: 1580 | E26: -597318 | F26: -503483 | G26: -573648 | H26: 23362 | I26: =E26+F26-G26+SUM(H26:H26) -> -503791 | J26: -32316 | K26: -5234 | L26: 82579 | N26: =J26+K26-L26+M26 -> -120129 | O26: =I26 -> -503791 | P26: -471889 | S26: =O26+P26-Q26+SUM(R26:R26) -> -975680 | T26: -120129 | U26: -11099 | X26: =T26+U26-V26+W26 -> -131228 | Y26: =S26 -> -975680 | Z26: -581669 | AA26: -503791 | AF26: -1053558 | AG26: =X26 -> -131228 | AH26: -16677 | AI26: -130003 | AK26: -17902 | AL26: =AF26 -> -1053558 | AM26: =-142507-111957+700-65764+93 -> -319435 | AS26: -1372993 | AT26: =AK26 -> -17902 | AU26: =-4256-4717-4914-5191 -> -19078 | AX26: -36980 | AY26: -1053558 | AZ26: -38552 | BA26: -319435 | BB26: 1572 | BC26: -4695.6945 | BD26: -1565.2315 | BE26: =SUM(BA26:BD26) -> -324123.926 | BF26: -1409973 | BG26: 0
A27: 3 | C27: RSVA - Retail Transmission Network Charge | D27: 1584 | E27: 244720 | F27: 312311 | G27: -44308 | I27: 601339 | J27: -142591 | K27: 1490 | L27: 109179 | N27: -250280 | O27: 601339 | P27: 298646 | S27: 899985 | T27: -250280 | U27: 8755 | X27: -241525 | Y27: 899985 | Z27: 176506 | AA27: 601339 | AF27: 475152 | AG27: -241525 | AH27: 8508 | AI27: -238494 | AK27: 5477 | AL27: 475152 | AM27: =86611-197229+383666+464911 -> 737959 | AS27: 1213111 | AT27: 5477 | AU27: =1582+1453+1189+2943-1 -> 7166 | AX27: 12643 | AY27: 475152 | AZ27: 14790 | BA27: 737959 | BB27: -2147 | BC27: =BA27*1.47% -> 10847.9973 | BD27: 3615.9991 | BE27: 750275.9964 | BF27: 1225754 | BG27: 0
A28: 4 | C28: RSVA - Retail Transmission Connection Charge | D28: 1586 | E28: -639858 | F28: 284567 | G28: -873118 | I28: 517827 | J28: -196705 | K28: -617 | L28: -253 | N28: -197069 | O28: 517827 | P28: 122290 | S28: 640117 | T28: -197069 | U28: 7261 | X28: -189808 | Y28: 640117 | Z28: 297740 | AA28: 517827 | AF28: 420030 | AG28: -189808 | AH28: 5697 | AI28: -186920 | AK28: 2809 | AL28: 420030 | AM28: =27806-171794+248361+334204 -> 438577 | AS28: 858607 | AT28: 2809 | AU28: =1315+1094+814+2001-3 -> 5221 | AX28: 8030 | AY28: 420030 | AZ28: 11041 | BA28: 438577 | BB28: -3011 | BC28: 6447.0819 | BD28: 2149.0273 | BE28: 444162.1092 | BF28: 866637 | BG28: 0
A29: 5 | C29: RSVA - Power (excluding Global Adjustment) | D29: 1588 | E29: 2065274 | F29: -1253848 | G29: 1284956 | I29: -473530 | J29: 93881 | K29: 1254 | L29: 526154 | N29: -431019 | O29: -473530 | P29: -1116970 | S29: -1590500 | T29: -431019 | U29: -29870 | X29: -460889 | Y29: -1590500 | Z29: 392985 | AA29: -473530 | AF29: -723985 | AG29: -460889 | AH29: -26168 | AI29: -440300 | AK29: -46757 | AL29: -723985 | AM29: =459886+598850-279502-229879-72 -> 549283 | AS29: -174702 | AT29: -46757 | AU29: =226-482+1240+509+1 -> 1494 | AX29: -45263 | AY29: -723985 | AZ29: -60947 | BA29: 549283 | BB29: 15684 | BC29: 8074.4601 | BD29: 2691.4867 | BE29: 575732.9468 | BF29: -219965 | BG29: 0
A30: 6 | C30: RSVA - Global Adjustment | D30: 1589 | E30: 2077351 | F30: 769804 | G30: 597759 | I30: 2249396 | J30: 29439 | K30: 7545 | L30: 26814 | N30: 10170 | O30: 2249396 | P30: 1086737 | S30: 3336133 | T30: 10170 | U30: 48794 | X30: 58964 | Y30: 3336133 | Z30: -109404 | AA30: 2249396 | AF30: 977333 | AG30: 58964 | AH30: 35862 | AI30: 54258 | AK30: 40568 | AL30: 977333 | AM30: =114386+859120-637308-314056 -> 22142 | AS30: 999475 | AT30: 40568 | AU30: =2811+4504+5746+3114+1 -> 16176 | AX30: 56744 | AY30: 977333 | AZ30: 59723 | BA30: 22142 | BB30: -2979 | BC30: 325.4874 | BD30: 108.4958 | BE30: 19596.9832 | BF30: 1056219 | BG30: 0
A31: 7 | C31: Recovery of Regulatory Asset Balances | D31: 1590 | E31: 255827 | F31: -266 | G31: 303989 | I31: -48428 | J31: 51115 | K31: -267 | L31: -66202 | N31: 117050 | O31: -48428 | P31: -211 | S31: -48639 | T31: 117050 | U31: -712 | X31: 116338 | Y31: -48639 | Z31: 0 | AA31: -48428 | AE31: 213 | AF31: 2 | AG31: 116338 | AH31: -240 | AI31: 116101 | AK31: -3 | AL31: 2 | AS31: 2 | AT31: -3 | AX31: -3 | BA31: 2 | BB31: -3 | BC31: 0.0294 | BD31: 0.0098 | BE31: -0.9608 | BG31: 1
A32: 8 | C32: Disposition and Recovery/Refund of Regulatory Balances (2008)4 | D32: 1595 | E32: 184226 | F32: -109516 | I32: 74710 | J32: 2293 | K32: 8349 | N32: 10642 | O32: =I32 -> 74710 | P32: -47723 | S32: 26987 | T32: 10642 | U32: 583 | X32: 11225 | Y32: 26987 | Z32: 315 | AF32: 27302 | AG32: 11225 | AH32: 392 | AK32: 11617 | AL32: 27302 | AM32: =0+0+0+0 -> 0 | AS32: 27302 | AT32: 11617 | AU32: 401.3992342 | AX32: 12018.39923 | AY32: 27302 | AZ32: 12153 | BA32: 0 | BB32: -134.6007658 | BC32: 0 | BD32: 0 | BE32: -134.6007658 | BF32: 39321 | BG32: 0.6007657558
A33: 9 | C33: Disposition and Recovery/Refund of Regulatory Balances (2009)4 | D33: 1595 | F33: -495864 | G33: -1528642 | I33: 1032778 | J33: 0 | K33: 979 | N33: 979 | O33: =I33 -> 1032778 | P33: -490076 | S33: 542702 | T33: 979 | U33: 14755 | X33: 15734 | Y33: 542702 | Z33: 212301 | AF33: 755003 | AG33: 15734 | AH33: 4805 | AK33: 20539 | AL33: 755003 | AM33: =0+0+0+0 -> 0 | AS33: 755003 | AT33: 20539 | AX33: 20539 | AY33: 755003 | AZ33: 35338 | BA33: 0 | BB33: -14799 | BC33: 0 | BD33: 0 | BE33: -14799 | BF33: =281723+493819 -> 775542 | BG33: 0
A34: 9 | C34: Disposition and Recovery/Refund of Regulatory Balances (2010)4 | D34: 1595 | I34: 0 | N34: 0 | O34: =I34 -> 0 | S34: 0 | T34: 0 | X34: 0 | Y34: 0 | AE34: 28332 | AF34: 28332 | AG34: 0 | AK34: 0 | AL34: 28332 | AM34: =0+0+0+0 -> 0 | AS34: 28332 | AT34: 0 | AU34: 3799.738404 | AX34: 3799.738404 | AY34: 28332 | AZ34: 347 | BA34: 0 | BB34: 3452.738404 | BC34: 0 | BD34: 0 | BE34: 3452.738404 | BF34: 32132 | BG34: 0.2615958535
A35: 9 | C35: Disposition and Recovery/Refund of Regulatory Balances (2011)4 | D35: 1595 | I35: 0 | N35: 0 | O35: =I35 -> 0 | S35: 0 | T35: 0 | X35: 0 | Y35: 0 | AF35: 0 | AG35: 0 | AK35: 0 | AL35: 0 | AS35: 0 | AT35: 0 | AX35: 0 | BA35: 0 | BB35: 0 | BC35: 0 | BD35: 0 | BE35: =SUM(BA35:BD35) -> 0 | BG35: 0
A36: 9 | C36: Disposition and Recovery/Refund of Regulatory Balances (2012)4 | D36: 1595 | I36: 0 | N36: 0 | O36: =I36 -> 0 | S36: 0 | T36: =N36 -> 0 | X36: 0 | Y36: =S36 -> 0 | AF36: =Y36+Z36-AA36+SUM(AB36:AE36) -> 0 | AG36: =X36 -> 0 | AK36: =AG36+AH36-AI36+AJ36 -> 0 | AL36: =AF36 -> 0 | AS36: =AL36+AM36-AN36+SUM(AO36:AR36) -> 0 | AT36: =AK36 -> 0 | AX36: =AT36+AU36-AV36+AW36 -> 0 | BA36: 0 | BB36: 0 | BC36: 0 | BD36: 0 | BE36: =SUM(BA36:BD36) -> 0 | BG36: 0
C38: RSVA - Global Adjustment | D38: 1589 | E38: =E30 -> 2077351 | F38: 769804 | G38: 597759 | H38: 0 | I38: 2249396 | J38: 29439 | K38: 7545 | L38: 26814 | M38: 0 | N38: 10170 | O38: 2249396 | P38: =P30 -> 1086737 | Q38: 0 | R38: 0 | S38: 3336133 | T38: 10170 | U38: 48794 | V38: 0 | W38: 0 | X38: 58964 | Y38: =Y30 -> 3336133 | Z38: =Z30 -> -109404 | AA38: 2249396 | AB38: 0 | AC38: 0 | AD38: 0 | AE38: 0 | AF38: =AF30 -> 977333 | AG38: 58964 | AH38: 35862 | AI38: 54258 | AJ38: 0 | AK38: 40568 | AL38: 977333 | AM38: =AM30 -> 22142 | AN38: 0 | AO38: 0 | AP38: 0 | AQ38: 0 | AR38: 0 | AS38: 999475 | AT38: 40568 | AU38: 16176 | AV38: 0 | AW38: 0 | AX38: 56744 | AY38: =AY30 -> 977333 | AZ38: =AZ30 -> 59723 | BA38: 22142 | BB38: -2979 | BC38: 325.4874 | BD38: 108.4958 | BE38: 19596.9832 | BF38: 1056219 | BG38: 0
C39: Total Group 1 Balance excluding Account 1589 - Global Adjustment | E39: =SUM(E24:E29,E31:E36) -> 1382619 | F39: -2101710 | G39: -1283360 | H39: 23362 | I39: 587631 | J39: -215441 | K39: 2888 | L39: 658787 | M39: 0 | N39: -871340 | O39: 587631 | P39: =SUM(P24:P29,P31:P36) -> -1730445 | Q39: 0 | R39: 0 | S39: -1142814 | T39: -871340 | U39: -21007 | V39: 0 | W39: 0 | X39: -892347 | Y39: =SUM(Y24:Y29,Y31:Y36) -> -1142814 | Z39: =SUM(Z24:Z29,Z31:Z36) -> 563393 | AA39: -519857 | AB39: 0 | AC39: 0 | AD39: 0 | AE39: 28545 | AF39: =SUM(AF24:AF29,AF31:AF36) -> -31019 | AG39: -892347 | AH39: -29473 | AI39: -893150 | AJ39: 0 | AK39: -28670 | AL39: -31019 | AM39: =SUM(AM24:AM29,AM31:AM36) -> 1556972.18 | AN39: 0 | AO39: 0 | AP39: 0 | AQ39: 0 | AR39: 0 | AS39: 1525953.18 | AT39: -28670 | AU39: -214.8623616 | AV39: 0 | AW39: 0 | AX39: -28884.86236 | AY39: =SUM(AY24:AY29,AY31:AY36) -> -31021 | AZ39: =SUM(AZ24:AZ29,AZ31:AZ36) -> -29482 | BA39: 1556974.18 | BB39: 597.1376384 | BC39: 22887.52045 | BD39: 7629.173482 | BE39: 1588088.012 | BF39: 1497070 | BG39: 1.682361609
C40: Total Group 1 Balance | E40: =SUM(E24:E36) -> 3459970 | F40: -1331906 | G40: -685601 | H40: 23362 | I40: 2837027 | J40: -186002 | K40: 10433 | L40: 685601 | M40: 0 | N40: -861170 | O40: 2837027 | P40: =SUM(P24:P36) -> -643708 | Q40: 0 | R40: 0 | S40: 2193319 | T40: -861170 | U40: 27787 | V40: 0 | W40: 0 | X40: -833383 | Y40: =SUM(Y24:Y36) -> 2193319 | Z40: =SUM(Z24:Z36) -> 453989 | AA40: 1729539 | AB40: 0 | AC40: 0 | AD40: 0 | AE40: 28545 | AF40: =SUM(AF24:AF36) -> 946314 | AG40: -833383 | AH40: 6389 | AI40: -838892 | AJ40: 0 | AK40: 11898 | AL40: 946314 | AM40: =SUM(AM24:AM36) -> 1579114.18 | AN40: 0 | AO40: 0 | AP40: 0 | AQ40: 0 | AR40: 0 | AS40: 2525428.18 | AT40: 11898 | AU40: 15961.13764 | AV40: 0 | AW40: 0 | AX40: 27859.13764 | AY40: =SUM(AY24:AY36) -> 946312 | AZ40: =SUM(AZ24:AZ36) -> 30241 | BA40: 1579116.18 | BB40: -2381.862362 | BC40: 23213.00785 | BD40: 7737.669282 | BE40: 1607684.995 | BF40: 2553289 | BG40: 1.682361609
C42: LRAM Variance Account | D42: 1568 | I42: =E42+F42-G42+SUM(H42:H42) -> 0 | N42: =J42+K42-L42+M42 -> 0 | S42: =O42+P42-Q42+SUM(R42:R42) -> 0 | X42: =T42+U42-V42+W42 -> 0 | Y42: =S42 -> 0 | AE42: 0 | AF42: =Y42+Z42-AA42+SUM(AB42:AE42) -> 0 | AG42: =X42 -> 0 | AJ42: 0 | AK42: =AG42+AH42-AI42+AJ42 -> 0 | AL42: =AF42 -> 0 | AS42: =AL42+AM42-AN42+SUM(AO42:AR42) -> 0 | AT42: =AK42 -> 0 | AX42: =AT42+AU42-AV42+AW42 -> 0 | BA42: =AS42-AY42 -> 0 | BB42: =AX42-AZ42 -> 0 | BE42: =SUM(BA42:BD42) -> 0 | BF42: 0 | BG42: =BF42-SUM(AS42,AX42) -> 0
C44: Total including Account 1568 | E44: =E42+E40 -> 3459970 | F44: =F42+F40 -> -1331906 | G44: -685601 | H44: 23362 | I44: 2837027 | J44: -186002 | K44: 10433 | L44: 685601 | M44: 0 | N44: -861170 | O44: 2837027 | P44: -643708 | Q44: 0 | R44: 0 | S44: 2193319 | T44: -861170 | U44: 27787 | V44: 0 | W44: 0 | X44: -833383 | Y44: 2193319 | Z44: 453989 | AA44: 1729539 | AB44: 0 | AC44: 0 | AD44: 0 | AE44: 28545 | AF44: 946314 | AG44: -833383 | AH44: 6389 | AI44: -838892 | AJ44: 0 | AK44: 11898 | AL44: 946314 | AM44: 1579114.18 | AN44: 0 | AO44: 0 | AP44: 0 | AQ44: 0 | AR44: 0 | AS44: 2525428.18 | AT44: 11898 | AU44: 15961.13764 | AV44: 0 | AW44: 0 | AX44: 27859.13764 | AY44: 946312 | AZ44: 30241 | BA44: 1579116.18 | BB44: -2381.862362 | BC44: 23213.00785 | BD44: 7737.669282 | BE44: 1607684.995 | BF44: 2553289 | BG44: 1.682361609
C47: For all Board-Approved dispositions, please ensure that the disposition amount has the same sign (e.g: debit balances are to have a positive figure and credit balance are to have a negative figure) as per the related Board decision.
B50: 1 | C50: Please provide explanations for the nature of the adjustments. If the adjustment relates to previously Board Approved disposed balances, please provide amounts for adjustments and include supporting documentations.
B51: 2 | C51: For RSVA accounts only, report the net variance to the account during the year. For all other accounts, record the transactions during the year.
B52: 3 | C52: If the LDC’s rate year begins on January 1, 2015, the projected interest is recorded from January 1, 2014 to December 31, 2014 on the December 31, 2013 balances adjusted for the disposed balances approved by the Board in the 2014 rate decision. If the LDC’s rate year begins on May 1, 2015, the projected interest is recorded from January 1, 2014 to April 30, 2015 on the December 31, 2013 balances adjusted for the disposed interest balances approved by the Board in the 2014 rate decision.
B53: 4 | C53: Include Account 1595 as part of Group 1 accounts (lines 31, 32, 33 and 34) for review and disposition if the recovery (or refund) period has been completed. If the recovery (or refund) period has not been completed, do not include the respective balance in Account 1595 for disposition at this time.

Sheet 6. Billing Det. for Def-Var
AS1: As per Section 3.2.3 of the 2015 Filing Requirements for Electricity Distribution Rate Applications, an applicant may elect to dispose of the Group 1 account balances below the threshold. If doing so, please select YES from the adjacent drop-down cell and also indicate so in the Manager's Summary. If not, please select NO.
A13: In the green shaded cells, enter the most recent Board Approved volumetric forecast. If there is a material difference between the latest Board-approved volumetric forecast and the most recent 12-month actual volumetric data, use the most recent 12-month actual data. Do not enter data for the MicroFit class.
E15: Billed kWh for Non-RPP Customers | F15: Estimated kW for Non-RPP Customers | H15: 1590 Recovery Share Proportion* | I15: 1595 Recovery Share Proportion (2008) 1 | J15: 1595 Recovery Share Proportion (2009) 1 | K15: 1595 Recovery Share Proportion (2010) 1 | L15: 1595 Recovery Share Proportion (2011) 1 | M15: 1595 Recovery Share Proportion (2012) 1 | N15: 1568 LRAM Variance Account Class Allocation ($ amounts) | O15: Number of Customers for Residential and GS<50 classes3
A16: Rate Class | B16: Unit | C16: Metered kWh | D16: Metered kW
A17: RESIDENTIAL - TIME OF USE | B17: $/kWh | C17: 210212474 | E17: 21957801 | F17: =IF(ISERROR(D17/C17*E17), 0, D17/C17*E17) -> 0 | H17: 0.4255 | I17: 0.4255 | J17: 0.4255 | K17: 0.4255 | L17: 0.4255 | M17: 0.4255 | O17: 19530
A18: GENERAL SERVICE LESS THAN 50 KW | B18: $/kWh | C18: 54285767 | E18: 4765560 | F18: 0 | H18: 0.1099 | I18: 0.1099 | J18: 0.1099 | K18: 0.1099 | L18: 0.1099 | M18: 0.1099 | O18: 1694
A19: GENERAL SERVICE 50 TO 999 KW | B19: $/kW | C19: 112793637 | D19: 318868 | E19: 97683050 | F19: 276150.3185 | H19: 0.2283 | I19: 0.2283 | J19: 0.2283 | K19: 0.2283 | L19: 0.2283 | M19: 0.2283
A20: GENERAL SERVICE 1,000 TO 4,999 KW - INTERVAL METERS | B20: $/kW | C20: 108192394 | D20: 293909 | E20: 107977878 | F20: 293326.2586 | H20: 0.219 | I20: 0.219 | J20: 0.219 | K20: 0.219 | L20: 0.219 | M20: 0.219
A21: GENERAL SERVICE GREATER THAN 50 kW - WMP | B21: $/kW | C21: 4544387 | D21: 9431 | F21: 0 | H21: 0.0092 | I21: 0.0092 | J21: 0.0092 | K21: 0.0092 | L21: 0.0092 | M21: 0.0092
A22: UNMETERED SCATTERED LOAD | B22: $/kWh | C22: 838540 | E22: 838540 | F22: 0 | H22: 0.0017 | I22: 0.0017 | J22: 0.0017 | K22: 0.0017 | L22: 0.0017 | M22: 0.0017
A23: SENTINEL LIGHTING | B23: $/kW | C23: 380342 | D23: 810 | E23: 380342 | F23: 810 | H23: 0.0008 | I23: 0.0008 | J23: 0.0008 | K23: 0.0008 | L23: 0.0008 | M23: 0.0008
A24: STREET LIGHTING | B24: $/kW | C24: 2778881 | D24: 7820 | E24: 2778881 | F24: 7820 | H24: 0.0056 | I24: 0.0056 | J24: 0.0056 | K24: 0.0056 | L24: 0.0056 | M24: 0.0056
A25: microFIT
B27: Total | C27: =SUM(C17:C25) -> 494026422 | D27: =SUM(D17:D25) -> 630838 | E27: 236382052 | F27: 578106.5772 | H27: 1 | I27: 1 | J27: 1 | K27: 1 | L27: 1 | M27: 1 | N27: 0 | O27: 21224
M28: Balance as per Sheet 5 | N28: =ROUND('5. 2014 Continuity Schedule'!BE42, 0) -> 0
M29: Variance | N29: =N27-N28 -> 0
A31: Threshold Test
A32: Total Claim (including Account 1568) | B32: ='5. 2014 Continuity Schedule'!BE44 -> 1607684.995
A33: Total Claim for Threshold Test (All Group 1 Accounts) | B33: ='5. 2014 Continuity Schedule'!BE40 -> 1607684.995
A34: Threshold Test (Total claim per kWh) 2 | B34: =IF(ISERROR(B33/C27), 0, B33/C27) -> 0.00325424901 | D34: =IF(AND(B34>-0.001,B34<0.001),"Claim does not meet the threshold test.","") -> 
A36: =IF(AND(B34>-0.001, B34<0.001), AS1, "") -> 
A40: 1 Residual Account balance to be allocated to rate classes in proportion to the recovery share as established when rate riders were implemented.
A41: 2 The Threshold Test does not include the amount in 1568.
A42: 3 The proportion of customers for the Residential and GS<50 Classes will be used to allocate Account 1551.

Sheet 6. hidden (hidden)
E1: Billed kWh for Non-RPP Customers | F1: Estimated kW for Non-RPP Customers | G1: Distribution Revenue 1 | H1: 1590 Recovery Share Proportion* | I1: 1595 Recovery Share Proportion (2008) 2 | J1: 1595 Recovery Share Proportion (2009) 2 | K1: 1595 Recovery Share Proportion (2010) 2 | L1: 1595 Recovery Share Proportion (2011) 2 | M1: 1568 LRAM Variance Account Class Allocation
A2: Rate Class | B2: Unit | C2: Metered kWh | D2: Metered kW
A3: RESIDENTIAL - TIME OF USE | B3: $/kWh | C3: 210212474 | D3: 0 | E3: 21957801 | G3: 0 | H3: 0.4255 | I3: 0.4255 | J3: 0.4255 | K3: 0.4255 | L3: 0.4255 | M3: 0.4255 | N3: 0 | O3: 19530
A4: GENERAL SERVICE LESS THAN 50 KW | B4: $/kWh | C4: 54285767 | D4: 0 | E4: 4765560 | G4: 0 | H4: 0.1099 | I4: 0.1099 | J4: 0.1099 | K4: 0.1099 | L4: 0.1099 | M4: 0.1099 | N4: 0 | O4: 1694
A5: GENERAL SERVICE 50 TO 999 KW | B5: $/kW | C5: 112793637 | D5: 318868 | E5: 97683050 | G5: 0 | H5: 0.2283 | I5: 0.2283 | J5: 0.2283 | K5: 0.2283 | L5: 0.2283 | M5: 0.2283 | N5: 0 | O5: 0
A6: GENERAL SERVICE 1,000 TO 4,999 KW - INTERVAL METERS | B6: $/kW | C6: 108192394 | D6: 293909 | E6: 107977878 | G6: 0 | H6: 0.219 | I6: 0.219 | J6: 0.219 | K6: 0.219 | L6: 0.219 | M6: 0.219 | N6: 0 | O6: 0
A7: GENERAL SERVICE GREATER THAN 50 kW - WMP | B7: $/kW | C7: 4544387 | D7: 9431 | E7: 0 | G7: 0 | H7: 0.0092 | I7: 0.0092 | J7: 0.0092 | K7: 0.0092 | L7: 0.0092 | M7: 0.0092 | N7: 0 | O7: 0
A8: UNMETERED SCATTERED LOAD | B8: $/kWh | C8: 838540 | D8: 0 | E8: 838540 | G8: 0 | H8: 0.0017 | I8: 0.0017 | J8: 0.0017 | K8: 0.0017 | L8: 0.0017 | M8: 0.0017 | N8: 0 | O8: 0
A9: SENTINEL LIGHTING | B9: $/kW | C9: 380342 | D9: 810 | E9: 380342 | G9: 0 | H9: 0.0008 | I9: 0.0008 | J9: 0.0008 | K9: 0.0008 | L9: 0.0008 | M9: 0.0008 | N9: 0 | O9: 0
A10: STREET LIGHTING | B10: $/kW | C10: 2778881 | D10: 7820 | E10: 2778881 | G10: 0 | H10: 0.0056 | I10: 0.0056 | J10: 0.0056 | K10: 0.0056 | L10: 0.0056 | M10: 0.0056 | N10: 0 | O10: 0
A11: microFIT | B11: 0 | C11: 0 | D11: 0 | E11: 0 | G11: 0 | H11: 0 | I11: 0 | J11: 0 | K11: 0 | L11: 0 | M11: 0 | N11: 0 | O11: 0

Sheet 7. Allocating Def-Var Balances
A13: No input required. This workshseet allocates the deferral/variance account balances (Group 1, 1589, and 1568) to the appropriate classes as per the EDDVAR Report dated July 31, 2009
A15: Allocation of Group 1 Accounts (including Account 1568) | U15: % of Total kWh (without WMP) | V15: 1580 | W15: 1588 | X15: 1589
C16: % of Total kWh | D16: % of Total non-RPP kWh | E16: % of Customer Numbers ** | N16: 1595 (2008) | O16: 1595 (2009) | P16: 1595 (2010) | Q16: 1595 (2011) | R16: 1595 (2012) | S16: 1568
A17: Rate Class | F17: 1550 | G17: 1551 | H17: 1580 | I17: 1584 | J17: 1586 | K17: 1588 | L17: 1589 | M17: 1590
A19: RESIDENTIAL - TIME OF USE | C19: =VLOOKUP(A19, '6. Billing Det. for Def-Var'!#REF!, 3,0)/'6. Billing Det. for Def-Var'!#REF! ->  | D19: =VLOOKUP(A19, '6. Billing Det. for Def-Var'!#REF!, 5,0)/'6. Billing Det. for Def-Var'!#REF! ->  | E19: =VLOOKUP(A19, '6. Billing Det. for Def-Var'!#REF!, 15,0)/'6. Billing Det. for Def-Var'!#REF! ->  | F19: =C19* '5. 2014 Continuity Schedule'!BE24 ->  | G19: =E19* '5. 2014 Continuity Schedule'!BE25 ->  | H19: =C19* '5. 2014 Continuity Schedule'!BE26 ->  | I19: =C19* '5. 2014 Continuity Schedule'!BE27 ->  | J19: =C19* '5. 2014 Continuity Schedule'!BE28 ->  | K19: =C19* '5. 2014 Continuity Schedule'!BE29 ->  | L19: =D19* '5. 2014 Continuity Schedule'!BE30 ->  | M19: ='6. Billing Det. for Def-Var'!#REF!* '5. 2014 Continuity Schedule'!BE31 ->  | N19: ='6. Billing Det. for Def-Var'!#REF!* '5. 2014 Continuity Schedule'!BE32 ->  | O19: ='6. Billing Det. for Def-Var'!#REF!* '5. 2014 Continuity Schedule'!BE33 ->  | P19: ='6. Billing Det. for Def-Var'!#REF!* '5. 2014 Continuity Schedule'!BE34 ->  | Q19: ='6. Billing Det. for Def-Var'!#REF!* '5. 2014 Continuity Schedule'!BE35 ->  | R19: ='6. Billing Det. for Def-Var'!#REF!* '5. 2014 Continuity Schedule'!BE36 ->  | S19: ='6. Billing Det. for Def-Var'!#REF! ->  | U19: =VLOOKUP(A19, '6. Billing Det. for Def-Var'!#REF!, 3,0)/489482035 ->  | V19: =U19* '5. 2014 Continuity Schedule'!BE26 ->  | W19: =U19* '5. 2014 Continuity Schedule'!BE29 -> 
A20: GENERAL SERVICE LESS THAN 50 KW | C20: =VLOOKUP(A20, '6. Billing Det. for Def-Var'!#REF!, 3,0)/'6. Billing Det. for Def-Var'!#REF! ->  | D20: =VLOOKUP(A20, '6. Billing Det. for Def-Var'!#REF!, 5,0)/'6. Billing Det. for Def-Var'!#REF! ->  | E20: =VLOOKUP(A20, '6. Billing Det. for Def-Var'!#REF!, 15,0)/'6. Billing Det. for Def-Var'!#REF! ->  | F20: =C20* '5. 2014 Continuity Schedule'!BE24 ->  | G20: =E20* '5. 2014 Continuity Schedule'!BE25 ->  | H20: =C20* '5. 2014 Continuity Schedule'!BE26 ->  | I20: =C20* '5. 2014 Continuity Schedule'!BE27 ->  | J20: =C20* '5. 2014 Continuity Schedule'!BE28 ->  | K20: =C20* '5. 2014 Continuity Schedule'!BE29 ->  | L20: =D20* '5. 2014 Continuity Schedule'!BE30 ->  | M20: ='6. Billing Det. for Def-Var'!#REF!* '5. 2014 Continuity Schedule'!BE31 ->  | N20: ='6. Billing Det. for Def-Var'!#REF!* '5. 2014 Continuity Schedule'!BE32 ->  | O20: ='6. Billing Det. for Def-Var'!#REF!* '5. 2014 Continuity Schedule'!BE33 ->  | P20: ='6. Billing Det. for Def-Var'!#REF!* '5. 2014 Continuity Schedule'!BE34 ->  | Q20: ='6. Billing Det. for Def-Var'!#REF!* '5. 2014 Continuity Schedule'!BE35 ->  | R20: ='6. Billing Det. for Def-Var'!#REF!* '5. 2014 Continuity Schedule'!BE36 ->  | S20: ='6. Billing Det. for Def-Var'!#REF! ->  | U20: =VLOOKUP(A20, '6. Billing Det. for Def-Var'!#REF!, 3,0)/489482035 ->  | V20: =U20* '5. 2014 Continuity Schedule'!BE26 ->  | W20: =U20* '5. 2014 Continuity Schedule'!BE29 -> 
A21: GENERAL SERVICE 50 TO 999 KW | C21: =VLOOKUP(A21, '6. Billing Det. for Def-Var'!#REF!, 3,0)/'6. Billing Det. for Def-Var'!#REF! ->  | D21: =VLOOKUP(A21, '6. Billing Det. for Def-Var'!#REF!, 5,0)/'6. Billing Det. for Def-Var'!#REF! ->  | F21: =C21* '5. 2014 Continuity Schedule'!BE24 ->  | G21: =E21* '5. 2014 Continuity Schedule'!BE25 -> 0 | H21: =C21* '5. 2014 Continuity Schedule'!BE26 ->  | I21: =C21* '5. 2014 Continuity Schedule'!BE27 ->  | J21: =C21* '5. 2014 Continuity Schedule'!BE28 ->  | K21: =C21* '5. 2014 Continuity Schedule'!BE29 ->  | L21: =D21* '5. 2014 Continuity Schedule'!BE30 ->  | M21: ='6. Billing Det. for Def-Var'!#REF!* '5. 2014 Continuity Schedule'!BE31 ->  | N21: ='6. Billing Det. for Def-Var'!#REF!* '5. 2014 Continuity Schedule'!BE32 ->  | O21: ='6. Billing Det. for Def-Var'!#REF!* '5. 2014 Continuity Schedule'!BE33 ->  | P21: ='6. Billing Det. for Def-Var'!#REF!* '5. 2014 Continuity Schedule'!BE34 ->  | Q21: ='6. Billing Det. for Def-Var'!#REF!* '5. 2014 Continuity Schedule'!BE35 ->  | R21: ='6. Billing Det. for Def-Var'!#REF!* '5. 2014 Continuity Schedule'!BE36 ->  | S21: ='6. Billing Det. for Def-Var'!#REF! ->  | U21: =VLOOKUP(A21, '6. Billing Det. for Def-Var'!#REF!, 3,0)/489482035 ->  | V21: =U21* '5. 2014 Continuity Schedule'!BE26 ->  | W21: =U21* '5. 2014 Continuity Schedule'!BE29 -> 
A22: GENERAL SERVICE 1,000 TO 4,999 KW - INTERVAL METERS | C22: =VLOOKUP(A22, '6. Billing Det. for Def-Var'!#REF!, 3,0)/'6. Billing Det. for Def-Var'!#REF! ->  | D22: =VLOOKUP(A22, '6. Billing Det. for Def-Var'!#REF!, 5,0)/'6. Billing Det. for Def-Var'!#REF! ->  | F22: =C22* '5. 2014 Continuity Schedule'!BE24 ->  | G22: =E22* '5. 2014 Continuity Schedule'!BE25 -> 0 | H22: =C22* '5. 2014 Continuity Schedule'!BE26 ->  | I22: =C22* '5. 2014 Continuity Schedule'!BE27 ->  | J22: =C22* '5. 2014 Continuity Schedule'!BE28 ->  | K22: =C22* '5. 2014 Continuity Schedule'!BE29 ->  | L22: =D22* '5. 2014 Continuity Schedule'!BE30 ->  | M22: ='6. Billing Det. for Def-Var'!#REF!* '5. 2014 Continuity Schedule'!BE31 ->  | N22: ='6. Billing Det. for Def-Var'!#REF!* '5. 2014 Continuity Schedule'!BE32 ->  | O22: ='6. Billing Det. for Def-Var'!#REF!* '5. 2014 Continuity Schedule'!BE33 ->  | P22: ='6. Billing Det. for Def-Var'!#REF!* '5. 2014 Continuity Schedule'!BE34 ->  | Q22: ='6. Billing Det. for Def-Var'!#REF!* '5. 2014 Continuity Schedule'!BE35 ->  | R22: ='6. Billing Det. for Def-Var'!#REF!* '5. 2014 Continuity Schedule'!BE36 ->  | S22: ='6. Billing Det. for Def-Var'!#REF! ->  | U22: =VLOOKUP(A22, '6. Billing Det. for Def-Var'!#REF!, 3,0)/489482035 ->  | V22: =U22* '5. 2014 Continuity Schedule'!BE26 ->  | W22: =U22* '5. 2014 Continuity Schedule'!BE29 -> 
A23: GENERAL SERVICE GREATER THAN 50 kW - WMP | C23: =VLOOKUP(A23, '6. Billing Det. for Def-Var'!#REF!, 3,0)/'6. Billing Det. for Def-Var'!#REF! ->  | D23: =VLOOKUP(A23, '6. Billing Det. for Def-Var'!#REF!, 5,0)/'6. Billing Det. for Def-Var'!#REF! ->  | F23: =C23* '5. 2014 Continuity Schedule'!BE24 ->  | G23: =E23* '5. 2014 Continuity Schedule'!BE25 -> 0 | H23: =C23* '5. 2014 Continuity Schedule'!BE26 ->  | I23: =C23* '5. 2014 Continuity Schedule'!BE27 ->  | J23: =C23* '5. 2014 Continuity Schedule'!BE28 ->  | K23: =C23* '5. 2014 Continuity Schedule'!BE29 ->  | L23: =D23* '5. 2014 Continuity Schedule'!BE30 ->  | M23: ='6. Billing Det. for Def-Var'!#REF!* '5. 2014 Continuity Schedule'!BE31 ->  | N23: ='6. Billing Det. for Def-Var'!#REF!* '5. 2014 Continuity Schedule'!BE32 ->  | O23: ='6. Billing Det. for Def-Var'!#REF!* '5. 2014 Continuity Schedule'!BE33 ->  | P23: ='6. Billing Det. for Def-Var'!#REF!* '5. 2014 Continuity Schedule'!BE34 ->  | Q23: ='6. Billing Det. for Def-Var'!#REF!* '5. 2014 Continuity Schedule'!BE35 ->  | R23: ='6. Billing Det. for Def-Var'!#REF!* '5. 2014 Continuity Schedule'!BE36 ->  | S23: ='6. Billing Det. for Def-Var'!#REF! ->  | U23: 0 | V23: =U23* '5. 2014 Continuity Schedule'!BE26 -> 0 | W23: =U23* '5. 2014 Continuity Schedule'!BE29 -> 0
A24: UNMETERED SCATTERED LOAD | C24: =VLOOKUP(A24, '6. Billing Det. for Def-Var'!#REF!, 3,0)/'6. Billing Det. for Def-Var'!#REF! ->  | D24: =VLOOKUP(A24, '6. Billing Det. for Def-Var'!#REF!, 5,0)/'6. Billing Det. for Def-Var'!#REF! ->  | F24: =C24* '5. 2014 Continuity Schedule'!BE24 ->  | G24: =E24* '5. 2014 Continuity Schedule'!BE25 -> 0 | H24: =C24* '5. 2014 Continuity Schedule'!BE26 ->  | I24: =C24* '5. 2014 Continuity Schedule'!BE27 ->  | J24: =C24* '5. 2014 Continuity Schedule'!BE28 ->  | K24: =C24* '5. 2014 Continuity Schedule'!BE29 ->  | L24: =D24* '5. 2014 Continuity Schedule'!BE30 ->  | M24: ='6. Billing Det. for Def-Var'!#REF!* '5. 2014 Continuity Schedule'!BE31 ->  | N24: ='6. Billing Det. for Def-Var'!#REF!* '5. 2014 Continuity Schedule'!BE32 ->  | O24: ='6. Billing Det. for Def-Var'!#REF!* '5. 2014 Continuity Schedule'!BE33 ->  | P24: ='6. Billing Det. for Def-Var'!#REF!* '5. 2014 Continuity Schedule'!BE34 ->  | Q24: ='6. Billing Det. for Def-Var'!#REF!* '5. 2014 Continuity Schedule'!BE35 ->  | R24: ='6. Billing Det. for Def-Var'!#REF!* '5. 2014 Continuity Schedule'!BE36 ->  | S24: ='6. Billing Det. for Def-Var'!#REF! ->  | U24: =VLOOKUP(A24, '6. Billing Det. for Def-Var'!#REF!, 3,0)/489482035 ->  | V24: =U24* '5. 2014 Continuity Schedule'!BE26 ->  | W24: =U24* '5. 2014 Continuity Schedule'!BE29 -> 
A25: SENTINEL LIGHTING | C25: =VLOOKUP(A25, '6. Billing Det. for Def-Var'!#REF!, 3,0)/'6. Billing Det. for Def-Var'!#REF! ->  | D25: =VLOOKUP(A25, '6. Billing Det. for Def-Var'!#REF!, 5,0)/'6. Billing Det. for Def-Var'!#REF! ->  | F25: =C25* '5. 2014 Continuity Schedule'!BE24 ->  | G25: =E25* '5. 2014 Continuity Schedule'!BE25 -> 0 | H25: =C25* '5. 2014 Continuity Schedule'!BE26 ->  | I25: =C25* '5. 2014 Continuity Schedule'!BE27 ->  | J25: =C25* '5. 2014 Continuity Schedule'!BE28 ->  | K25: =C25* '5. 2014 Continuity Schedule'!BE29 ->  | L25: =D25* '5. 2014 Continuity Schedule'!BE30 ->  | M25: ='6. Billing Det. for Def-Var'!#REF!* '5. 2014 Continuity Schedule'!BE31 ->  | N25: ='6. Billing Det. for Def-Var'!#REF!* '5. 2014 Continuity Schedule'!BE32 ->  | O25: ='6. Billing Det. for Def-Var'!#REF!* '5. 2014 Continuity Schedule'!BE33 ->  | P25: ='6. Billing Det. for Def-Var'!#REF!* '5. 2014 Continuity Schedule'!BE34 ->  | Q25: ='6. Billing Det. for Def-Var'!#REF!* '5. 2014 Continuity Schedule'!BE35 ->  | R25: ='6. Billing Det. for Def-Var'!#REF!* '5. 2014 Continuity Schedule'!BE36 ->  | S25: ='6. Billing Det. for Def-Var'!#REF! ->  | U25: =VLOOKUP(A25, '6. Billing Det. for Def-Var'!#REF!, 3,0)/489482035 ->  | V25: =U25* '5. 2014 Continuity Schedule'!BE26 ->  | W25: =U25* '5. 2014 Continuity Schedule'!BE29 -> 
A26: STREET LIGHTING | C26: =VLOOKUP(A26, '6. Billing Det. for Def-Var'!#REF!, 3,0)/'6. Billing Det. for Def-Var'!#REF! ->  | D26: =VLOOKUP(A26, '6. Billing Det. for Def-Var'!#REF!, 5,0)/'6. Billing Det. for Def-Var'!#REF! ->  | F26: =C26* '5. 2014 Continuity Schedule'!BE24 ->  | G26: =E26* '5. 2014 Continuity Schedule'!BE25 -> 0 | H26: =C26* '5. 2014 Continuity Schedule'!BE26 ->  | I26: =C26* '5. 2014 Continuity Schedule'!BE27 ->  | J26: =C26* '5. 2014 Continuity Schedule'!BE28 ->  | K26: =C26* '5. 2014 Continuity Schedule'!BE29 ->  | L26: =D26* '5. 2014 Continuity Schedule'!BE30 ->  | M26: ='6. Billing Det. for Def-Var'!#REF!* '5. 2014 Continuity Schedule'!BE31 ->  | N26: ='6. Billing Det. for Def-Var'!#REF!* '5. 2014 Continuity Schedule'!BE32 ->  | O26: ='6. Billing Det. for Def-Var'!#REF!* '5. 2014 Continuity Schedule'!BE33 ->  | P26: ='6. Billing Det. for Def-Var'!#REF!* '5. 2014 Continuity Schedule'!BE34 ->  | Q26: ='6. Billing Det. for Def-Var'!#REF!* '5. 2014 Continuity Schedule'!BE35 ->  | R26: ='6. Billing Det. for Def-Var'!#REF!* '5. 2014 Continuity Schedule'!BE36 ->  | S26: ='6. Billing Det. for Def-Var'!#REF! ->  | U26: =VLOOKUP(A26, '6. Billing Det. for Def-Var'!#REF!, 3,0)/489482035 ->  | V26: =U26* '5. 2014 Continuity Schedule'!BE26 ->  | W26: =U26* '5. 2014 Continuity Schedule'!BE29 -> 
A27: microFIT | C27: 0 | D27: 0 | E27: 0 | F27: =C27* '5. 2014 Continuity Schedule'!BE24 -> 0 | G27: =E27* '5. 2014 Continuity Schedule'!BE25 -> 0 | H27: =C27* '5. 2014 Continuity Schedule'!BE26 -> 0 | I27: =C27* '5. 2014 Continuity Schedule'!BE27 -> 0 | J27: =C27* '5. 2014 Continuity Schedule'!BE28 -> 0 | K27: =C27* '5. 2014 Continuity Schedule'!BE29 -> 0 | L27: =D27* '5. 2014 Continuity Schedule'!BE30 -> 0 | M27: ='6. Billing Det. for Def-Var'!#REF!* '5. 2014 Continuity Schedule'!BE31 ->  | N27: ='6. Billing Det. for Def-Var'!#REF!* '5. 2014 Continuity Schedule'!BE32 ->  | O27: ='6. Billing Det. for Def-Var'!#REF!* '5. 2014 Continuity Schedule'!BE33 ->  | P27: ='6. Billing Det. for Def-Var'!#REF!* '5. 2014 Continuity Schedule'!BE34 ->  | Q27: ='6. Billing Det. for Def-Var'!#REF!* '5. 2014 Continuity Schedule'!BE35 ->  | R27: ='6. Billing Det. for Def-Var'!#REF!* '5. 2014 Continuity Schedule'!BE36 ->  | S27: ='6. Billing Det. for Def-Var'!#REF! ->  | V27: =U27* '5. 2014 Continuity Schedule'!BE26 -> 0 | W27: =U27* '5. 2014 Continuity Schedule'!BE29 -> 0
A29: Total | C29: =SUM(C19:C27) ->  | U29: =SUM(U19:U27) ->  | V29: =SUM(V19:V27) ->  | W29: =SUM(W19:W27) ->  | X29: =SUM(X19:X27) -> 0
A32: * RSVA - Power (Excluding Global Adjustment)
A33: ** Used to allocate Account 1551 as this account records the variances arising from the Smart Metering Entity Charges to Residential and GS<50 customers.

Sheet 8. Calculation of Def-Var RR
A12: Input required at cell C15 only. This workshseet calculates rate riders related to the Deferral/Variance Account Disposition (if applicable), associated rate riders for the global adjustment account (1589) and Account 1568. Rate Riders will not be generated for the microFIT class.
A15: Please indicate the Rate Rider Recovery Period (in years) | C15: 1
E17: Balance of Accounts Allocated by kWh/kW (RPP) or Distribution Revenue | F17: Deferral/Variance Account Rate Rider | G17: Allocation of Balance in Account 1589 | H17: kWh and kW for non-RPP, non-WMP, non-Class A | I17: Global Adjustment Rate Rider | J17: Allocation of Account 1568 | K17: Account 1568 Rate Rider
A18: Rate Class | B18: Unit | C18: Billed kWh | D18: Billed kW or kVA
A20: RESIDENTIAL - TIME OF USE | B20: $/kWh | C20: 210212474 | E20: =SUM('7. Allocating Def-Var Balances'!F19:G19)+SUM('7. Allocating Def-Var Balances'!I19:J19)+SUM('7. Allocating Def-Var Balances'!M19:R19)+SUM('7. Allocating Def-Var Balances'!V19:W19) ->  | F20: 0.0033 | G20: 1820.386335 | H20: 21957801 | I20: 0.0001
A21: GENERAL SERVICE LESS THAN 50 KW | B21: $/kWh | C21: 54285767 | E21: =SUM('7. Allocating Def-Var Balances'!F20:G20)+SUM('7. Allocating Def-Var Balances'!I20:J20)+SUM('7. Allocating Def-Var Balances'!M20:R20)+SUM('7. Allocating Def-Var Balances'!V20:W20) ->  | F21: 0.0032 | G21: 395.0832919 | H21: 4765560 | I21: 0.0001
A22: GENERAL SERVICE 50 TO 999 KW | B22: $/kW | C22: 112793637 | D22: 318868 | E22: =SUM('7. Allocating Def-Var Balances'!F21:G21)+SUM('7. Allocating Def-Var Balances'!I21:J21)+SUM('7. Allocating Def-Var Balances'!M21:R21)+SUM('7. Allocating Def-Var Balances'!V21:W21) ->  | F22: 1.126 | G22: 8098.301346 | H22: 276150.3185 | I22: 0.0293
A23: GENERAL SERVICE 1,000 TO 4,999 KW - INTERVAL METERS | B23: $/kW | C23: 108192394 | D23: 293909 | E23: =SUM('7. Allocating Def-Var Balances'!F22:G22)+SUM('7. Allocating Def-Var Balances'!I22:J22)+SUM('7. Allocating Def-Var Balances'!M22:R22)+SUM('7. Allocating Def-Var Balances'!V22:W22) ->  | F23: 1.1717 | G23: 8951.782266 | H23: 293326.2586 | I23: 0.0305
A24: GENERAL SERVICE GREATER THAN 50 kW - WMP | B24: $/kW | C24: 4544387 | D24: 9431 | E24: =SUM('7. Allocating Def-Var Balances'!F23:G23)+SUM('7. Allocating Def-Var Balances'!I23:J23)+SUM('7. Allocating Def-Var Balances'!M23:R23)+SUM('7. Allocating Def-Var Balances'!V23:W23) ->  | F24: 1.2861 | G24: 0 | H24: 0 | I24: 0
A25: UNMETERED SCATTERED LOAD | B25: $/kWh | C25: 838540 | E25: =SUM('7. Allocating Def-Var Balances'!F24:G24)+SUM('7. Allocating Def-Var Balances'!I24:J24)+SUM('7. Allocating Def-Var Balances'!M24:R24)+SUM('7. Allocating Def-Var Balances'!V24:W24) ->  | F25: 0.0032 | G25: 69.51819799 | H25: 838540 | I25: 0.0001
A26: SENTINEL LIGHTING | B26: $/kW | C26: 380342 | D26: 810 | E26: =SUM('7. Allocating Def-Var Balances'!F25:G25)+SUM('7. Allocating Def-Var Balances'!I25:J25)+SUM('7. Allocating Def-Var Balances'!M25:R25)+SUM('7. Allocating Def-Var Balances'!V25:W25) ->  | F26: 1.4942 | G26: 31.53181776 | H26: 810 | I26: 0.0389
A27: STREET LIGHTING | B27: $/kW | C27: 2778881 | D27: 7820 | E27: =SUM('7. Allocating Def-Var Balances'!F26:G26)+SUM('7. Allocating Def-Var Balances'!I26:J26)+SUM('7. Allocating Def-Var Balances'!M26:R26)+SUM('7. Allocating Def-Var Balances'!V26:W26) ->  | F27: 1.1312 | G27: 230.3799456 | H27: 7820 | I27: 0.0295
A28: microFIT
A29: Total | C29: =SUM(C20:C28) -> 494026422 | D29: =SUM(D20:D28) -> 630838 | E29: =SUM(E20:E28) ->  | G29: =SUM(G20:G28) -> 19596.9832 | H29: =SUM(H20:H28) -> 28140007.58 | J29: =SUM(J20:J28) -> 0
A33: One or more rate classes appear to have negligible rate riders in columns F and/or I. As per Appendix B of the Filing Requirements, please provide details of the Applicant's proposal in the Manager's Summary.

Sheet 9. STS - Billing Det & Rates
A11: Shared Tax Savings
A13: ="Enter your " & '1. Information Sheet'!F32 & " Board-Approved Billing Determinents into columns B, C and D." -> Enter your 2012 Board-Approved Billing Determinents into columns B, C and D.
A14: ="Enter your " & '1. Information Sheet'!F32 & " Board-Approved Base monthly service and volumetric charges into columns G, H and I." -> Enter your 2012 Board-Approved Base monthly service and volumetric charges into columns G, H and I.
A16: Rate Class | B16: Units | C16: Re-based Billed Customers or Connections | D16: Re-based Billed kWh | E16: Re-based Billed kW (if applicable) | G16: ='1. Information Sheet'!F32 &" Base Monthly Service Charge" -> 2012 Base Monthly Service Charge | H16: ='1. Information Sheet'!F32 &" Base Distribution Volumetric Rate kWh" -> 2012 Base Distribution Volumetric Rate kWh | I16: ='1. Information Sheet'!F32 &" Base Distribution Volumetric Rate kW" -> 2012 Base Distribution Volumetric Rate kW
A17: RESIDENTIAL - TIME OF USE | B17: $/kWh | G17: 12.25 | H17: 0.0115 | I17: 0
A18: GENERAL SERVICE LESS THAN 50 KW | B18: $/kWh | G18: 26.5 | H18: 0.0083 | I18: 0
A19: GENERAL SERVICE 50 TO 999 KW | B19: $/kW | G19: 74.64 | H19: 0 | I19: 3.3287
A20: GENERAL SERVICE 1,000 TO 4,999 KW - INTERVAL METERS | B20: $/kW | G20: 173.31 | H20: 0 | I20: 3.0517
A21: GENERAL SERVICE GREATER THAN 50 kW - WMP | B21: $/kW | G21: 74.64 | H21: 0 | I21: 3.3287
A22: UNMETERED SCATTERED LOAD | B22: $/kWh | G22: 6.5 | H22: 0.0043 | I22: 0
A23: SENTINEL LIGHTING | B23: $/kW | G23: 4.88 | H23: 0 | I23: 18.4557
A24: STREET LIGHTING | B24: $/kW | G24: 2.14 | H24: 0 | I24: 28.9538
A25: microFIT

Sheet 10. STS - Rebased Rev
A12: Calculation of Rebased Revenue Requirement. No input required.
A15: Rate Class | C15: Re-based Billed Customers or Connections | D15: Re-based Billed kWh | E15: Re-based Billed kW | G15: Rate ReBal Base Service Charge | H15: Rate ReBal Base Distribution Volumetric Rate kWh | I15: Rate ReBal Base Distribution Volumetric Rate kW | K15: Service Charge Revenue | L15: Distribution Volumetric Rate Revenue kWh | M15: Distribution Volumetric Rate Revenue kW | N15: Revenue Requirement from Rates | P15: Service Charge % Revenue | Q15: Distribution Volumetric Rate % Revenue kWh | R15: Distribution Volumetric Rate % Revenue kW | S15: Total % Revenue
C16: A | D16: B | E16: C | G16: D | H16: E | I16: F | K16: G = A * D *12 | L16: H = B * E | M16: I = C * F | N16: J = G + H + I | P16: K = G / J | Q16: L = H / J | R16: M = I / J | S16: N = J / R
A17: RESIDENTIAL - TIME OF USE | G17: 12.25 | H17: 0.0115 | I17: 0 | K17: =G17*C17*12 -> 0 | L17: 0 | M17: 0 | N17: =SUM(K17,L17,M17) -> 0 | P17: =IF(ISERROR(K17/N17),0,K17/N17) -> 0 | Q17: =IF(ISERROR(L17/N17),0,L17/N17) -> 0 | R17: =IF(ISERROR(M17/N17),0,M17/N17) -> 0 | S17: =N17/N26 -> 
A18: GENERAL SERVICE LESS THAN 50 KW | G18: 26.5 | H18: 0.0083 | I18: 0 | K18: =G18*C18*12 -> 0 | L18: 0 | M18: 0 | N18: =SUM(K18,L18,M18) -> 0 | P18: =IF(ISERROR(K18/N18),0,K18/N18) -> 0 | Q18: =IF(ISERROR(L18/N18),0,L18/N18) -> 0 | R18: =IF(ISERROR(M18/N18),0,M18/N18) -> 0 | S18: =N18/N26 -> 
A19: GENERAL SERVICE 50 TO 999 KW | G19: 74.64 | H19: 0 | I19: 3.3287 | K19: =G19*C19*12 -> 0 | L19: 0 | M19: 0 | N19: =SUM(K19,L19,M19) -> 0 | P19: =IF(ISERROR(K19/N19),0,K19/N19) -> 0 | Q19: =IF(ISERROR(L19/N19),0,L19/N19) -> 0 | R19: =IF(ISERROR(M19/N19),0,M19/N19) -> 0 | S19: =N19/N26 -> 
A20: GENERAL SERVICE 1,000 TO 4,999 KW - INTERVAL METERS | G20: 173.31 | H20: 0 | I20: 3.0517 | K20: =G20*C20*12 -> 0 | L20: 0 | M20: 0 | N20: =SUM(K20,L20,M20) -> 0 | P20: =IF(ISERROR(K20/N20),0,K20/N20) -> 0 | Q20: =IF(ISERROR(L20/N20),0,L20/N20) -> 0 | R20: =IF(ISERROR(M20/N20),0,M20/N20) -> 0 | S20: =N20/N26 -> 
A21: GENERAL SERVICE GREATER THAN 50 kW - WMP | G21: 74.64 | H21: 0 | I21: 3.3287 | K21: =G21*C21*12 -> 0 | L21: 0 | M21: 0 | N21: =SUM(K21,L21,M21) -> 0 | P21: =IF(ISERROR(K21/N21),0,K21/N21) -> 0 | Q21: =IF(ISERROR(L21/N21),0,L21/N21) -> 0 | R21: =IF(ISERROR(M21/N21),0,M21/N21) -> 0 | S21: =N21/N26 -> 
A22: UNMETERED SCATTERED LOAD | G22: 6.5 | H22: 0.0043 | I22: 0 | K22: =G22*C22*12 -> 0 | L22: 0 | M22: 0 | N22: =SUM(K22,L22,M22) -> 0 | P22: =IF(ISERROR(K22/N22),0,K22/N22) -> 0 | Q22: =IF(ISERROR(L22/N22),0,L22/N22) -> 0 | R22: =IF(ISERROR(M22/N22),0,M22/N22) -> 0 | S22: =N22/N26 -> 
A23: SENTINEL LIGHTING | G23: 4.88 | H23: 0 | I23: 18.4557 | K23: =G23*C23*12 -> 0 | L23: 0 | M23: 0 | N23: =SUM(K23,L23,M23) -> 0 | P23: =IF(ISERROR(K23/N23),0,K23/N23) -> 0 | Q23: =IF(ISERROR(L23/N23),0,L23/N23) -> 0 | R23: =IF(ISERROR(M23/N23),0,M23/N23) -> 0 | S23: =N23/N26 -> 
A24: STREET LIGHTING | G24: 2.14 | H24: 0 | I24: 28.9538 | K24: =G24*C24*12 -> 0 | L24: 0 | M24: 0 | N24: =SUM(K24,L24,M24) -> 0 | P24: =IF(ISERROR(K24/N24),0,K24/N24) -> 0 | Q24: =IF(ISERROR(L24/N24),0,L24/N24) -> 0 | R24: =IF(ISERROR(M24/N24),0,M24/N24) -> 0 | S24: =N24/N26 -> 
A25: microFIT | K25: =G25*C25*12 -> 0 | L25: 0 | M25: 0 | N25: =SUM(K25,L25,M25) -> 0 | P25: =IF(ISERROR(K25/N25),0,K25/N25) -> 0 | Q25: =IF(ISERROR(L25/N25),0,L25/N25) -> 0 | R25: =IF(ISERROR(M25/N25),0,M25/N25) -> 0 | S25: =N25/N26 -> 
A26: Total | C26: =SUM(C17:C25) -> 0 | D26: =SUM(D17:D25) -> 0 | E26: =SUM(E17:E25) -> 0 | K26: =SUM(K17:K25) -> 0 | L26: =SUM(L17:L25) -> 0 | M26: =SUM(M17:M25) -> 0 | N26: =SUM(N17:N25) -> 0 | S26: =SUM(S17:S25) -> 

Sheet 9. STS - Billing Det & Rate HID (hidden)
A11: Shared Tax Savings
A12: ="Enter your " & '1. Information Sheet'!F32 & " Board-Approved Billing Determinents into columns B, C and D." -> Enter your 2012 Board-Approved Billing Determinents into columns B, C and D.
A16: Rate Class | B16: Units | C16: Re-based Billed Customers or Connections | D16: Re-based Billed kWh | E16: Re-based Billed kW (if applicable) | G16: ='1. Information Sheet'!F32 &" Base Monthly Service Charge" -> 2012 Base Monthly Service Charge | H16: ='1. Information Sheet'!F32 &" Base Distribution Volumetric Rate kWh" -> 2012 Base Distribution Volumetric Rate kWh | I16: ='1. Information Sheet'!F32 &" Base Distribution Volumetric Rate kW" -> 2012 Base Distribution Volumetric Rate kW
A17: RESIDENTIAL - TIME OF USE | B17: $/kWh | C17: 19530 | D17: 210212474 | E17: 0 | G17: 12.25 | H17: 0.0115 | I17: 0
A18: GENERAL SERVICE LESS THAN 50 KW | B18: $/kWh | C18: 1694 | D18: 54285767 | E18: 0 | G18: 26.5 | H18: 0.0083 | I18: 0
A19: GENERAL SERVICE 50 TO 999 KW | B19: $/kW | C19: 176 | D19: 112793637 | E19: 318868 | G19: 74.64 | H19: 0 | I19: 3.3287
A20: GENERAL SERVICE 1,000 TO 4,999 KW - INTERVAL METERS | B20: $/kW | C20: 13 | D20: 108192394 | E20: 293909 | G20: 173.31 | H20: 0 | I20: 3.0517
A21: GENERAL SERVICE GREATER THAN 50 kW - WMP | B21: $/kW | C21: 1 | D21: 4544387 | E21: 9431 | G21: 74.64 | H21: 0 | I21: 3.3287
A22: UNMETERED SCATTERED LOAD | B22: $/kWh | C22: 175 | D22: 838540 | E22: 0 | G22: 6.5 | H22: 0.0043 | I22: 0
A23: SENTINEL LIGHTING | B23: $/kW | C23: 175 | D23: 380342 | E23: 810 | G23: 4.88 | H23: 0 | I23: 18.4557
A24: STREET LIGHTING | B24: $/kW | C24: 4474 | D24: 2778881 | E24: 7820 | G24: 2.14 | H24: 0 | I24: 28.9538
A25: microFIT | B25: 0 | C25: 0 | D25: 0 | E25: 0 | G25: 0 | H25: 0 | I25: 0

Sheet 11. STS - Tax Change
T1: Rate Base | U1: Federal Tax Rate
T2: 500000 | U2: 0.11
T3: 10000000 | U3: 0.11
T4: =T3+100000 -> 10100000 | U4: 0.11
T5: =T4+100000 -> 10200000 | U5: 0.11
T6: 10300000 | U6: 0.11
T7: 10400000 | U7: 0.11
T8: 10500000 | U8: 0.11
T9: 10600000 | U9: 0.11
T10: 10700000 | U10: 0.11
T11: 10800000 | U11: 0.11
T12: 10900000 | U12: 0.11
A13: Summary - Sharing of Tax Change Forecast Amounts | T13: 11000000 | U13: 0.11
T14: 11100000 | U14: 0.111
A15: ="For the " & '1. Information Sheet'!F32 & " year, enter any Tax Credits from the Cost of Service Tax Calculation (Positive #)" -> For the 2012 year, enter any Tax Credits from the Cost of Service Tax Calculation (Positive #) | L15: 31000 | T15: 11200000 | U15: =U14+0.13% -> 0.1123 | V15: =U15-U14 -> 0.0013
T16: 11300000 | U16: =U15+0.13% -> 0.1136 | V16: =U16-U15 -> 0.0013
T17: 11400000 | U17: =U16+0.13% -> 0.1149 | V17: 0.0013
A18: 1. Tax Related Amounts Forecast from Capital Tax Rate Changes | L18: ='1. Information Sheet'!F32 -> 2012 | N18: 2015 | T18: 11500000 | U18: =U17+0.13% -> 0.1162 | V18: 0.0013
A19: Taxable Capital (if you are not claiming capital tax, please enter your Board-Approved Rate Base) | L19: 42429005 | N19: =L19 -> 42429005 | T19: 11600000 | U19: =U18+0.12% -> 0.1174 | V19: 0.0012
T20: 11700000 | U20: =U19+0.12% -> 0.1186 | V20: 0.0012
A21: Deduction from taxable capital up to $15,000,000 | L21: 15000000 | N21: =L21 -> 15000000 | T21: 11800000 | U21: =U20+0.12% -> 0.1198 | V21: 0.0012
T22: 11900000 | U22: =U21+0.12% -> 0.121 | V22: 0.0012
A23: Net Taxable Capital | L23: =L19-L21 -> 27429005 | N23: =N19-N21 -> 27429005 | T23: 12000000 | U23: =U22+0.112% -> 0.12212 | V23: 0.00112
T24: 12100000 | U24: 0.12324 | V24: 0.00112
A25: Rate | L25: 0 | N25: 0 | T25: 12200000 | U25: 0.12436 | V25: 0.00112
T26: 12300000 | U26: 0.12548 | V26: 0.00112
A27: Ontario Capital Tax (Deductible, not grossed-up) | L27: =IF(L23>0, L23*L25, 0)*181/365 -> 0 | N27: 0 | T27: 12400000 | U27: 0.1266 | V27: 0.00112
T28: 12500000 | U28: 0.12772 | V28: 0.00112
A29: 2. Tax Related Amounts Forecast from lncome Tax Rate Changes | T29: 12600000 | U29: =U28+0.102% -> 0.12874 | V29: 0.00102
A30: Regulatory Taxable Income | L30: 306779 | N30: =L30 -> 306779 | T30: 12700000 | U30: =U29+0.102% -> 0.12976 | V30: 0.00102
T31: 12800000 | U31: =U30+0.102% -> 0.13078 | V31: 0.00102
A32: Corporate Tax Rate | L32: 0.0765 | N32: =IF(N30=0,0,IF(N30<=500000,4.5%+11%,IF(N30>500000,(11.5%*N30-35000)/N30+VLOOKUP(N19,T:U,2,TRUE),""))) -> 0.155 | T32: 12900000 | U32: =U31+0.102% -> 0.1318 | V32: 0.00102
T33: 13000000 | U33: =U32+0.102% -> 0.13282 | V33: 0.00102
A34: Tax Impact | L34: 26762 | N34: =N30*N32-L15 -> 16550.745 | T34: 13100000 | U34: =U33+0.096% -> 0.13378 | V34: 0.00096
T35: 13200000 | U35: =U34+0.096% -> 0.13474 | V35: 0.00096
A36: Grossed-up Tax Amount | L36: 28979 | N36: =N34/(1-N32) -> 19586.68047 | T36: 13300000 | U36: =U35+0.096% -> 0.1357 | V36: 0.00096
T37: 13400000 | U37: =U36+0.096% -> 0.13666 | V37: 0.00096
A38: Tax Related Amounts Forecast from Capital Tax Rate Changes | L38: =L27 -> 0 | N38: =N27 -> 0 | T38: 13500000 | U38: =U37+0.096% -> 0.13762 | V38: 0.00096
T39: 13600000 | U39: =U38+0.088% -> 0.1385 | V39: 0.00088
A40: Tax Related Amounts Forecast from lncome Tax Rate Changes | L40: =L36 -> 28979 | N40: =N36 -> 19586.68047 | T40: 13700000 | U40: =U39+0.088% -> 0.13938 | V40: 0.00088
T41: 13800000 | U41: =U40+0.088% -> 0.14026 | V41: 0.00088
A42: Total Tax Related Amounts | L42: =SUM(L40,L38) -> 28979 | N42: =SUM(N40,N38) -> 19586.68047 | T42: 13900000 | U42: =U41+0.088% -> 0.14114 | V42: 0.00088
T43: 14000000 | U43: =U42+0.088% -> 0.14202 | V43: 0.00088
A44: Incremental Tax Savings | N44: =N42-L42 -> -9392.319527 | T44: 14100000 | U44: =U43+0.082% -> 0.14284 | V44: 0.00082
T45: 14200000 | U45: =U44+0.082% -> 0.14366 | V45: 0.00082
A46: Sharing of Tax Savings (50%) | N46: =0.5*N44 -> -4696.159763 | T46: 14300000 | U46: =U45+0.082% -> 0.14448 | V46: 0.00082
T47: 14400000 | U47: =U46+0.082% -> 0.1453 | V47: 0.00082
T48: 14500000 | U48: =U47+0.082% -> 0.14612 | V48: 0.00082
T49: 14600000 | U49: =U48+0.076% -> 0.14688 | V49: 0.00076
T50: 14700000 | U50: =U49+0.076% -> 0.14764 | V50: 0.00076
T51: 14800000 | U51: =U50+0.076% -> 0.1484 | V51: 0.00076
T52: 14900000 | U52: =U51+0.076% -> 0.14916 | V52: 0.00076
T53: 15000000 | U53: 0.15 | V53: 0.00084

Sheet 12. STS - Tax Change Rate Rider
A11: This worksheet calculates a tax change volumetric rate rider. If the rate riders are material (round to 4 decimal places), then the outputs in columns M and O will appear on Sheet 27 - Final Tariff Schedule.
A15: Rate Class | C15: Total Revenue $ by Rate Class | E15: Total Revenue % by Rate Class | G15: Allocation of Tax Savings by Rate Class | I15: Billed kWh | K15: Billed kW | M15: Distribution Volumetric Rate kWh Rate Rider | O15: Distribution Volumetric Rate kW Rate Rider
A17: RESIDENTIAL - TIME OF USE | C17: 0 | E17: =C17/C26 ->  | G17: =E17*G26 -> 
A18: GENERAL SERVICE LESS THAN 50 KW | C18: 0 | E18: =C18/C26 ->  | G18: =E18*G26 -> 
A19: GENERAL SERVICE 50 TO 999 KW | C19: 0 | E19: =C19/C26 ->  | G19: =E19*G26 -> 
A20: GENERAL SERVICE 1,000 TO 4,999 KW - INTERVAL METERS | C20: 0 | E20: =C20/C26 ->  | G20: =E20*G26 -> 
A21: GENERAL SERVICE GREATER THAN 50 kW - WMP | C21: 0 | E21: =C21/C26 ->  | G21: =E21*G26 -> 
A22: UNMETERED SCATTERED LOAD | C22: 0 | E22: =C22/C26 ->  | G22: =E22*G26 -> 
A23: SENTINEL LIGHTING | C23: 0 | E23: =C23/C26 ->  | G23: =E23*G26 -> 
A24: STREET LIGHTING | C24: 0 | E24: =C24/C26 ->  | G24: =E24*G26 -> 
A25: microFIT | C25: 0 | E25: =C25/C26 ->  | G25: =E25*G26 -> 
A26: Total | C26: =SUM(C17:C25) -> 0 | E26: =SUM(E17:E25) ->  | G26: -4696.16 | I26: =SUM(I17:I25) -> 0 | K26: =SUM(K17:K25) -> 0

Sheet 13. RTSR Rate Sheet
A13: No input required. This sheet consolidates all Current Retail Transmission Rates entered on Sheet 4.
A15: Rate Class | B15: Rate Description | C15: Unit | D15: RTSR-Network | E15: RTSR-Connection
A17: RESIDENTIAL - TIME OF USE | B17: Retail Transmission Rate - Network Service Rate | C17: $/kWh | D17: 0.0073
A18: RESIDENTIAL - TIME OF USE | B18: Retail Transmission Rate - Line and Transformation Connection Service Rate | C18: $/kWh | E18: 0.0052
A19: GENERAL SERVICE LESS THAN 50 KW | B19: Retail Transmission Rate - Network Service Rate | C19: $/kWh | D19: 0.0065
A20: GENERAL SERVICE LESS THAN 50 KW | B20: Retail Transmission Rate - Line and Transformation Connection Service Rate | C20: $/kWh | E20: 0.0049
A21: GENERAL SERVICE 50 TO 999 KW | B21: Retail Transmission Rate - Network Service Rate | C21: $/kW | D21: 2.8269
A22: GENERAL SERVICE 50 TO 999 KW | B22: Retail Transmission Rate - Line and Transformation Connection Service Rate | C22: $/kW | E22: 2.0801
A23: GENERAL SERVICE 1,000 TO 4,999 KW - INTERVAL METERS | B23: Retail Transmission Rate - Network Service Rate | C23: $/kW | D23: 2.8269
A24: GENERAL SERVICE 1,000 TO 4,999 KW - INTERVAL METERS | B24: Retail Transmission Rate - Line and Transformation Connection Service Rate | C24: $/kW | E24: 2.0801
A25: UNMETERED SCATTERED LOAD | B25: Retail Transmission Rate - Network Service Rate | C25: $/kWh | D25: 0.0065
A26: UNMETERED SCATTERED LOAD | B26: Retail Transmission Rate - Line and Transformation Connection Service Rate | C26: $/kWh | E26: 0.0049
A27: SENTINEL LIGHTING | B27: Retail Transmission Rate - Network Service Rate | C27: $/kW | D27: 2.0167
A28: SENTINEL LIGHTING | B28: Retail Transmission Rate - Line and Transformation Connection Service Rate | C28: $/kW | E28: 1.4975
A29: STREET LIGHTING | B29: Retail Transmission Rate - Network Service Rate | C29: $/kW | D29: 2.0075
A30: STREET LIGHTING | B30: Retail Transmission Rate - Line and Transformation Connection Service Rate | C30: $/kW | E30: 1.4669

Sheet 14. RTSR RRR Data
A12: In the green shaded cells, enter the most recent reported RRR billing determinants. Please ensure that billing determinants are non-loss adjusted.
A14: Rate Class | B14: Rate Description | C14: Unit | D14: Non-Loss Adjusted Metered kWh | E14: Non-Loss Adjusted Metered kW | F14: Applicable Loss Factor | H14: Load Factor | I14: Loss Adjusted Billed kWh | J14: Billed kW
A15: RESIDENTIAL - TIME OF USE | B15: Retail Transmission Rate - Network Service Rate | C15: $/kWh | D15: 207413684 | E15: 0 | F15: 1.0602 | H15: =IF(C15="$/kW", D15/(E15* 30.4 * 24), "" ) ->  | I15: =IF(OR(F15=0, OR(ISBLANK(F15), TRIM(F15)="")), F15, F15 * D15) -> 219899987.8 | J15: =IF(OR(F15=0, OR(ISBLANK(F15), TRIM(F15)="")), E15, E15) -> 0
A16: RESIDENTIAL - TIME OF USE | B16: Retail Transmission Rate - Line and Transformation Connection Service Rate | C16: $/kWh | D16: 207413684 | E16: 0 | F16: 1.0602 | H16: =IF(C16="$/kW", D16/(E16* 30.4 * 24), "" ) ->  | I16: 219899987.8 | J16: 0
A17: GENERAL SERVICE LESS THAN 50 KW | B17: Retail Transmission Rate - Network Service Rate | C17: $/kWh | D17: 56899723 | E17: 0 | F17: 1.0602 | H17: =IF(C17="$/kW", D17/(E17* 30.4 * 24), "" ) ->  | I17: 60325086.32 | J17: 0
A18: GENERAL SERVICE LESS THAN 50 KW | B18: Retail Transmission Rate - Line and Transformation Connection Service Rate | C18: $/kWh | D18: 56899723 | E18: 0 | F18: 1.0602 | H18: =IF(C18="$/kW", D18/(E18* 30.4 * 24), "" ) ->  | I18: 60325086.32 | J18: 0
A19: GENERAL SERVICE 50 TO 999 KW | B19: Retail Transmission Rate - Network Service Rate | C19: $/kW | D19: 0 | E19: 330614 | F19: 0 | H19: 0 | I19: 0 | J19: 330614
A20: GENERAL SERVICE 50 TO 999 KW | B20: Retail Transmission Rate - Line and Transformation Connection Service Rate | C20: $/kW | D20: 0 | E20: 330614 | F20: 0 | H20: 0 | I20: 0 | J20: 330614
A21: GENERAL SERVICE 1,000 TO 4,999 KW - INTERVAL METERS | B21: Retail Transmission Rate - Network Service Rate | C21: $/kW | D21: 0 | E21: 296493 | F21: 0 | H21: 0 | I21: 0 | J21: 296493
A22: GENERAL SERVICE 1,000 TO 4,999 KW - INTERVAL METERS | B22: Retail Transmission Rate - Line and Transformation Connection Service Rate | C22: $/kW | D22: 0 | E22: 296493 | F22: 0 | H22: 0 | I22: 0 | J22: 296493
A23: UNMETERED SCATTERED LOAD | B23: Retail Transmission Rate - Network Service Rate | C23: $/kWh | D23: 900276 | E23: 0 | F23: 1.0602 | H23: =IF(C23="$/kW", D23/(E23* 30.4 * 24), "" ) ->  | I23: 954472.6152 | J23: 0
A24: UNMETERED SCATTERED LOAD | B24: Retail Transmission Rate - Line and Transformation Connection Service Rate | C24: $/kWh | D24: 900276 | E24: 0 | F24: 1.0502 | H24: =IF(C24="$/kW", D24/(E24* 30.4 * 24), "" ) ->  | I24: 945469.8552 | J24: 0
A25: SENTINEL LIGHTING | B25: Retail Transmission Rate - Network Service Rate | C25: $/kW | D25: 0 | E25: 686 | F25: 0 | H25: 0 | I25: 0 | J25: 686
A26: SENTINEL LIGHTING | B26: Retail Transmission Rate - Line and Transformation Connection Service Rate | C26: $/kW | D26: 0 | E26: 686 | F26: 0 | H26: 0 | I26: 0 | J26: 686
A27: STREET LIGHTING | B27: Retail Transmission Rate - Network Service Rate | C27: $/kW | D27: 0 | E27: 7731 | F27: 0 | H27: 0 | I27: 0 | J27: 7731
A28: STREET LIGHTING | B28: Retail Transmission Rate - Line and Transformation Connection Service Rate | C28: $/kW | D28: 0 | E28: 7731 | F28: 0 | H28: 0 | I28: 0 | J28: 7731

Sheet 14. RTSR RRR Data Copy (hidden)
A12: In the green shaded cells, enter the most recent reported RRR billing determinants. Please ensure that billing determinants are non-loss adjusted.
A14: Rate Class | B14: Rate Description | C14: Unit | D14: Non-Loss Adjusted Metered kWh | E14: Non-Loss Adjusted Metered kW | F14: Applicable Loss Factor | H14: Load Factor | I14: Loss Adjusted Billed kWh | J14: Billed kW
A15: RESIDENTIAL - TIME OF USE | B15: Retail Transmission Rate - Network Service Rate | C15: $/kWh | D15: 207413684 | E15: 0 | F15: 1.0602
A16: RESIDENTIAL - TIME OF USE | B16: Retail Transmission Rate - Line and Transformation Connection Service Rate | C16: $/kWh | D16: 207413684 | E16: 0 | F16: 1.0602
A17: GENERAL SERVICE LESS THAN 50 KW | B17: Retail Transmission Rate - Network Service Rate | C17: $/kWh | D17: 56899723 | E17: 0 | F17: 1.0602
A18: GENERAL SERVICE LESS THAN 50 KW | B18: Retail Transmission Rate - Line and Transformation Connection Service Rate | C18: $/kWh | D18: 56899723 | E18: 0 | F18: 1.0602
A19: GENERAL SERVICE 50 TO 999 KW | B19: Retail Transmission Rate - Network Service Rate | C19: $/kW | D19: 0 | E19: 330614 | F19: 0
A20: GENERAL SERVICE 50 TO 999 KW | B20: Retail Transmission Rate - Line and Transformation Connection Service Rate | C20: $/kW | D20: 0 | E20: 330614 | F20: 0
A21: GENERAL SERVICE 1,000 TO 4,999 KW - INTERVAL METERS | B21: Retail Transmission Rate - Network Service Rate | C21: $/kW | D21: 0 | E21: 296493 | F21: 0
A22: GENERAL SERVICE 1,000 TO 4,999 KW - INTERVAL METERS | B22: Retail Transmission Rate - Line and Transformation Connection Service Rate | C22: $/kW | D22: 0 | E22: 296493 | F22: 0
A23: UNMETERED SCATTERED LOAD | B23: Retail Transmission Rate - Network Service Rate | C23: $/kWh | D23: 900276 | E23: 0 | F23: 1.0602
A24: UNMETERED SCATTERED LOAD | B24: Retail Transmission Rate - Line and Transformation Connection Service Rate | C24: $/kWh | D24: 900276 | E24: 0 | F24: 1.0502
A25: SENTINEL LIGHTING | B25: Retail Transmission Rate - Network Service Rate | C25: $/kW | D25: 0 | E25: 686 | F25: 0
A26: SENTINEL LIGHTING | B26: Retail Transmission Rate - Line and Transformation Connection Service Rate | C26: $/kW | D26: 0 | E26: 686 | F26: 0
A27: STREET LIGHTING | B27: Retail Transmission Rate - Network Service Rate | C27: $/kW | D27: 0 | E27: 7731 | F27: 0
A28: STREET LIGHTING | B28: Retail Transmission Rate - Line and Transformation Connection Service Rate | C28: $/kW | D28: 0 | E28: 7731 | F28: 0

Sheet 15. RTSR - UTRs & Sub-Tx
B18: Uniform Transmission Rates | C18: Unit | E18: Effective January 1, 2013 | G18: Effective January 1, 2014 | I18: Effective January 1, 2015
B20: Rate Description | E20: Rate | G20: Rate | I20: Rate
B22: Network Service Rate | C22: kW | E22: 3.63 | G22: 3.82 | I22: 3.78
B24: Line Connection Service Rate | C24: kW | E24: 0.75 | G24: 0.82 | I24: 0.86
B26: Transformation Connection Service Rate | C26: kW | E26: 1.85 | G26: 1.98 | I26: 2
B29: Hydro One Sub-Transmission Rates | C29: Unit | E29: Effective January 1, 2013 | G29: Effective January 1, 2014 | I29: Effective January 1, 2015
B33: Rate Description | E33: Rate | G33: Rate | I33: Rate
B35: Network Service Rate | C35: kW | E35: 3.18 | G35: 3.23 | I35: 3.23
B37: Line Connection Service Rate | C37: kW | E37: 0.7 | G37: 0.65 | I37: 0.65
B39: Transformation Connection Service Rate | C39: kW | E39: 1.63 | G39: 1.62 | I39: 1.62
B41: Both Line and Transformation Connection Service Rate | C41: kW | E41: =E39+E37 -> 2.33 | G41: =G39+G37 -> 2.27 | I41: 2.27
B44: If needed , add extra host here (I) | C44: Unit | E44: Effective January 1, 2013 | G44: Effective January 1, 2014 | I44: Effective January 1, 2015
B48: Rate Description | E48: Rate | G48: Rate | I48: Rate
B50: Network Service Rate | C50: kW
B52: Line Connection Service Rate | C52: kW
B54: Transformation Connection Service Rate | C54: kW
B56: Both Line and Transformation Connection Service Rate | C56: kW | E56: =E54+E52 -> 0 | G56: =G54+G52 -> 0 | I56: =I54+I52 -> 0
B59: If needed , add extra host here (II) | C59: Unit | E59: Effective January 1, 2013 | G59: Effective January 1, 2014 | I59: Effective January 1, 2015
B63: Rate Description | E63: Rate | G63: Rate | I63: Rate
B65: Network Service Rate | C65: kW
B67: Line Connection Service Rate | C67: kW
B69: Transformation Connection Service Rate | C69: kW
B71: Both Line and Transformation Connection Service Rate | C71: kW | E71: =E69+E67 -> 0 | G71: =G69+G67 -> 0 | I71: =I69+I67 -> 0
B75: Hydro One Sub-Transmission Rate Rider 9A | C75: Unit | E75: Effective January 1, 2013 | G75: Effective January 1, 2014 | I75: Effective January 1, 2015
B77: Rate Description | E77: Rate | G77: Rate | I77: Rate
B79: RSVA Transmission network – 4714 – which affects 1584 | C79: kW | E79: 0 | G79: 0.1465 | I79: 0.1465
B81: RSVA Transmission connection – 4716 – which affects 1586 | C81: kW | E81: 0 | G81: 0.0667 | I81: 0.0667
B83: RSVA LV – 4750 – which affects 1550 | C83: kW | E83: 0 | G83: 0.0475 | I83: 0.0475
B85: RARA 1 – 2252 – which affects 1590 | C85: kW | E85: 0 | G85: 0.0419 | I85: 0.0419
B87: RARA 1 – 2252 – which affects 1590 (2008) | C87: kW | E87: 0 | G87: -0.027 | I87: -0.027
B89: RARA 1 – 2252 – which affects 1590 (2009) | C89: kW | E89: 0 | G89: -0.0006 | I89: -0.0006
B91: Hydro One Sub-Transmission Rate Rider 9A | C91: kW | E91: =SUM(E79:E89) -> 0 | G91: =SUM(G79:G89) -> 0.275 | I91: =SUM(I79:I89) -> 0.275
E94: Historical 2013 | G94: Current 2014 | I94: Forecast 2015
B95: Low Voltage Switchgear Credit (if applicable, enter as a negative value) | C95: $

Sheet 16. RTSR - Historical Wholesale
B13: In the green shaded cells, enter billing detail for wholesale transmission for the same reporting period as the billing determinants on Sheet "14. RTSR RRR Data". For Hydro One Sub-transmission Rates, if you are charged a combined Line and Transformer connection rate, please ensure that both the line connection and transformer connection columns are completed.
B16: IESO | D16: Network | H16: Line Connection | L16: Transformation Connection | P16: Total Line
B17: Month | D17: Units Billed | E17: Rate | F17: Amount | H17: Units Billed | I17: Rate | J17: Amount | L17: Units Billed | M17: Rate | N17: Amount | P17: Amount
B19: January | D19: 8435 | E19: 3.63 | F19: 30619.05 | H19: 8820 | I19: 0.75 | J19: 6615 | L19: 8820 | M19: 1.85 | N19: 16317 | P19: =J19+N19 -> 22932
B20: February | D20: 8091 | E20: 3.63 | F20: 29370.33 | H20: 8238 | I20: 0.75 | J20: 6178.5 | L20: 8238 | M20: 1.85 | N20: 15240.3 | P20: 21418.8
B21: March | D21: 9143 | E21: 3.63 | F21: 33189.09 | H21: 11096 | I21: 0.75 | J21: 8322 | L21: 11096 | M21: 1.85 | N21: 20527.6 | P21: 28849.6
B22: April | D22: 13755 | E22: 3.63 | F22: 49930.65 | H22: 16951 | I22: 0.75 | J22: 12713.25 | L22: 16951 | M22: 1.85 | N22: 31359.35 | P22: 44072.6
B23: May | D23: 16944 | E23: 3.63 | F23: 61506.72 | H23: 19938 | I23: 0.75 | J23: 14953.5 | L23: 19938 | M23: 1.85 | N23: 36885.3 | P23: 51838.8
B24: June | D24: 15032 | E24: 3.63 | F24: 54566.16 | H24: 15288 | I24: 0.75 | J24: 11466 | L24: 15288 | M24: 1.85 | N24: 28282.8 | P24: 39748.8
B25: July | D25: 16460 | E25: 3.63 | F25: 59749.8 | H25: 17416 | I25: 0.75 | J25: 13062 | L25: 17416 | M25: 1.85 | N25: 32219.6 | P25: 45281.6
B26: August | D26: 15953 | E26: 3.63 | F26: 57909.39 | H26: 16709 | I26: 0.75 | J26: 12531.75 | L26: 16709 | M26: 1.85 | N26: 30911.65 | P26: 43443.4
B27: September | D27: 16720 | E27: 3.63 | F27: 60693.6 | H27: 17168 | I27: 0.75 | J27: 12876 | L27: 17168 | M27: 1.85 | N27: 31760.8 | P27: 44636.8
B28: October | D28: 12136 | E28: 3.63 | F28: 44053.68 | H28: 13533 | I28: 0.75 | J28: 10149.75 | L28: 13533 | M28: 1.85 | N28: 25036.05 | P28: 35185.8
B29: November | D29: 12371 | E29: 3.63 | F29: 44906.73 | H29: 13397 | I29: 0.75 | J29: 10047.75 | L29: 13397 | M29: 1.85 | N29: 24784.45 | P29: 34832.2
B30: December | D30: 12483 | E30: 3.63 | F30: 45313.29 | H30: 13540 | I30: 0.75 | J30: 10155 | L30: 13540 | M30: 1.85 | N30: 25049 | P30: 35204
B32: Total | D32: =SUM(D19:D30) -> 157523 | E32: =IF(D32<>0,F32/D32,0) -> 3.63 | F32: =SUM(F19:F30) -> 571808.49 | H32: =SUM(H19:H30) -> 172094 | I32: =IF(H32<>0,J32/H32,0) -> 0.75 | J32: =SUM(J19:J30) -> 129070.5 | L32: =SUM(L19:L30) -> 172094 | M32: =IF(L32<>0,N32/L32,0) -> 1.85 | N32: =SUM(N19:N30) -> 318373.9 | P32: =SUM(P19:P30) -> 447444.4
B34: Hydro One | D34: Network | H34: Line Connection | L34: Transformation Connection | P34: Total Line
B36: Month | D36: Units Billed | E36: Rate | F36: Amount | H36: Units Billed | I36: Rate | J36: Amount | L36: Units Billed | M36: Rate | N36: Amount | P36: Amount
B38: January | D38: 76187 | E38: 3.18 | F38: 242274.66 | H38: 77473 | I38: 0.7 | J38: 54231.1 | L38: 77473 | M38: 1.63 | N38: 126280.99 | P38: =J38+N38 -> 180512.09
B39: February | D39: 73034 | E39: 3.18 | F39: 232248.12 | H39: 74422 | I39: 0.7 | J39: 52095.4 | L39: 74422 | M39: 1.63 | N39: 121307.86 | P39: 173403.26
B40: March | D40: 65312 | E40: 3.18 | F40: 207692.16 | H40: 68203 | I40: 0.7 | J40: 47742.1 | L40: 68203 | M40: 1.63 | N40: 111170.89 | P40: 158912.99
B41: April | D41: 64427.39 | E41: 3.18 | F41: 204879.12 | H41: 66640.3 | I41: 0.7 | J41: 46648.21 | L41: 66640.3 | M41: 1.63 | N41: 108623.689 | P41: 155271.899
B42: May | D42: 76330.8 | E42: 3.18 | F42: 242731.96 | H42: 76330.8 | I42: 0.7 | J42: 53431.56 | L42: 76330.8 | M42: 1.63 | N42: 124419.204 | P42: 177850.764
B43: June | D43: 90540.35 | E43: 3.18 | F43: 287918.31 | H43: 90540.35 | I43: 0.7 | J43: 63378.245 | L43: 90540.35 | M43: 1.63 | N43: 147580.7705 | P43: 210959.0155
B44: July | D44: 96613.92 | E44: 3.18 | F44: 307232.27 | H44: 96613.92 | I44: 0.7 | J44: 67629.744 | L44: 96613.92 | M44: 1.63 | N44: 157480.6896 | P44: 225110.4336
B45: August | D45: 85757.69 | E45: 3.18 | F45: 272709.41 | H45: 85757.69 | I45: 0.7 | J45: 60030.383 | L45: 85757.69 | M45: 1.63 | N45: 139785.0347 | P45: 199815.4177
B46: September | D46: 88194.87 | E46: 3.18 | F46: 280459.67 | H46: 89796.75 | I46: 0.7 | J46: 62857.725 | L46: 89796.75 | M46: 1.63 | N46: 146368.7025 | P46: 209226.4275
B47: October | D47: 73748.66 | E47: 3.18 | F47: 234520.73 | H47: 76769.17 | I47: 0.7 | J47: 53738.419 | L47: 76769.17 | M47: 1.63 | N47: 125133.7471 | P47: 178872.1661
B48: November | D48: 81188.35 | E48: 3.18 | F48: 258178.97 | H48: 82577.24 | I48: 0.7 | J48: 57804.068 | L48: 82577.24 | M48: 1.63 | N48: 134600.9012 | P48: 192404.9692
B49: December | D49: 90770.83 | E49: 3.18 | F49: 289585.66 | H49: 72695.97584 | I49: 0.7 | J49: 63137.77479 | L49: 72695.97584 | M49: 1.63 | N49: 149026.6846 | P49: 212164.4594
B51: Total | D51: =SUM(D38:D49) -> 962105.86 | E51: =IF(D51<>0,F51/D51,0) -> 3.180971208 | F51: =SUM(F38:F49) -> 3060431.04 | H51: =SUM(H38:H49) -> 957820.1958 | I51: =IF(H51<>0,J51/H51,0) -> 0.7127900745 | J51: =SUM(J38:J49) -> 682724.7288 | L51: =SUM(L38:L49) -> 957820.1958 | M51: =IF(L51<>0,N51/L51,0) -> 1.661876801 | N51: =SUM(N38:N49) -> 1591779.163 | P51: =SUM(P38:P49) -> 2274503.892
B53: Add Extra Host Here (I) | D53: Network | H53: Line Connection | L53: Transformation Connection | P53: Total Line
B54: (if needed)
B55: Month | D55: Units Billed | E55: Rate | F55: Amount | H55: Units Billed | I55: Rate | J55: Amount | L55: Units Billed | M55: Rate | N55: Amount | P55: Amount
B57: January | E57: =IF(D57<>0,F57/D57,0) -> 0 | I57: =IF(H57<>0,J57/H57,0) -> 0 | M57: =IF(L57<>0,N57/L57,0) -> 0 | P57: =J57+N57 -> 0
B58: February | E58: 0 | I58: 0 | M58: 0 | P58: 0
B59: March | E59: 0 | I59: 0 | M59: 0 | P59: 0
B60: April | E60: 0 | I60: 0 | M60: 0 | P60: 0
B61: May | E61: 0 | I61: 0 | M61: 0 | P61: 0
B62: June | E62: 0 | I62: 0 | M62: 0 | P62: 0
B63: July | E63: 0 | I63: 0 | M63: 0 | P63: 0
B64: August | E64: 0 | I64: 0 | M64: 0 | P64: 0
B65: September | E65: 0 | I65: 0 | M65: 0 | P65: 0
B66: October | E66: 0 | I66: 0 | M66: 0 | P66: 0
B67: November | E67: 0 | I67: 0 | M67: 0 | P67: 0
B68: December | E68: 0 | I68: 0 | M68: 0 | P68: 0
B70: Total | D70: =SUM(D57:D68) -> 0 | E70: =IF(D70<>0,F70/D70,0) -> 0 | F70: =SUM(F57:F68) -> 0 | H70: =SUM(H57:H68) -> 0 | I70: =IF(H70<>0,J70/H70,0) -> 0 | J70: =SUM(J57:J68) -> 0 | L70: =SUM(L57:L68) -> 0 | M70: =IF(L70<>0,N70/L70,0) -> 0 | N70: =SUM(N57:N68) -> 0 | P70: =SUM(P57:P68) -> 0
B72: Add Extra Host Here (II) | D72: Network | H72: Line Connection | L72: Transformation Connection | P72: Total Line
B73: (if needed)
B74: Month | D74: Units Billed | E74: Rate | F74: Amount | H74: Units Billed | I74: Rate | J74: Amount | L74: Units Billed | M74: Rate | N74: Amount | P74: Amount
B76: January | E76: =IF(D76<>0,F76/D76,0) -> 0 | I76: =IF(H76<>0,J76/H76,0) -> 0 | M76: =IF(L76<>0,N76/L76,0) -> 0 | P76: =J76+N76 -> 0
B77: February | E77: 0 | I77: 0 | M77: 0 | P77: 0
B78: March | E78: 0 | I78: 0 | M78: 0 | P78: 0
B79: April | E79: 0 | I79: 0 | M79: 0 | P79: 0
B80: May | E80: 0 | I80: 0 | M80: 0 | P80: 0
B81: June | E81: 0 | I81: 0 | M81: 0 | P81: 0
B82: July | E82: 0 | I82: 0 | M82: 0 | P82: 0
B83: August | E83: 0 | I83: 0 | M83: 0 | P83: 0
B84: September | E84: 0 | I84: 0 | M84: 0 | P84: 0
B85: October | E85: 0 | I85: 0 | M85: 0 | P85: 0
B86: November | E86: 0 | I86: 0 | M86: 0 | P86: 0
B87: December | E87: 0 | I87: 0 | M87: 0 | P87: 0
B89: Total | D89: =SUM(D76:D87) -> 0 | E89: =IF(D89<>0,F89/D89,0) -> 0 | F89: =SUM(F76:F87) -> 0 | H89: =SUM(H76:H87) -> 0 | I89: =IF(H89<>0,J89/H89,0) -> 0 | J89: =SUM(J76:J87) -> 0 | L89: =SUM(L76:L87) -> 0 | M89: =IF(L89<>0,N89/L89,0) -> 0 | N89: =SUM(N76:N87) -> 0 | P89: =SUM(P76:P87) -> 0
B91: Total | D91: Network | H91: Line Connection | L91: Transformation Connection | P91: Total Line
B93: Month | D93: Units Billed | E93: Rate | F93: Amount | H93: Units Billed | I93: Rate | J93: Amount | L93: Units Billed | M93: Rate | N93: Amount | P93: Amount
B95: January | D95: =D19+D38+D57+D76 -> 84622 | E95: =IF(D95<>0,F95/D95,0) -> 3.224855357 | F95: =F19+F38+F57+F76 -> 272893.71 | H95: =H19+H38+H57+H76 -> 86293 | I95: =IF(H95<>0,J95/H95,0) -> 0.7051104956 | J95: =J19+J38+J57+J76 -> 60846.1 | L95: =L19+L38+L57+L76 -> 86293 | M95: =IF(L95<>0,N95/L95,0) -> 1.652486181 | N95: =N19+N38+N57+N76 -> 142597.99 | P95: =J95+N95 -> 203444.09
B96: February | D96: =D20+D39+D58+D77 -> 81125 | E96: 3.22488074 | F96: =F20+F39+F58+F77 -> 261618.45 | H96: =H20+H39+H58+H77 -> 82660 | I96: 0.7049830632 | J96: =J20+J39+J58+J77 -> 58273.9 | L96: =L20+L39+L58+L77 -> 82660 | M96: 1.651925478 | N96: =N20+N39+N58+N77 -> 136548.16 | P96: 194822.06
B97: March | D97: 74455 | E97: 3.235259553 | F97: 240881.25 | H97: 79299 | I97: 0.7069963051 | J97: 56064.1 | L97: 79299 | M97: 1.660783743 | N97: 131698.49 | P97: 187762.59
B98: April | D98: 78182.39 | E98: 3.259170895 | F98: 254809.77 | H98: 83591.3 | I98: 0.7101392131 | J98: 59361.46 | L98: 83591.3 | M98: 1.674612537 | N98: 139983.039 | P98: 199344.499
B99: May | D99: 93274.8 | E99: 3.261745723 | F99: 304238.68 | H99: 96268.8 | I99: 0.7103553799 | J99: 68385.06 | L99: 96268.8 | M99: 1.675563672 | N99: 161304.504 | P99: 229689.564
B100: June | D100: 105572.35 | E100: 3.244073567 | F100: 342484.47 | H100: 105828.35 | I100: 0.7072230173 | J100: 74844.245 | L100: 105828.35 | M100: 1.661781276 | N100: 175863.5705 | P100: 250707.8155
B101: July | D101: 113073.92 | E101: 3.24550586 | F101: 366982.07 | H101: 114029.92 | I101: 0.7076365922 | J101: 80691.744 | L101: 114029.92 | M101: 1.663601006 | N101: 189700.2896 | P101: 270392.0336
B102: August | D102: 101710.69 | E102: 3.250580642 | F102: 330618.8 | H102: 102466.69 | I102: 0.7081533814 | J102: 72562.133 | L102: 102466.69 | M102: 1.665874878 | N102: 170696.6847 | P102: 243258.8177
B103: September | D103: 104914.87 | E103: 3.251715129 | F103: 341153.27 | H103: 106964.75 | I103: 0.7080250737 | J103: 75733.725 | L103: 106964.75 | M103: 1.665310324 | N103: 178129.5025 | P103: 253863.2275
B104: October | D104: 85884.66 | E104: 3.243587504 | F104: 278574.41 | H104: 90302.17 | I104: 0.7074931754 | J104: 63888.169 | L104: 90302.17 | M104: 1.662969972 | N104: 150169.7971 | P104: 214057.9661
B105: November | D105: 93559.35 | E105: 3.239501985 | F105: 303085.7 | H105: 95974.24 | I105: 0.706979477 | J105: 67851.818 | L105: 95974.24 | M105: 1.660709699 | N105: 159385.3512 | P105: 227237.1692
B106: December | D106: 103253.83 | E106: 3.243453052 | F106: 334898.95 | H106: 86235.97584 | I106: 0.8499094963 | J106: 73292.77479 | L106: 86235.97584 | M106: 2.018597028 | N106: 174075.6846 | P106: 247368.4594
B108: Total | D108: =SUM(D95:D106) -> 1119628.86 | E108: =IF(D108<>0,F108/D108,0) -> 3.244146038 | F108: =SUM(F95:F106) -> 3632239.53 | H108: =SUM(H95:H106) -> 1129914.196 | I108: =IF(H108<>0,J108/H108,0) -> 0.7184574119 | J108: =SUM(J95:J106) -> 811795.2288 | L108: =SUM(L95:L106) -> 1129914.196 | M108: =IF(L108<>0,N108/L108,0) -> 1.690529308 | N108: =SUM(N95:N106) -> 1910153.063 | P108: =SUM(P95:P106) -> 2721948.292
N110: Transformer Allowance Credit (if applicable) | P110: ='15. RTSR - UTRs & Sub-Tx'!E95 -> 0
N112: Total including deduction for Transformer Allowance Credit | P112: =P108+P110 -> 2721948.292

Sheet 17. RTSR - Current Wholesale
B13: The purpose of this sheet is to calculate the expected billing when current 2014 Uniform Transmission Rates are applied against historical 2013 transmission units.
B16: IESO | D16: Network | H16: Line Connection | L16: Transformation Connection | P16: Total Line
B18: Month | D18: Units Billed | E18: Rate | F18: Amount | H18: Units Billed | I18: Rate | J18: Amount | L18: Units Billed | M18: Rate | N18: Amount | P18: Amount
B20: January | D20: ='16. RTSR - Historical Wholesale'!D19 -> 8435 | E20: ='15. RTSR - UTRs & Sub-Tx'!G22 -> 3.82 | F20: =D20*E20 -> 32221.7 | H20: ='16. RTSR - Historical Wholesale'!H19 -> 8820 | I20: ='15. RTSR - UTRs & Sub-Tx'!G24 -> 0.82 | J20: =H20*I20 -> 7232.4 | L20: ='16. RTSR - Historical Wholesale'!L19 -> 8820 | M20: ='15. RTSR - UTRs & Sub-Tx'!G26 -> 1.98 | N20: =L20*M20 -> 17463.6 | P20: =J20+N20 -> 24696
B21: February | D21: ='16. RTSR - Historical Wholesale'!D20 -> 8091 | E21: =E20 -> 3.82 | F21: =D21*E21 -> 30907.62 | H21: ='16. RTSR - Historical Wholesale'!H20 -> 8238 | I21: =I20 -> 0.82 | J21: =H21*I21 -> 6755.16 | L21: ='16. RTSR - Historical Wholesale'!L20 -> 8238 | M21: =M20 -> 1.98 | N21: =L21*M21 -> 16311.24 | P21: 23066.4
B22: March | D22: ='16. RTSR - Historical Wholesale'!D21 -> 9143 | E22: =E21 -> 3.82 | F22: 34926.26 | H22: ='16. RTSR - Historical Wholesale'!H21 -> 11096 | I22: =I21 -> 0.82 | J22: 9098.72 | L22: ='16. RTSR - Historical Wholesale'!L21 -> 11096 | M22: =M21 -> 1.98 | N22: 21970.08 | P22: 31068.8
B23: April | D23: ='16. RTSR - Historical Wholesale'!D22 -> 13755 | E23: 3.82 | F23: 52544.1 | H23: ='16. RTSR - Historical Wholesale'!H22 -> 16951 | I23: 0.82 | J23: 13899.82 | L23: ='16. RTSR - Historical Wholesale'!L22 -> 16951 | M23: 1.98 | N23: 33562.98 | P23: 47462.8
B24: May | D24: ='16. RTSR - Historical Wholesale'!D23 -> 16944 | E24: 3.82 | F24: 64726.08 | H24: ='16. RTSR - Historical Wholesale'!H23 -> 19938 | I24: 0.82 | J24: 16349.16 | L24: ='16. RTSR - Historical Wholesale'!L23 -> 19938 | M24: 1.98 | N24: 39477.24 | P24: 55826.4
B25: June | D25: ='16. RTSR - Historical Wholesale'!D24 -> 15032 | E25: 3.82 | F25: 57422.24 | H25: ='16. RTSR - Historical Wholesale'!H24 -> 15288 | I25: 0.82 | J25: 12536.16 | L25: ='16. RTSR - Historical Wholesale'!L24 -> 15288 | M25: 1.98 | N25: 30270.24 | P25: 42806.4
B26: July | D26: ='16. RTSR - Historical Wholesale'!D25 -> 16460 | E26: 3.82 | F26: 62877.2 | H26: ='16. RTSR - Historical Wholesale'!H25 -> 17416 | I26: 0.82 | J26: 14281.12 | L26: ='16. RTSR - Historical Wholesale'!L25 -> 17416 | M26: 1.98 | N26: 34483.68 | P26: 48764.8
B27: August | D27: ='16. RTSR - Historical Wholesale'!D26 -> 15953 | E27: 3.82 | F27: 60940.46 | H27: ='16. RTSR - Historical Wholesale'!H26 -> 16709 | I27: 0.82 | J27: 13701.38 | L27: ='16. RTSR - Historical Wholesale'!L26 -> 16709 | M27: 1.98 | N27: 33083.82 | P27: 46785.2
B28: September | D28: ='16. RTSR - Historical Wholesale'!D27 -> 16720 | E28: 3.82 | F28: 63870.4 | H28: ='16. RTSR - Historical Wholesale'!H27 -> 17168 | I28: 0.82 | J28: 14077.76 | L28: ='16. RTSR - Historical Wholesale'!L27 -> 17168 | M28: 1.98 | N28: 33992.64 | P28: 48070.4
B29: October | D29: ='16. RTSR - Historical Wholesale'!D28 -> 12136 | E29: 3.82 | F29: 46359.52 | H29: ='16. RTSR - Historical Wholesale'!H28 -> 13533 | I29: 0.82 | J29: 11097.06 | L29: ='16. RTSR - Historical Wholesale'!L28 -> 13533 | M29: 1.98 | N29: 26795.34 | P29: 37892.4
B30: November | D30: ='16. RTSR - Historical Wholesale'!D29 -> 12371 | E30: 3.82 | F30: 47257.22 | H30: ='16. RTSR - Historical Wholesale'!H29 -> 13397 | I30: 0.82 | J30: 10985.54 | L30: ='16. RTSR - Historical Wholesale'!L29 -> 13397 | M30: 1.98 | N30: 26526.06 | P30: 37511.6
B31: December | D31: ='16. RTSR - Historical Wholesale'!D30 -> 12483 | E31: 3.82 | F31: 47685.06 | H31: ='16. RTSR - Historical Wholesale'!H30 -> 13540 | I31: 0.82 | J31: 11102.8 | L31: ='16. RTSR - Historical Wholesale'!L30 -> 13540 | M31: 1.98 | N31: 26809.2 | P31: 37912
B33: Total | D33: =SUM(D20:D31) -> 157523 | E33: =IF(D33<>0,F33/D33,0) -> 3.82 | F33: =SUM(F20:F31) -> 601737.86 | H33: =SUM(H20:H31) -> 172094 | I33: =IF(H33<>0,J33/H33,0) -> 0.82 | J33: =SUM(J20:J31) -> 141117.08 | L33: =SUM(L20:L31) -> 172094 | M33: =IF(L33<>0,N33/L33,0) -> 1.98 | N33: =SUM(N20:N31) -> 340746.12 | P33: =SUM(P20:P31) -> 481863.2
B35: Hydro One | D35: Network | H35: Line Connection | L35: Transformation Connection | P35: Total Line
B37: Month | D37: Units Billed | E37: Rate | F37: Amount | H37: Units Billed | I37: Rate | J37: Amount | L37: Units Billed | M37: Rate | N37: Amount | P37: Amount
B39: January | D39: ='16. RTSR - Historical Wholesale'!D38 -> 76187 | E39: ='15. RTSR - UTRs & Sub-Tx'!G35+'15. RTSR - UTRs & Sub-Tx'!G79 -> 3.3765 | F39: =D39*E39 -> 257245.4055 | H39: ='16. RTSR - Historical Wholesale'!H38 -> 77473 | I39: ='15. RTSR - UTRs & Sub-Tx'!G37+'15. RTSR - UTRs & Sub-Tx'!G81 -> 0.7167 | J39: =H39*I39 -> 55524.8991 | L39: ='16. RTSR - Historical Wholesale'!L38 -> 77473 | M39: ='15. RTSR - UTRs & Sub-Tx'!G39 -> 1.62 | N39: =L39*M39 -> 125506.26 | P39: =J39+N39 -> 181031.1591
B40: February | D40: ='16. RTSR - Historical Wholesale'!D39 -> 73034 | E40: =E39 -> 3.3765 | F40: =D40*E40 -> 246599.301 | H40: ='16. RTSR - Historical Wholesale'!H39 -> 74422 | I40: =I39 -> 0.7167 | J40: =H40*I40 -> 53338.2474 | L40: ='16. RTSR - Historical Wholesale'!L39 -> 74422 | M40: =M39 -> 1.62 | N40: =L40*M40 -> 120563.64 | P40: 173901.8874
B41: March | D41: ='16. RTSR - Historical Wholesale'!D40 -> 65312 | E41: =E40 -> 3.3765 | F41: 220525.968 | H41: ='16. RTSR - Historical Wholesale'!H40 -> 68203 | I41: =I40 -> 0.7167 | J41: 48881.0901 | L41: ='16. RTSR - Historical Wholesale'!L40 -> 68203 | M41: =M40 -> 1.62 | N41: 110488.86 | P41: 159369.9501
B42: April | D42: ='16. RTSR - Historical Wholesale'!D41 -> 64427.39 | E42: 3.3765 | F42: 217539.0823 | H42: ='16. RTSR - Historical Wholesale'!H41 -> 66640.3 | I42: 0.7167 | J42: 47761.10301 | L42: ='16. RTSR - Historical Wholesale'!L41 -> 66640.3 | M42: =M41 -> 1.62 | N42: 107957.286 | P42: 155718.389
B43: May | D43: ='16. RTSR - Historical Wholesale'!D42 -> 76330.8 | E43: 3.3765 | F43: 257730.9462 | H43: ='16. RTSR - Historical Wholesale'!H42 -> 76330.8 | I43: 0.7167 | J43: 54706.28436 | L43: ='16. RTSR - Historical Wholesale'!L42 -> 76330.8 | M43: 1.62 | N43: 123655.896 | P43: 178362.1804
B44: June | D44: ='16. RTSR - Historical Wholesale'!D43 -> 90540.35 | E44: 3.3765 | F44: 305709.4918 | H44: ='16. RTSR - Historical Wholesale'!H43 -> 90540.35 | I44: 0.7167 | J44: 64890.26885 | L44: ='16. RTSR - Historical Wholesale'!L43 -> 90540.35 | M44: 1.62 | N44: 146675.367 | P44: 211565.6358
B45: July | D45: ='16. RTSR - Historical Wholesale'!D44 -> 96613.92 | E45: 3.3765 | F45: 326216.9009 | H45: ='16. RTSR - Historical Wholesale'!H44 -> 96613.92 | I45: 0.7167 | J45: 69243.19646 | L45: ='16. RTSR - Historical Wholesale'!L44 -> 96613.92 | M45: 1.62 | N45: 156514.5504 | P45: 225757.7469
B46: August | D46: ='16. RTSR - Historical Wholesale'!D45 -> 85757.69 | E46: 3.3765 | F46: 289560.8403 | H46: ='16. RTSR - Historical Wholesale'!H45 -> 85757.69 | I46: 0.7167 | J46: 61462.53642 | L46: ='16. RTSR - Historical Wholesale'!L45 -> 85757.69 | M46: 1.62 | N46: 138927.4578 | P46: 200389.9942
B47: September | D47: ='16. RTSR - Historical Wholesale'!D46 -> 88194.87 | E47: 3.3765 | F47: 297789.9786 | H47: ='16. RTSR - Historical Wholesale'!H46 -> 89796.75 | I47: 0.7167 | J47: 64357.33072 | L47: ='16. RTSR - Historical Wholesale'!L46 -> 89796.75 | M47: 1.62 | N47: 145470.735 | P47: 209828.0657
B48: October | D48: ='16. RTSR - Historical Wholesale'!D47 -> 73748.66 | E48: 3.3765 | F48: 249012.3505 | H48: ='16. RTSR - Historical Wholesale'!H47 -> 76769.17 | I48: 0.7167 | J48: 55020.46414 | L48: ='16. RTSR - Historical Wholesale'!L47 -> 76769.17 | M48: 1.62 | N48: 124366.0554 | P48: 179386.5195
B49: November | D49: ='16. RTSR - Historical Wholesale'!D48 -> 81188.35 | E49: 3.3765 | F49: 274132.4638 | H49: ='16. RTSR - Historical Wholesale'!H48 -> 82577.24 | I49: 0.7167 | J49: 59183.10791 | L49: ='16. RTSR - Historical Wholesale'!L48 -> 82577.24 | M49: 1.62 | N49: 133775.1288 | P49: 192958.2367
B50: December | D50: ='16. RTSR - Historical Wholesale'!D49 -> 90770.83 | E50: 3.3765 | F50: 306487.7075 | H50: ='16. RTSR - Historical Wholesale'!H49 -> 72695.97584 | I50: 0.7167 | J50: 52101.20588 | L50: ='16. RTSR - Historical Wholesale'!L49 -> 72695.97584 | M50: 1.62 | N50: 117767.4809 | P50: 169868.6867
B52: Total | D52: =SUM(D39:D50) -> 962105.86 | E52: =IF(D52<>0,F52/D52,0) -> 3.3765 | F52: =SUM(F39:F50) -> 3248550.436 | H52: =SUM(H39:H50) -> 957820.1958 | I52: =IF(H52<>0,J52/H52,0) -> 0.7167 | J52: =SUM(J39:J50) -> 686469.7344 | L52: =SUM(L39:L50) -> 957820.1958 | M52: =IF(L52<>0,N52/L52,0) -> 1.62 | N52: =SUM(N39:N50) -> 1551668.717 | P52: =SUM(P39:P50) -> 2238138.452
B54: ='16. RTSR - Historical Wholesale'!B53 -> Add Extra Host Here (I) | D54: Network | H54: Line Connection | L54: Transformation Connection | P54: Total Line
B56: Month | D56: Units Billed | E56: Rate | F56: Amount | H56: Units Billed | I56: Rate | J56: Amount | L56: Units Billed | M56: Rate | N56: Amount | P56: Amount
B58: January | D58: ='16. RTSR - Historical Wholesale'!D57 -> 0 | E58: ='15. RTSR - UTRs & Sub-Tx'!G50 -> 0 | F58: =D58*E58 -> 0 | H58: ='16. RTSR - Historical Wholesale'!H57 -> 0 | I58: ='15. RTSR - UTRs & Sub-Tx'!G52 -> 0 | J58: =H58*I58 -> 0 | L58: ='16. RTSR - Historical Wholesale'!L57 -> 0 | M58: ='15. RTSR - UTRs & Sub-Tx'!G54 -> 0 | N58: =L58*M58 -> 0 | P58: =J58+N58 -> 0
B59: February | D59: ='16. RTSR - Historical Wholesale'!D58 -> 0 | E59: =E58 -> 0 | F59: =D59*E59 -> 0 | H59: ='16. RTSR - Historical Wholesale'!H58 -> 0 | I59: =I58 -> 0 | J59: =H59*I59 -> 0 | L59: ='16. RTSR - Historical Wholesale'!L58 -> 0 | M59: =M58 -> 0 | N59: =L59*M59 -> 0 | P59: 0
B60: March | D60: ='16. RTSR - Historical Wholesale'!D59 -> 0 | E60: =E59 -> 0 | F60: 0 | H60: ='16. RTSR - Historical Wholesale'!H59 -> 0 | I60: =I59 -> 0 | J60: 0 | L60: ='16. RTSR - Historical Wholesale'!L59 -> 0 | M60: =M59 -> 0 | N60: 0 | P60: 0
B61: April | D61: ='16. RTSR - Historical Wholesale'!D60 -> 0 | E61: 0 | F61: 0 | H61: ='16. RTSR - Historical Wholesale'!H60 -> 0 | I61: 0 | J61: 0 | L61: ='16. RTSR - Historical Wholesale'!L60 -> 0 | M61: =M60 -> 0 | N61: 0 | P61: 0
B62: May | D62: ='16. RTSR - Historical Wholesale'!D61 -> 0 | E62: 0 | F62: 0 | H62: ='16. RTSR - Historical Wholesale'!H61 -> 0 | I62: 0 | J62: 0 | L62: ='16. RTSR - Historical Wholesale'!L61 -> 0 | M62: 0 | N62: 0 | P62: 0
B63: June | D63: ='16. RTSR - Historical Wholesale'!D62 -> 0 | E63: 0 | F63: 0 | H63: ='16. RTSR - Historical Wholesale'!H62 -> 0 | I63: 0 | J63: 0 | L63: ='16. RTSR - Historical Wholesale'!L62 -> 0 | M63: 0 | N63: 0 | P63: 0
B64: July | D64: ='16. RTSR - Historical Wholesale'!D63 -> 0 | E64: 0 | F64: 0 | H64: ='16. RTSR - Historical Wholesale'!H63 -> 0 | I64: 0 | J64: 0 | L64: ='16. RTSR - Historical Wholesale'!L63 -> 0 | M64: 0 | N64: 0 | P64: 0
B65: August | D65: ='16. RTSR - Historical Wholesale'!D64 -> 0 | E65: 0 | F65: 0 | H65: ='16. RTSR - Historical Wholesale'!H64 -> 0 | I65: 0 | J65: 0 | L65: ='16. RTSR - Historical Wholesale'!L64 -> 0 | M65: 0 | N65: 0 | P65: 0
B66: September | D66: ='16. RTSR - Historical Wholesale'!D65 -> 0 | E66: 0 | F66: 0 | H66: ='16. RTSR - Historical Wholesale'!H65 -> 0 | I66: 0 | J66: 0 | L66: ='16. RTSR - Historical Wholesale'!L65 -> 0 | M66: 0 | N66: 0 | P66: 0
B67: October | D67: ='16. RTSR - Historical Wholesale'!D66 -> 0 | E67: 0 | F67: 0 | H67: ='16. RTSR - Historical Wholesale'!H66 -> 0 | I67: 0 | J67: 0 | L67: ='16. RTSR - Historical Wholesale'!L66 -> 0 | M67: 0 | N67: 0 | P67: 0
B68: November | D68: ='16. RTSR - Historical Wholesale'!D67 -> 0 | E68: 0 | F68: 0 | H68: ='16. RTSR - Historical Wholesale'!H67 -> 0 | I68: 0 | J68: 0 | L68: ='16. RTSR - Historical Wholesale'!L67 -> 0 | M68: 0 | N68: 0 | P68: 0
B69: December | D69: ='16. RTSR - Historical Wholesale'!D68 -> 0 | E69: 0 | F69: 0 | H69: ='16. RTSR - Historical Wholesale'!H68 -> 0 | I69: 0 | J69: 0 | L69: ='16. RTSR - Historical Wholesale'!L68 -> 0 | M69: 0 | N69: 0 | P69: 0
B71: Total | D71: =SUM(D58:D69) -> 0 | E71: =IF(D71<>0,F71/D71,0) -> 0 | F71: =SUM(F58:F69) -> 0 | H71: =SUM(H58:H69) -> 0 | I71: =IF(H71<>0,J71/H71,0) -> 0 | J71: =SUM(J58:J69) -> 0 | L71: =SUM(L58:L69) -> 0 | M71: =IF(L71<>0,N71/L71,0) -> 0 | N71: =SUM(N58:N69) -> 0 | P71: =SUM(P58:P69) -> 0
B73: ='16. RTSR - Historical Wholesale'!B72 -> Add Extra Host Here (II) | D73: Network | H73: Line Connection | L73: Transformation Connection | P73: Total Line
B75: Month | D75: Units Billed | E75: Rate | F75: Amount | H75: Units Billed | I75: Rate | J75: Amount | L75: Units Billed | M75: Rate | N75: Amount | P75: Amount
B77: January | D77: ='16. RTSR - Historical Wholesale'!D76 -> 0 | E77: ='15. RTSR - UTRs & Sub-Tx'!G65 -> 0 | F77: =D77*E77 -> 0 | H77: ='16. RTSR - Historical Wholesale'!H76 -> 0 | I77: ='15. RTSR - UTRs & Sub-Tx'!G67 -> 0 | J77: =H77*I77 -> 0 | L77: ='16. RTSR - Historical Wholesale'!L76 -> 0 | M77: ='15. RTSR - UTRs & Sub-Tx'!G69 -> 0 | N77: =L77*M77 -> 0 | P77: =J77+N77 -> 0
B78: February | D78: ='16. RTSR - Historical Wholesale'!D77 -> 0 | E78: =E77 -> 0 | F78: =D78*E78 -> 0 | H78: ='16. RTSR - Historical Wholesale'!H77 -> 0 | I78: =I77 -> 0 | J78: =H78*I78 -> 0 | L78: ='16. RTSR - Historical Wholesale'!L77 -> 0 | M78: =M77 -> 0 | N78: =L78*M78 -> 0 | P78: 0
B79: March | D79: ='16. RTSR - Historical Wholesale'!D78 -> 0 | E79: =E78 -> 0 | F79: 0 | H79: ='16. RTSR - Historical Wholesale'!H78 -> 0 | I79: =I78 -> 0 | J79: 0 | L79: ='16. RTSR - Historical Wholesale'!L78 -> 0 | M79: =M78 -> 0 | N79: 0 | P79: 0
B80: April | D80: ='16. RTSR - Historical Wholesale'!D79 -> 0 | E80: 0 | F80: 0 | H80: ='16. RTSR - Historical Wholesale'!H79 -> 0 | I80: 0 | J80: 0 | L80: ='16. RTSR - Historical Wholesale'!L79 -> 0 | M80: =M79 -> 0 | N80: 0 | P80: 0
B81: May | D81: ='16. RTSR - Historical Wholesale'!D80 -> 0 | E81: 0 | F81: 0 | H81: ='16. RTSR - Historical Wholesale'!H80 -> 0 | I81: 0 | J81: 0 | L81: ='16. RTSR - Historical Wholesale'!L80 -> 0 | M81: 0 | N81: 0 | P81: 0
B82: June | D82: ='16. RTSR - Historical Wholesale'!D81 -> 0 | E82: 0 | F82: 0 | H82: ='16. RTSR - Historical Wholesale'!H81 -> 0 | I82: 0 | J82: 0 | L82: ='16. RTSR - Historical Wholesale'!L81 -> 0 | M82: 0 | N82: 0 | P82: 0
B83: July | D83: ='16. RTSR - Historical Wholesale'!D82 -> 0 | E83: 0 | F83: 0 | H83: ='16. RTSR - Historical Wholesale'!H82 -> 0 | I83: 0 | J83: 0 | L83: ='16. RTSR - Historical Wholesale'!L82 -> 0 | M83: 0 | N83: 0 | P83: 0
B84: August | D84: ='16. RTSR - Historical Wholesale'!D83 -> 0 | E84: 0 | F84: 0 | H84: ='16. RTSR - Historical Wholesale'!H83 -> 0 | I84: 0 | J84: 0 | L84: ='16. RTSR - Historical Wholesale'!L83 -> 0 | M84: 0 | N84: 0 | P84: 0
B85: September | D85: ='16. RTSR - Historical Wholesale'!D84 -> 0 | E85: 0 | F85: 0 | H85: ='16. RTSR - Historical Wholesale'!H84 -> 0 | I85: 0 | J85: 0 | L85: ='16. RTSR - Historical Wholesale'!L84 -> 0 | M85: 0 | N85: 0 | P85: 0
B86: October | D86: ='16. RTSR - Historical Wholesale'!D85 -> 0 | E86: 0 | F86: 0 | H86: ='16. RTSR - Historical Wholesale'!H85 -> 0 | I86: 0 | J86: 0 | L86: ='16. RTSR - Historical Wholesale'!L85 -> 0 | M86: 0 | N86: 0 | P86: 0
B87: November | D87: ='16. RTSR - Historical Wholesale'!D86 -> 0 | E87: 0 | F87: 0 | H87: ='16. RTSR - Historical Wholesale'!H86 -> 0 | I87: 0 | J87: 0 | L87: ='16. RTSR - Historical Wholesale'!L86 -> 0 | M87: 0 | N87: 0 | P87: 0
B88: December | D88: ='16. RTSR - Historical Wholesale'!D87 -> 0 | E88: 0 | F88: 0 | H88: ='16. RTSR - Historical Wholesale'!H87 -> 0 | I88: 0 | J88: 0 | L88: ='16. RTSR - Historical Wholesale'!L87 -> 0 | M88: 0 | N88: 0 | P88: 0
B90: Total | D90: =SUM(D77:D88) -> 0 | E90: =IF(D90<>0,F90/D90,0) -> 0 | F90: =SUM(F77:F88) -> 0 | H90: =SUM(H77:H88) -> 0 | I90: =IF(H90<>0,J90/H90,0) -> 0 | J90: =SUM(J77:J88) -> 0 | L90: =SUM(L77:L88) -> 0 | M90: =IF(L90<>0,N90/L90,0) -> 0 | N90: =SUM(N77:N88) -> 0 | P90: =SUM(P77:P88) -> 0
B92: Total | D92: Network | H92: Line Connection | L92: Transformation Connection | P92: Total Line
B94: Month | D94: Units Billed | E94: Rate | F94: Amount | H94: Units Billed | I94: Rate | J94: Amount | L94: Units Billed | M94: Rate | N94: Amount | P94: Amount
B96: January | D96: =D20+D39+D58+D77 -> 84622 | E96: =IF(D96<>0,F96/D96,0) -> 3.420707446 | F96: =F20+F39+F58+F77 -> 289467.1055 | H96: =H20+H39+H58+H77 -> 86293 | I96: =IF(H96<>0,J96/H96,0) -> 0.727258284 | J96: =J20+J39+J58+J77 -> 62757.2991 | L96: =L20+L39+L58+L77 -> 86293 | M96: =IF(L96<>0,N96/L96,0) -> 1.656795569 | N96: =N20+N39+N58+N77 -> 142969.86 | P96: =J96+N96 -> 205727.1591
B97: February | D97: =D21+D40+D59+D78 -> 81125 | E97: 3.420732462 | F97: =F21+F40+F59+F78 -> 277506.921 | H97: =H21+H40+H59+H78 -> 82660 | I97: 0.7269950085 | J97: =J21+J40+J59+J78 -> 60093.4074 | L97: =L21+L40+L59+L78 -> 82660 | M97: 1.655878055 | N97: =N21+N40+N59+N78 -> 136874.88 | P97: 196968.2874
B98: March | D98: 74455 | E98: 3.430961359 | F98: 255452.228 | H98: 79299 | I98: 0.7311543664 | J98: 57979.8101 | L98: 79299 | M98: 1.670373397 | N98: 132458.94 | P98: 190438.7501
B99: April | D99: 78182.39 | E99: 3.454527066 | F99: 270083.1823 | H99: 83591.3 | I99: 0.7376476142 | J99: 61660.92301 | L99: 83591.3 | M99: 1.693002334 | N99: 141520.266 | P99: 203181.189
B100: May | D100: 93274.8 | E100: 3.457064783 | F100: 322457.0262 | H100: 96268.8 | I100: 0.7380942149 | J100: 71055.44436 | L100: 96268.8 | M100: 1.694558736 | N100: 163133.136 | P100: 234188.5804
B101: June | D101: 105572.35 | E101: 3.439648088 | F101: 363131.7318 | H101: 105828.35 | I101: 0.7316227537 | J101: 77426.42885 | L101: 105828.35 | M101: 1.672005724 | N101: 176945.607 | P101: 254372.0358
B102: July | D102: 113073.92 | E102: 3.441059626 | F102: 389094.1009 | H102: 114029.92 | I102: 0.7324771995 | J102: 83524.31646 | L102: 114029.92 | M102: 1.674983464 | N102: 190998.2304 | P102: 274522.5469
B103: August | D103: 101710.69 | E103: 3.446061572 | F103: 350501.3003 | H103: 102466.69 | I103: 0.7335448859 | J103: 75163.91642 | L103: 102466.69 | M103: 1.678704346 | N103: 172011.2778 | P103: 247175.1942
B104: September | D104: 104914.87 | E104: 3.447179399 | F104: 361660.3786 | H104: 106964.75 | I104: 0.7332798022 | J104: 78435.09073 | L104: 106964.75 | M104: 1.677780531 | N104: 179463.375 | P104: 257898.4657
B105: October | D105: 85884.66 | E105: 3.439169119 | F105: 295371.8705 | H105: 90302.17 | I105: 0.7321809004 | J105: 66117.52414 | L105: 90302.17 | M105: 1.673950863 | N105: 151161.3954 | P105: 217278.9195
B106: November | D106: 93559.35 | E106: 3.435142332 | F106: 321389.6838 | H106: 95974.24 | I106: 0.7311195995 | J106: 70168.64791 | L106: 95974.24 | M106: 1.670252234 | N106: 160301.1888 | P106: 230469.8367
B107: December | D107: 103253.83 | E107: 3.430117483 | F107: 354172.7675 | H107: 86235.97584 | I107: 0.7329192401 | J107: 63204.00588 | L107: 86235.97584 | M107: 1.676523973 | N107: 144576.6809 | P107: 207780.6867
B109: Total | D109: =SUM(D96:D107) -> 1119628.86 | E109: =IF(D109<>0,F109/D109,0) -> 3.438896972 | F109: =SUM(F96:F107) -> 3850288.296 | H109: =SUM(H96:H107) -> 1129914.196 | I109: =IF(H109<>0,J109/H109,0) -> 0.7324333276 | J109: =SUM(J96:J107) -> 827586.8144 | L109: =SUM(L96:L107) -> 1129914.196 | M109: =IF(L109<>0,N109/L109,0) -> 1.674830571 | N109: =SUM(N96:N107) -> 1892414.837 | P109: =SUM(P96:P107) -> 2720001.652
N111: Transformer Allowance Credit (if applicable) | P111: ='15. RTSR - UTRs & Sub-Tx'!G95 -> 0
N113: Total including deduction for Transformer Allowance Credit | P113: =P109+P111 -> 2720001.652

Sheet 18. RTSR - Forecast Wholesale
B13: The purpose of this sheet is to calculate the expected billing when forecasted 2015 Uniform Transmission Rates are applied against historical 2013 transmission units.
B16: IESO | D16: Network | H16: Line Connection | L16: Transformation Connection | P16: Total Line
B18: Month | D18: Units Billed | E18: Rate | F18: Amount | H18: Units Billed | I18: Rate | J18: Amount | L18: Units Billed | M18: Rate | N18: Amount | P18: Amount
B20: January | D20: ='16. RTSR - Historical Wholesale'!D19 -> 8435 | E20: ='15. RTSR - UTRs & Sub-Tx'!I22 -> 3.78 | F20: =D20*E20 -> 31884.3 | H20: ='16. RTSR - Historical Wholesale'!H19 -> 8820 | I20: ='15. RTSR - UTRs & Sub-Tx'!I24 -> 0.86 | J20: =H20*I20 -> 7585.2 | L20: ='16. RTSR - Historical Wholesale'!L19 -> 8820 | M20: ='15. RTSR - UTRs & Sub-Tx'!I26 -> 2 | N20: =L20*M20 -> 17640 | P20: =J20+N20 -> 25225.2
B21: February | D21: ='16. RTSR - Historical Wholesale'!D20 -> 8091 | E21: =E20 -> 3.78 | F21: 30583.98 | H21: ='16. RTSR - Historical Wholesale'!H20 -> 8238 | I21: =I20 -> 0.86 | J21: 7084.68 | L21: ='16. RTSR - Historical Wholesale'!L20 -> 8238 | M21: =M20 -> 2 | N21: 16476 | P21: 23560.68
B22: March | D22: ='16. RTSR - Historical Wholesale'!D21 -> 9143 | E22: 3.78 | F22: 34560.54 | H22: ='16. RTSR - Historical Wholesale'!H21 -> 11096 | I22: 0.86 | J22: 9542.56 | L22: ='16. RTSR - Historical Wholesale'!L21 -> 11096 | M22: 2 | N22: 22192 | P22: 31734.56
B23: April | D23: ='16. RTSR - Historical Wholesale'!D22 -> 13755 | E23: 3.78 | F23: 51993.9 | H23: ='16. RTSR - Historical Wholesale'!H22 -> 16951 | I23: 0.86 | J23: 14577.86 | L23: ='16. RTSR - Historical Wholesale'!L22 -> 16951 | M23: 2 | N23: 33902 | P23: 48479.86
B24: May | D24: ='16. RTSR - Historical Wholesale'!D23 -> 16944 | E24: 3.78 | F24: 64048.32 | H24: ='16. RTSR - Historical Wholesale'!H23 -> 19938 | I24: 0.86 | J24: 17146.68 | L24: ='16. RTSR - Historical Wholesale'!L23 -> 19938 | M24: 2 | N24: 39876 | P24: 57022.68
B25: June | D25: ='16. RTSR - Historical Wholesale'!D24 -> 15032 | E25: 3.78 | F25: 56820.96 | H25: ='16. RTSR - Historical Wholesale'!H24 -> 15288 | I25: 0.86 | J25: 13147.68 | L25: ='16. RTSR - Historical Wholesale'!L24 -> 15288 | M25: 2 | N25: 30576 | P25: 43723.68
B26: July | D26: ='16. RTSR - Historical Wholesale'!D25 -> 16460 | E26: 3.78 | F26: 62218.8 | H26: ='16. RTSR - Historical Wholesale'!H25 -> 17416 | I26: 0.86 | J26: 14977.76 | L26: ='16. RTSR - Historical Wholesale'!L25 -> 17416 | M26: 2 | N26: 34832 | P26: 49809.76
B27: August | D27: ='16. RTSR - Historical Wholesale'!D26 -> 15953 | E27: 3.78 | F27: 60302.34 | H27: ='16. RTSR - Historical Wholesale'!H26 -> 16709 | I27: 0.86 | J27: 14369.74 | L27: ='16. RTSR - Historical Wholesale'!L26 -> 16709 | M27: 2 | N27: 33418 | P27: 47787.74
B28: September | D28: ='16. RTSR - Historical Wholesale'!D27 -> 16720 | E28: 3.78 | F28: 63201.6 | H28: ='16. RTSR - Historical Wholesale'!H27 -> 17168 | I28: 0.86 | J28: 14764.48 | L28: ='16. RTSR - Historical Wholesale'!L27 -> 17168 | M28: 2 | N28: 34336 | P28: 49100.48
B29: October | D29: ='16. RTSR - Historical Wholesale'!D28 -> 12136 | E29: 3.78 | F29: 45874.08 | H29: ='16. RTSR - Historical Wholesale'!H28 -> 13533 | I29: 0.86 | J29: 11638.38 | L29: ='16. RTSR - Historical Wholesale'!L28 -> 13533 | M29: 2 | N29: 27066 | P29: 38704.38
B30: November | D30: ='16. RTSR - Historical Wholesale'!D29 -> 12371 | E30: 3.78 | F30: 46762.38 | H30: ='16. RTSR - Historical Wholesale'!H29 -> 13397 | I30: 0.86 | J30: 11521.42 | L30: ='16. RTSR - Historical Wholesale'!L29 -> 13397 | M30: 2 | N30: 26794 | P30: 38315.42
B31: December | D31: ='16. RTSR - Historical Wholesale'!D30 -> 12483 | E31: 3.78 | F31: 47185.74 | H31: ='16. RTSR - Historical Wholesale'!H30 -> 13540 | I31: 0.86 | J31: 11644.4 | L31: ='16. RTSR - Historical Wholesale'!L30 -> 13540 | M31: 2 | N31: 27080 | P31: 38724.4
B33: Total | D33: =SUM(D20:D31) -> 157523 | E33: =IF(D33<>0,F33/D33,0) -> 3.78 | F33: =SUM(F20:F31) -> 595436.94 | H33: =SUM(H20:H31) -> 172094 | I33: =IF(H33<>0,J33/H33,0) -> 0.86 | J33: =SUM(J20:J31) -> 148000.84 | L33: =SUM(L20:L31) -> 172094 | M33: =IF(L33<>0,N33/L33,0) -> 2 | N33: =SUM(N20:N31) -> 344188 | P33: =SUM(P20:P31) -> 492188.84
B35: Hydro One | D35: Network | H35: Line Connection | L35: Transformation Connection | P35: Total Line
B37: Month | D37: Units Billed | E37: Rate | F37: Amount | H37: Units Billed | I37: Rate | J37: Amount | L37: Units Billed | M37: Rate | N37: Amount | P37: Amount
B39: January | D39: ='16. RTSR - Historical Wholesale'!D38 -> 76187 | E39: ='15. RTSR - UTRs & Sub-Tx'!I35+'15. RTSR - UTRs & Sub-Tx'!I79 -> 3.3765 | F39: =D39*E39 -> 257245.4055 | H39: ='16. RTSR - Historical Wholesale'!H38 -> 77473 | I39: ='15. RTSR - UTRs & Sub-Tx'!I37+'15. RTSR - UTRs & Sub-Tx'!I81 -> 0.7167 | J39: =H39*I39 -> 55524.8991 | L39: ='16. RTSR - Historical Wholesale'!L38 -> 77473 | M39: ='15. RTSR - UTRs & Sub-Tx'!I39 -> 1.62 | N39: =L39*M39 -> 125506.26 | P39: =J39+N39 -> 181031.1591
B40: February | D40: ='16. RTSR - Historical Wholesale'!D39 -> 73034 | E40: =E39 -> 3.3765 | F40: 246599.301 | H40: ='16. RTSR - Historical Wholesale'!H39 -> 74422 | I40: =I39 -> 0.7167 | J40: 53338.2474 | L40: ='16. RTSR - Historical Wholesale'!L39 -> 74422 | M40: =M39 -> 1.62 | N40: 120563.64 | P40: 173901.8874
B41: March | D41: ='16. RTSR - Historical Wholesale'!D40 -> 65312 | E41: 3.3765 | F41: 220525.968 | H41: ='16. RTSR - Historical Wholesale'!H40 -> 68203 | I41: 0.7167 | J41: 48881.0901 | L41: ='16. RTSR - Historical Wholesale'!L40 -> 68203 | M41: 1.62 | N41: 110488.86 | P41: 159369.9501
B42: April | D42: ='16. RTSR - Historical Wholesale'!D41 -> 64427.39 | E42: 3.3765 | F42: 217539.0823 | H42: ='16. RTSR - Historical Wholesale'!H41 -> 66640.3 | I42: 0.7167 | J42: 47761.10301 | L42: ='16. RTSR - Historical Wholesale'!L41 -> 66640.3 | M42: 1.62 | N42: 107957.286 | P42: 155718.389
B43: May | D43: ='16. RTSR - Historical Wholesale'!D42 -> 76330.8 | E43: 3.3765 | F43: 257730.9462 | H43: ='16. RTSR - Historical Wholesale'!H42 -> 76330.8 | I43: 0.7167 | J43: 54706.28436 | L43: ='16. RTSR - Historical Wholesale'!L42 -> 76330.8 | M43: 1.62 | N43: 123655.896 | P43: 178362.1804
B44: June | D44: ='16. RTSR - Historical Wholesale'!D43 -> 90540.35 | E44: 3.3765 | F44: 305709.4918 | H44: ='16. RTSR - Historical Wholesale'!H43 -> 90540.35 | I44: 0.7167 | J44: 64890.26885 | L44: ='16. RTSR - Historical Wholesale'!L43 -> 90540.35 | M44: 1.62 | N44: 146675.367 | P44: 211565.6358
B45: July | D45: ='16. RTSR - Historical Wholesale'!D44 -> 96613.92 | E45: 3.3765 | F45: 326216.9009 | H45: ='16. RTSR - Historical Wholesale'!H44 -> 96613.92 | I45: 0.7167 | J45: 69243.19646 | L45: ='16. RTSR - Historical Wholesale'!L44 -> 96613.92 | M45: 1.62 | N45: 156514.5504 | P45: 225757.7469
B46: August | D46: ='16. RTSR - Historical Wholesale'!D45 -> 85757.69 | E46: 3.3765 | F46: 289560.8403 | H46: ='16. RTSR - Historical Wholesale'!H45 -> 85757.69 | I46: 0.7167 | J46: 61462.53642 | L46: ='16. RTSR - Historical Wholesale'!L45 -> 85757.69 | M46: 1.62 | N46: 138927.4578 | P46: 200389.9942
B47: September | D47: ='16. RTSR - Historical Wholesale'!D46 -> 88194.87 | E47: 3.3765 | F47: 297789.9786 | H47: ='16. RTSR - Historical Wholesale'!H46 -> 89796.75 | I47: 0.7167 | J47: 64357.33072 | L47: ='16. RTSR - Historical Wholesale'!L46 -> 89796.75 | M47: 1.62 | N47: 145470.735 | P47: 209828.0657
B48: October | D48: ='16. RTSR - Historical Wholesale'!D47 -> 73748.66 | E48: 3.3765 | F48: 249012.3505 | H48: ='16. RTSR - Historical Wholesale'!H47 -> 76769.17 | I48: 0.7167 | J48: 55020.46414 | L48: ='16. RTSR - Historical Wholesale'!L47 -> 76769.17 | M48: 1.62 | N48: 124366.0554 | P48: 179386.5195
B49: November | D49: ='16. RTSR - Historical Wholesale'!D48 -> 81188.35 | E49: 3.3765 | F49: 274132.4638 | H49: ='16. RTSR - Historical Wholesale'!H48 -> 82577.24 | I49: 0.7167 | J49: 59183.10791 | L49: ='16. RTSR - Historical Wholesale'!L48 -> 82577.24 | M49: 1.62 | N49: 133775.1288 | P49: 192958.2367
B50: December | D50: ='16. RTSR - Historical Wholesale'!D49 -> 90770.83 | E50: 3.3765 | F50: 306487.7075 | H50: ='16. RTSR - Historical Wholesale'!H49 -> 72695.97584 | I50: 0.7167 | J50: 52101.20588 | L50: ='16. RTSR - Historical Wholesale'!L49 -> 72695.97584 | M50: 1.62 | N50: 117767.4809 | P50: 169868.6867
B52: Total | D52: =SUM(D39:D50) -> 962105.86 | E52: =IF(D52<>0,F52/D52,0) -> 3.3765 | F52: =SUM(F39:F50) -> 3248550.436 | H52: =SUM(H39:H50) -> 957820.1958 | I52: =IF(H52<>0,J52/H52,0) -> 0.7167 | J52: =SUM(J39:J50) -> 686469.7344 | L52: =SUM(L39:L50) -> 957820.1958 | M52: =IF(L52<>0,N52/L52,0) -> 1.62 | N52: =SUM(N39:N50) -> 1551668.717 | P52: =SUM(P39:P50) -> 2238138.452
B54: ='16. RTSR - Historical Wholesale'!B53 -> Add Extra Host Here (I) | D54: Network | H54: Line Connection | L54: Transformation Connection | P54: Total Line
B56: Month | D56: Units Billed | E56: Rate | F56: Amount | H56: Units Billed | I56: Rate | J56: Amount | L56: Units Billed | M56: Rate | N56: Amount | P56: Amount
B58: January | D58: ='16. RTSR - Historical Wholesale'!D57 -> 0 | E58: ='15. RTSR - UTRs & Sub-Tx'!I50 -> 0 | F58: =D58*E58 -> 0 | H58: ='16. RTSR - Historical Wholesale'!H57 -> 0 | I58: ='15. RTSR - UTRs & Sub-Tx'!I52 -> 0 | J58: =H58*I58 -> 0 | L58: ='16. RTSR - Historical Wholesale'!L57 -> 0 | M58: ='15. RTSR - UTRs & Sub-Tx'!I54 -> 0 | N58: =L58*M58 -> 0 | P58: =J58+N58 -> 0
B59: February | D59: ='16. RTSR - Historical Wholesale'!D58 -> 0 | E59: =E58 -> 0 | F59: 0 | H59: ='16. RTSR - Historical Wholesale'!H58 -> 0 | I59: =I58 -> 0 | J59: 0 | L59: ='16. RTSR - Historical Wholesale'!L58 -> 0 | M59: =M58 -> 0 | N59: 0 | P59: 0
B60: March | D60: ='16. RTSR - Historical Wholesale'!D59 -> 0 | E60: 0 | F60: 0 | H60: ='16. RTSR - Historical Wholesale'!H59 -> 0 | I60: 0 | J60: 0 | L60: ='16. RTSR - Historical Wholesale'!L59 -> 0 | M60: 0 | N60: 0 | P60: 0
B61: April | D61: ='16. RTSR - Historical Wholesale'!D60 -> 0 | E61: 0 | F61: 0 | H61: ='16. RTSR - Historical Wholesale'!H60 -> 0 | I61: 0 | J61: 0 | L61: ='16. RTSR - Historical Wholesale'!L60 -> 0 | M61: 0 | N61: 0 | P61: 0
B62: May | D62: ='16. RTSR - Historical Wholesale'!D61 -> 0 | E62: 0 | F62: 0 | H62: ='16. RTSR - Historical Wholesale'!H61 -> 0 | I62: 0 | J62: 0 | L62: ='16. RTSR - Historical Wholesale'!L61 -> 0 | M62: 0 | N62: 0 | P62: 0
B63: June | D63: ='16. RTSR - Historical Wholesale'!D62 -> 0 | E63: 0 | F63: 0 | H63: ='16. RTSR - Historical Wholesale'!H62 -> 0 | I63: 0 | J63: 0 | L63: ='16. RTSR - Historical Wholesale'!L62 -> 0 | M63: 0 | N63: 0 | P63: 0
B64: July | D64: ='16. RTSR - Historical Wholesale'!D63 -> 0 | E64: 0 | F64: 0 | H64: ='16. RTSR - Historical Wholesale'!H63 -> 0 | I64: 0 | J64: 0 | L64: ='16. RTSR - Historical Wholesale'!L63 -> 0 | M64: 0 | N64: 0 | P64: 0
B65: August | D65: ='16. RTSR - Historical Wholesale'!D64 -> 0 | E65: 0 | F65: 0 | H65: ='16. RTSR - Historical Wholesale'!H64 -> 0 | I65: 0 | J65: 0 | L65: ='16. RTSR - Historical Wholesale'!L64 -> 0 | M65: 0 | N65: 0 | P65: 0
B66: September | D66: ='16. RTSR - Historical Wholesale'!D65 -> 0 | E66: 0 | F66: 0 | H66: ='16. RTSR - Historical Wholesale'!H65 -> 0 | I66: 0 | J66: 0 | L66: ='16. RTSR - Historical Wholesale'!L65 -> 0 | M66: 0 | N66: 0 | P66: 0
B67: October | D67: ='16. RTSR - Historical Wholesale'!D66 -> 0 | E67: 0 | F67: 0 | H67: ='16. RTSR - Historical Wholesale'!H66 -> 0 | I67: 0 | J67: 0 | L67: ='16. RTSR - Historical Wholesale'!L66 -> 0 | M67: 0 | N67: 0 | P67: 0
B68: November | D68: ='16. RTSR - Historical Wholesale'!D67 -> 0 | E68: 0 | F68: 0 | H68: ='16. RTSR - Historical Wholesale'!H67 -> 0 | I68: 0 | J68: 0 | L68: ='16. RTSR - Historical Wholesale'!L67 -> 0 | M68: 0 | N68: 0 | P68: 0
B69: December | D69: ='16. RTSR - Historical Wholesale'!D68 -> 0 | E69: 0 | F69: 0 | H69: ='16. RTSR - Historical Wholesale'!H68 -> 0 | I69: 0 | J69: 0 | L69: ='16. RTSR - Historical Wholesale'!L68 -> 0 | M69: 0 | N69: 0 | P69: 0
B71: Total | D71: =SUM(D58:D69) -> 0 | E71: =IF(D71<>0,F71/D71,0) -> 0 | F71: =SUM(F58:F69) -> 0 | H71: =SUM(H58:H69) -> 0 | I71: =IF(H71<>0,J71/H71,0) -> 0 | J71: =SUM(J58:J69) -> 0 | L71: =SUM(L58:L69) -> 0 | M71: =IF(L71<>0,N71/L71,0) -> 0 | N71: =SUM(N58:N69) -> 0 | P71: =SUM(P58:P69) -> 0
B73: ='16. RTSR - Historical Wholesale'!B72 -> Add Extra Host Here (II) | D73: Network | H73: Line Connection | L73: Transformation Connection | P73: Total Line
B75: Month | D75: Units Billed | E75: Rate | F75: Amount | H75: Units Billed | I75: Rate | J75: Amount | L75: Units Billed | M75: Rate | N75: Amount | P75: Amount
B77: January | D77: ='16. RTSR - Historical Wholesale'!D76 -> 0 | E77: ='15. RTSR - UTRs & Sub-Tx'!I65 -> 0 | F77: =D77*E77 -> 0 | H77: ='16. RTSR - Historical Wholesale'!H76 -> 0 | I77: ='15. RTSR - UTRs & Sub-Tx'!I67 -> 0 | J77: =H77*I77 -> 0 | L77: ='16. RTSR - Historical Wholesale'!L76 -> 0 | M77: ='15. RTSR - UTRs & Sub-Tx'!I69 -> 0 | N77: =L77*M77 -> 0 | P77: =J77+N77 -> 0
B78: February | D78: ='16. RTSR - Historical Wholesale'!D77 -> 0 | E78: =E77 -> 0 | F78: 0 | H78: ='16. RTSR - Historical Wholesale'!H77 -> 0 | I78: =I77 -> 0 | J78: 0 | L78: ='16. RTSR - Historical Wholesale'!L77 -> 0 | M78: =M77 -> 0 | N78: 0 | P78: 0
B79: March | D79: ='16. RTSR - Historical Wholesale'!D78 -> 0 | E79: 0 | F79: 0 | H79: ='16. RTSR - Historical Wholesale'!H78 -> 0 | I79: 0 | J79: 0 | L79: ='16. RTSR - Historical Wholesale'!L78 -> 0 | M79: 0 | N79: 0 | P79: 0
B80: April | D80: ='16. RTSR - Historical Wholesale'!D79 -> 0 | E80: 0 | F80: 0 | H80: ='16. RTSR - Historical Wholesale'!H79 -> 0 | I80: 0 | J80: 0 | L80: ='16. RTSR - Historical Wholesale'!L79 -> 0 | M80: 0 | N80: 0 | P80: 0
B81: May | D81: ='16. RTSR - Historical Wholesale'!D80 -> 0 | E81: 0 | F81: 0 | H81: ='16. RTSR - Historical Wholesale'!H80 -> 0 | I81: 0 | J81: 0 | L81: ='16. RTSR - Historical Wholesale'!L80 -> 0 | M81: 0 | N81: 0 | P81: 0
B82: June | D82: ='16. RTSR - Historical Wholesale'!D81 -> 0 | E82: 0 | F82: 0 | H82: ='16. RTSR - Historical Wholesale'!H81 -> 0 | I82: 0 | J82: 0 | L82: ='16. RTSR - Historical Wholesale'!L81 -> 0 | M82: 0 | N82: 0 | P82: 0
B83: July | D83: ='16. RTSR - Historical Wholesale'!D82 -> 0 | E83: 0 | F83: 0 | H83: ='16. RTSR - Historical Wholesale'!H82 -> 0 | I83: 0 | J83: 0 | L83: ='16. RTSR - Historical Wholesale'!L82 -> 0 | M83: 0 | N83: 0 | P83: 0
B84: August | D84: ='16. RTSR - Historical Wholesale'!D83 -> 0 | E84: 0 | F84: 0 | H84: ='16. RTSR - Historical Wholesale'!H83 -> 0 | I84: 0 | J84: 0 | L84: ='16. RTSR - Historical Wholesale'!L83 -> 0 | M84: 0 | N84: 0 | P84: 0
B85: September | D85: ='16. RTSR - Historical Wholesale'!D84 -> 0 | E85: 0 | F85: 0 | H85: ='16. RTSR - Historical Wholesale'!H84 -> 0 | I85: 0 | J85: 0 | L85: ='16. RTSR - Historical Wholesale'!L84 -> 0 | M85: 0 | N85: 0 | P85: 0
B86: October | D86: ='16. RTSR - Historical Wholesale'!D85 -> 0 | E86: 0 | F86: 0 | H86: ='16. RTSR - Historical Wholesale'!H85 -> 0 | I86: 0 | J86: 0 | L86: ='16. RTSR - Historical Wholesale'!L85 -> 0 | M86: 0 | N86: 0 | P86: 0
B87: November | D87: ='16. RTSR - Historical Wholesale'!D86 -> 0 | E87: 0 | F87: 0 | H87: ='16. RTSR - Historical Wholesale'!H86 -> 0 | I87: 0 | J87: 0 | L87: ='16. RTSR - Historical Wholesale'!L86 -> 0 | M87: 0 | N87: 0 | P87: 0
B88: December | D88: ='16. RTSR - Historical Wholesale'!D87 -> 0 | E88: 0 | F88: 0 | H88: ='16. RTSR - Historical Wholesale'!H87 -> 0 | I88: 0 | J88: 0 | L88: ='16. RTSR - Historical Wholesale'!L87 -> 0 | M88: 0 | N88: 0 | P88: 0
B90: Total | D90: =SUM(D77:D88) -> 0 | E90: =IF(D90<>0,F90/D90,0) -> 0 | F90: =SUM(F77:F88) -> 0 | H90: =SUM(H77:H88) -> 0 | I90: =IF(H90<>0,J90/H90,0) -> 0 | J90: =SUM(J77:J88) -> 0 | L90: =SUM(L77:L88) -> 0 | M90: =IF(L90<>0,N90/L90,0) -> 0 | N90: =SUM(N77:N88) -> 0 | P90: =SUM(P77:P88) -> 0
B92: Total | D92: Network | H92: Line Connection | L92: Transformation Connection | P92: Total Line
B94: Month | D94: Units Billed | E94: Rate | F94: Amount | H94: Units Billed | I94: Rate | J94: Amount | L94: Units Billed | M94: Rate | N94: Amount | P94: Amount
B96: January | D96: =D20+D39 -> 84622 | E96: =IF(D96<>0,F96/D96,0) -> 3.416720303 | F96: =F20+F39 -> 289129.7055 | H96: =H20+H39 -> 86293 | I96: =IF(H96<>0,J96/H96,0) -> 0.7313466805 | J96: =J20+J39 -> 63110.0991 | L96: =L20+L39 -> 86293 | M96: =IF(L96<>0,N96/L96,0) -> 1.658839767 | N96: =N20+N39 -> 143146.26 | P96: =J96+N96 -> 206256.3591
B97: February | D97: 81125 | E97: 3.416743063 | F97: 277183.281 | H97: 82660 | I97: 0.730981459 | J97: 60422.9274 | L97: 82660 | M97: 1.65787128 | N97: 137039.64 | P97: 197462.5674
B98: March | D98: 74455 | E98: 3.426049399 | F98: 255086.508 | H98: 79299 | I98: 0.7367514105 | J98: 58423.6501 | L98: 79299 | M98: 1.673171919 | N98: 132680.86 | P98: 191104.5101
B99: April | D99: 78182.39 | E99: 3.447489676 | F99: 269532.9823 | H99: 83591.3 | I99: 0.7457589846 | J99: 62338.96301 | L99: 83591.3 | M99: 1.697058019 | N99: 141859.286 | P99: 204198.249
B100: May | D100: 93274.8 | E100: 3.449798511 | F100: 321779.2662 | H100: 96268.8 | I100: 0.7463785189 | J100: 71852.96436 | L100: 96268.8 | M100: 1.698700888 | N100: 163531.896 | P100: 235384.8604
B101: June | D101: 105572.35 | E101: 3.433952657 | F101: 362530.4518 | H101: 105828.35 | I101: 0.7374011675 | J101: 78037.94885 | L101: 105828.35 | M101: 1.674894931 | N101: 177251.367 | P101: 255289.3158
B102: July | D102: 113073.92 | E102: 3.435236886 | F102: 388435.7009 | H102: 114029.92 | I102: 0.7385864733 | J102: 84220.95646 | L102: 114029.92 | M102: 1.678038101 | N102: 191346.5504 | P102: 275567.5069
B103: August | D103: 101710.69 | E103: 3.439787699 | F103: 349863.1803 | H103: 102466.69 | I103: 0.740067591 | J103: 75832.27642 | L103: 102466.69 | M103: 1.681965698 | N103: 172345.4578 | P103: 248177.7342
B104: September | D104: 104914.87 | E104: 3.440804707 | F104: 360991.5786 | H104: 106964.75 | I104: 0.7396998612 | J104: 79121.81073 | L104: 106964.75 | M104: 1.68099056 | N104: 179806.735 | P104: 258928.5457
B105: October | D105: 85884.66 | E105: 3.433516888 | F105: 294886.4305 | H105: 90302.17 | I105: 0.7381754407 | J105: 66658.84414 | L105: 90302.17 | M105: 1.676948133 | N105: 151432.0554 | P105: 218090.8995
B106: November | D106: 93559.35 | E106: 3.429853283 | F106: 320894.8438 | H106: 95974.24 | I106: 0.7367031811 | J106: 70704.52791 | L106: 95974.24 | M106: 1.673044025 | N106: 160569.1288 | P106: 231273.6567
B107: December | D107: 103253.83 | E107: 3.425281634 | F107: 353673.4475 | H107: 86235.97584 | I107: 0.7391996816 | J107: 63745.60588 | L107: 86235.97584 | M107: 1.679664194 | N107: 144847.4809 | P107: 208593.0867
B109: Total | D109: =SUM(D96:D107) -> 1119628.86 | E109: =IF(D109<>0,F109/D109,0) -> 3.433269286 | F109: =SUM(F96:F107) -> 3843987.376 | H109: =SUM(H96:H107) -> 1129914.196 | I109: =IF(H109<>0,J109/H109,0) -> 0.7385256132 | J109: =SUM(J96:J107) -> 834470.5744 | L109: =SUM(L96:L107) -> 1129914.196 | M109: =IF(L109<>0,N109/L109,0) -> 1.677876713 | N109: =SUM(N96:N107) -> 1895856.717 | P109: =SUM(P96:P107) -> 2730327.292
N111: Transformer Allowance Credit (if applicable) | P111: ='15. RTSR - UTRs & Sub-Tx'!I95 -> 0
N113: Total including deduction for Transformer Allowance Credit | P113: =P109+P111 -> 2730327.292

Sheet 19. RTSR Ntwrk to Curren WS
A13: The purpose of this sheet is to re-align the current RTS Network Rates to recover current wholesale network costs.
A16: Rate Class | B16: Rate Description | C16: Unit | E16: Current RTSR-Network | G16: Loss Adjusted Billed kWh | I16: Loss Adjusted Billed kW | K16: Billed Amount | M16: Billed Amount % | O16: Current Wholesale Billing | Q16: Proposed RTSR Network
A19: RESIDENTIAL - TIME OF USE | B19: Retail Transmission Rate - Network Service Rate | C19: $/kWh | E19: 0.0073 | G19: 219899987.8 | I19: 0 | K19: =IF(E19="", "", IF(C19="$/kWh", E19*G19, E19*I19)) -> 1605269.911 | M19: =IF(ISERROR(K19/SUM(K19:K100)),"",K19/SUM(K19:K100)) -> 0.4231901382 | O19: =IF(ISERROR('17. RTSR - Current Wholesale'!$F$109*M19), "", '17. RTSR - Current Wholesale'!$F$109*M19) -> 1629404.036 | Q19: =IF(C19="","",IF(C19="$/kWh",IF(G19<>0,O19/G19,),IF(I19<>0,O19/I19,0))) -> 0.007409750463
A20: GENERAL SERVICE LESS THAN 50 KW | B20: Retail Transmission Rate - Network Service Rate | C20: $/kWh | E20: 0.0065 | G20: 60325086.32 | I20: 0 | K20: 392113.0611 | M20: =IF(ISERROR(K20/SUM(K19:K100)),"",K20/SUM(K19:K100)) -> 0.1033710153 | O20: =IF(ISERROR('17. RTSR - Current Wholesale'!$F$109*M20), "", '17. RTSR - Current Wholesale'!$F$109*M20) -> 398008.2104 | Q20: 0.006597723015
A21: GENERAL SERVICE 50 TO 999 KW | B21: Retail Transmission Rate - Network Service Rate | C21: $/kW | E21: 2.8269 | G21: 0 | I21: 330614 | K21: 934612.7166 | M21: =IF(ISERROR(K21/SUM(K19:K100)),"",K21/SUM(K19:K100)) -> 0.2463877769 | O21: =IF(ISERROR('17. RTSR - Current Wholesale'!$F$109*M21), "", '17. RTSR - Current Wholesale'!$F$109*M21) -> 948663.9739 | Q21: 2.869400491
A22: GENERAL SERVICE 1,000 TO 4,999 KW - INTERVAL METERS | B22: Retail Transmission Rate - Network Service Rate | C22: $/kW | E22: 2.8269 | G22: 0 | I22: 296493 | K22: 838156.0617 | M22: =IF(ISERROR(K22/SUM(K19:K100)),"",K22/SUM(K19:K100)) -> 0.2209593397 | O22: =IF(ISERROR('17. RTSR - Current Wholesale'!$F$109*M22), "", '17. RTSR - Current Wholesale'!$F$109*M22) -> 850757.1597 | Q22: 2.869400491
A23: UNMETERED SCATTERED LOAD | B23: Retail Transmission Rate - Network Service Rate | C23: $/kWh | E23: 0.0065 | G23: 954472.6152 | I23: 0 | K23: 6204.071999 | M23: =IF(ISERROR(K23/SUM(K19:K100)),"",K23/SUM(K19:K100)) -> 0.001635551797 | O23: =IF(ISERROR('17. RTSR - Current Wholesale'!$F$109*M23), "", '17. RTSR - Current Wholesale'!$F$109*M23) -> 6297.34594 | Q23: 0.006597723015
A24: SENTINEL LIGHTING | B24: Retail Transmission Rate - Network Service Rate | C24: $/kW | E24: 2.0167 | G24: 0 | I24: 686 | K24: 1383.4562 | M24: =IF(ISERROR(K24/SUM(K19:K100)),"",K24/SUM(K19:K100)) -> 0.0003647143801 | O24: =IF(ISERROR('17. RTSR - Current Wholesale'!$F$109*M24), "", '17. RTSR - Current Wholesale'!$F$109*M24) -> 1404.255509 | Q24: 2.047019693
A25: STREET LIGHTING | B25: Retail Transmission Rate - Network Service Rate | C25: $/kW | E25: 2.0075 | G25: 0 | I25: 7731 | K25: 15519.9825 | M25: =IF(ISERROR(K25/SUM(K19:K100)),"",K25/SUM(K19:K100)) -> 0.004091463681 | O25: =IF(ISERROR('17. RTSR - Current Wholesale'!$F$109*M25), "", '17. RTSR - Current Wholesale'!$F$109*M25) -> 15753.31473 | Q25: 2.037681377

Sheet 20. RTSR Adj Conn to Current WS
A13: The purpose of this sheet is to re-align the current RTS Connection Rates to recover current wholesale connection costs.
A16: Rate Class | B16: Rate Description | C16: Unit | E16: Current RTSR-Connection | G16: Loss Adjusted Billed kWh | I16: Loss Adjusted Billed kW | K16: Billed Amount | M16: Billed Amount % | O16: Current Wholesale Billing | Q16: Proposed RTSR Connection
A19: RESIDENTIAL - TIME OF USE | B19: Retail Transmission Rate - Line and Transformation Connection Service Rate | C19: $/kWh | E19: 0.0052 | G19: 219899987.8 | I19: 0 | K19: =IF(E19="", "", IF(C19="$/kWh", E19*G19, E19*I19)) -> 1143479.936 | M19: =IF(ISERROR(K19/SUM(K19:K100)),"",K19/SUM(K19:K100)) -> 0.414226459 | O19: =IF(ISERROR('17. RTSR - Current Wholesale'!$P$113*M19), "", '17. RTSR - Current Wholesale'!$P$113*M19) -> 1126696.653 | Q19: =IF(C19="","",IF(C19="$/kWh",IF(G19<>0,O19/G19,),IF(I19<>0,O19/I19,0))) -> 0.00512367765
A20: GENERAL SERVICE LESS THAN 50 KW | B20: Retail Transmission Rate - Line and Transformation Connection Service Rate | C20: $/kWh | E20: 0.0049 | G20: 60325086.32 | I20: 0 | K20: 295592.923 | M20: =IF(ISERROR(K20/SUM(K19:K100)),"",K20/SUM(K19:K100)) -> 0.1070787566 | O20: =IF(ISERROR('17. RTSR - Current Wholesale'!$P$113*M20), "", '17. RTSR - Current Wholesale'!$P$113*M20) -> 291254.3948 | Q20: 0.004828080863
A21: GENERAL SERVICE 50 TO 999 KW | B21: Retail Transmission Rate - Line and Transformation Connection Service Rate | C21: $/kW | E21: 2.0801 | G21: 0 | I21: 330614 | K21: 687710.1814 | M21: =IF(ISERROR(K21/SUM(K19:K100)),"",K21/SUM(K19:K100)) -> 0.2491235257 | O21: =IF(ISERROR('17. RTSR - Current Wholesale'!$P$113*M21), "", '17. RTSR - Current Wholesale'!$P$113*M21) -> 677616.4012 | Q21: 2.049569592
A22: GENERAL SERVICE 1,000 TO 4,999 KW - INTERVAL METERS | B22: Retail Transmission Rate - Line and Transformation Connection Service Rate | C22: $/kW | E22: 2.0801 | G22: 0 | I22: 296493 | K22: 616735.0893 | M22: =IF(ISERROR(K22/SUM(K19:K100)),"",K22/SUM(K19:K100)) -> 0.2234127457 | O22: =IF(ISERROR('17. RTSR - Current Wholesale'!$P$113*M22), "", '17. RTSR - Current Wholesale'!$P$113*M22) -> 607683.0372 | Q22: 2.049569592
A23: UNMETERED SCATTERED LOAD | B23: Retail Transmission Rate - Line and Transformation Connection Service Rate | C23: $/kWh | E23: 0.0049 | G23: 945469.8552 | I23: 0 | K23: 4632.80229 | M23: =IF(ISERROR(K23/SUM(K19:K100)),"",K23/SUM(K19:K100)) -> 0.001678236082 | O23: =IF(ISERROR('17. RTSR - Current Wholesale'!$P$113*M23), "", '17. RTSR - Current Wholesale'!$P$113*M23) -> 4564.804914 | Q23: 0.004828080863
A24: SENTINEL LIGHTING | B24: Retail Transmission Rate - Line and Transformation Connection Service Rate | C24: $/kW | E24: 1.4975 | G24: 0 | I24: 686 | K24: 1027.285 | M24: =IF(ISERROR(K24/SUM(K19:K100)),"",K24/SUM(K19:K100)) -> 0.0003721347567 | O24: =IF(ISERROR('17. RTSR - Current Wholesale'!$P$113*M24), "", '17. RTSR - Current Wholesale'!$P$113*M24) -> 1012.207153 | Q24: 1.475520631
A25: STREET LIGHTING | B25: Retail Transmission Rate - Line and Transformation Connection Service Rate | C25: $/kW | E25: 1.4669 | G25: 0 | I25: 7731 | K25: 11340.6039 | M25: =IF(ISERROR(K25/SUM(K19:K100)),"",K25/SUM(K19:K100)) -> 0.004108142213 | O25: =IF(ISERROR('17. RTSR - Current Wholesale'!$P$113*M25), "", '17. RTSR - Current Wholesale'!$P$113*M25) -> 11174.1536 | Q25: 1.445369759

Sheet 21. RTSR Adj Ntwk to Forcast WS
A13: The purpose of this sheet is to update the re-align RTS Network Rates to recover forecast wholesale network costs.
A16: Rate Class | B16: Rate Description | C16: Unit | E16: Adjusted RTSR-Network | G16: Loss Adjusted Billed kWh | I16: Loss Adjusted Billed kW | K16: Billed Amount | M16: Billed Amount % | O16: Forecast Wholesale Billing | Q16: Proposed RTSR Network
A19: RESIDENTIAL - TIME OF USE | B19: Retail Transmission Rate - Network Service Rate | C19: $/kWh | E19: 0.007409750463 | G19: 219899987.8 | I19: 0 | K19: =IF(E19="", "", IF(C19="$/kWh", E19*G19, E19*I19)) -> 1629404.036 | M19: =IF(ISERROR(K19/SUM(K19:K100)),"",K19/SUM(K19:K100)) -> 0.4231901382 | O19: =IF(ISERROR('18. RTSR - Forecast Wholesale'!$F$109*M19), "", '18. RTSR - Forecast Wholesale'!$F$109*M19) -> 1626737.549 | Q19: =IF(C19="","",IF(C19="$/kWh",IF(G19<>0,O19/G19,),IF(I19<>0,O19/I19,0))) -> 0.007397624554
A20: GENERAL SERVICE LESS THAN 50 KW | B20: Retail Transmission Rate - Network Service Rate | C20: $/kWh | E20: 0.006597723015 | G20: 60325086.32 | I20: 0 | K20: 398008.2104 | M20: =IF(ISERROR(K20/SUM(K19:K100)),"",K20/SUM(K19:K100)) -> 0.1033710153 | O20: =IF(ISERROR('18. RTSR - Forecast Wholesale'!$F$109*M20), "", '18. RTSR - Forecast Wholesale'!$F$109*M20) -> 397356.8779 | Q20: 0.006586925972
A21: GENERAL SERVICE 50 TO 999 KW | B21: Retail Transmission Rate - Network Service Rate | C21: $/kW | E21: 2.869400491 | G21: 0 | I21: 330614 | K21: 948663.9739 | M21: =IF(ISERROR(K21/SUM(K19:K100)),"",K21/SUM(K19:K100)) -> 0.2463877769 | O21: =IF(ISERROR('18. RTSR - Forecast Wholesale'!$F$109*M21), "", '18. RTSR - Forecast Wholesale'!$F$109*M21) -> 947111.5042 | Q21: 2.864704774
A22: GENERAL SERVICE 1,000 TO 4,999 KW - INTERVAL METERS | B22: Retail Transmission Rate - Network Service Rate | C22: $/kW | E22: 2.869400491 | G22: 0 | I22: 296493 | K22: 850757.1597 | M22: =IF(ISERROR(K22/SUM(K19:K100)),"",K22/SUM(K19:K100)) -> 0.2209593397 | O22: =IF(ISERROR('18. RTSR - Forecast Wholesale'!$F$109*M22), "", '18. RTSR - Forecast Wholesale'!$F$109*M22) -> 849364.9126 | Q22: 2.864704774
A23: UNMETERED SCATTERED LOAD | B23: Retail Transmission Rate - Network Service Rate | C23: $/kWh | E23: 0.006597723015 | G23: 954472.6152 | I23: 0 | K23: 6297.34594 | M23: =IF(ISERROR(K23/SUM(K19:K100)),"",K23/SUM(K19:K100)) -> 0.001635551797 | O23: =IF(ISERROR('18. RTSR - Forecast Wholesale'!$F$109*M23), "", '18. RTSR - Forecast Wholesale'!$F$109*M23) -> 6287.040459 | Q23: 0.006586925972
A24: SENTINEL LIGHTING | B24: Retail Transmission Rate - Network Service Rate | C24: $/kW | E24: 2.047019693 | G24: 0 | I24: 686 | K24: 1404.255509 | M24: =IF(ISERROR(K24/SUM(K19:K100)),"",K24/SUM(K19:K100)) -> 0.0003647143801 | O24: =IF(ISERROR('18. RTSR - Forecast Wholesale'!$F$109*M24), "", '18. RTSR - Forecast Wholesale'!$F$109*M24) -> 1401.957473 | Q24: 2.043669786
A25: STREET LIGHTING | B25: Retail Transmission Rate - Network Service Rate | C25: $/kW | E25: 2.037681377 | G25: 0 | I25: 7731 | K25: 15753.31473 | M25: =IF(ISERROR(K25/SUM(K19:K100)),"",K25/SUM(K19:K100)) -> 0.004091463681 | O25: =IF(ISERROR('18. RTSR - Forecast Wholesale'!$F$109*M25), "", '18. RTSR - Forecast Wholesale'!$F$109*M25) -> 15727.53474 | Q25: 2.034346752

Sheet 22. RTSR Adj Conn. to Forcst WS
A13: The purpose of this sheet is to update the re-aligned RTS Connection Rates to recover forecast wholesale connection costs.
A16: Rate Class | B16: Rate Description | C16: Unit | E16: Adjusted RTSR-Connection | G16: Loss Adjusted Billed kWh | I16: Loss Adjusted Billed kW | K16: Billed Amount | M16: Billed Amount % | O16: Forecast Wholesale Billing | Q16: Proposed RTSR Connection
A19: RESIDENTIAL - TIME OF USE | B19: Retail Transmission Rate - Line and Transformation Connection Service Rate | C19: $/kWh | E19: 0.00512367765 | G19: 219899987.8 | I19: 0 | K19: =IF(E19="", "", IF(C19="$/kWh", E19*G19, E19*I19)) -> 1126696.653 | M19: =IF(ISERROR(K19/SUM(K19:K100)),"",K19/SUM(K19:K100)) -> 0.414226459 | O19: =IF(ISERROR('18. RTSR - Forecast Wholesale'!$P$113*M19), "", '18. RTSR - Forecast Wholesale'!$P$113*M19) -> 1130973.806 | Q19: =IF(C19="","",IF(C19="$/kWh",IF(G19<>0,O19/G19,),IF(I19<>0,O19/I19,0))) -> 0.005143128099
A20: GENERAL SERVICE LESS THAN 50 KW | B20: Retail Transmission Rate - Line and Transformation Connection Service Rate | C20: $/kWh | E20: 0.004828080863 | G20: 60325086.32 | I20: 0 | K20: 291254.3948 | M20: =IF(ISERROR(K20/SUM(K19:K100)),"",K20/SUM(K19:K100)) -> 0.1070787566 | O20: =IF(ISERROR('18. RTSR - Forecast Wholesale'!$P$113*M20), "", '18. RTSR - Forecast Wholesale'!$P$113*M20) -> 292360.0515 | Q20: 0.00484640917
A21: GENERAL SERVICE 50 TO 999 KW | B21: Retail Transmission Rate - Line and Transformation Connection Service Rate | C21: $/kW | E21: 2.049569592 | G21: 0 | I21: 330614 | K21: 677616.4012 | M21: =IF(ISERROR(K21/SUM(K19:K100)),"",K21/SUM(K19:K100)) -> 0.2491235257 | O21: =IF(ISERROR('18. RTSR - Forecast Wholesale'!$P$113*M21), "", '18. RTSR - Forecast Wholesale'!$P$113*M21) -> 680188.7611 | Q21: 2.057350146
A22: GENERAL SERVICE 1,000 TO 4,999 KW - INTERVAL METERS | B22: Retail Transmission Rate - Line and Transformation Connection Service Rate | C22: $/kW | E22: 2.049569592 | G22: 0 | I22: 296493 | K22: 607683.0372 | M22: =IF(ISERROR(K22/SUM(K19:K100)),"",K22/SUM(K19:K100)) -> 0.2234127457 | O22: =IF(ISERROR('18. RTSR - Forecast Wholesale'!$P$113*M22), "", '18. RTSR - Forecast Wholesale'!$P$113*M22) -> 609989.9168 | Q22: 2.057350146
A23: UNMETERED SCATTERED LOAD | B23: Retail Transmission Rate - Line and Transformation Connection Service Rate | C23: $/kWh | E23: 0.004828080863 | G23: 945469.8552 | I23: 0 | K23: 4564.804914 | M23: =IF(ISERROR(K23/SUM(K19:K100)),"",K23/SUM(K19:K100)) -> 0.001678236082 | O23: =IF(ISERROR('18. RTSR - Forecast Wholesale'!$P$113*M23), "", '18. RTSR - Forecast Wholesale'!$P$113*M23) -> 4582.133776 | Q23: 0.00484640917
A24: SENTINEL LIGHTING | B24: Retail Transmission Rate - Line and Transformation Connection Service Rate | C24: $/kW | E24: 1.475520631 | G24: 0 | I24: 686 | K24: 1012.207153 | M24: =IF(ISERROR(K24/SUM(K19:K100)),"",K24/SUM(K19:K100)) -> 0.0003721347567 | O24: =IF(ISERROR('18. RTSR - Forecast Wholesale'!$P$113*M24), "", '18. RTSR - Forecast Wholesale'!$P$113*M24) -> 1016.049682 | Q24: 1.481121986
A25: STREET LIGHTING | B25: Retail Transmission Rate - Line and Transformation Connection Service Rate | C25: $/kW | E25: 1.445369759 | G25: 0 | I25: 7731 | K25: 11174.1536 | M25: =IF(ISERROR(K25/SUM(K19:K100)),"",K25/SUM(K19:K100)) -> 0.004108142213 | O25: =IF(ISERROR('18. RTSR - Forecast Wholesale'!$P$113*M25), "", '18. RTSR - Forecast Wholesale'!$P$113*M25) -> 11216.5728 | Q25: 1.450856655

Sheet 23. RTSR Final 2015 RTS Rates
A13: This sheet lists proposed RTSRs for all classes. No input required.
A16: Rate Class | B16: Rate Description | C16: Unit | E16: Proposed Retail Transmission Rate
A19: RESIDENTIAL - TIME OF USE | B19: Retail Transmission Rate - Network Service Rate | C19: $/kWh | E19: 0.007397624554
A20: RESIDENTIAL - TIME OF USE | B20: Retail Transmission Rate - Line and Transformation Connection Service Rate | C20: $/kWh | E20: 0.005143128099
A21: GENERAL SERVICE LESS THAN 50 KW | B21: Retail Transmission Rate - Network Service Rate | C21: $/kWh | E21: 0.006586925972
A22: GENERAL SERVICE LESS THAN 50 KW | B22: Retail Transmission Rate - Line and Transformation Connection Service Rate | C22: $/kWh | E22: 0.00484640917
A23: GENERAL SERVICE 50 TO 999 KW | B23: Retail Transmission Rate - Network Service Rate | C23: $/kW | E23: 2.864704774
A24: GENERAL SERVICE 50 TO 999 KW | B24: Retail Transmission Rate - Line and Transformation Connection Service Rate | C24: $/kW | E24: 2.057350146
A25: GENERAL SERVICE 1,000 TO 4,999 KW - INTERVAL METERS | B25: Retail Transmission Rate - Network Service Rate | C25: $/kW | E25: 2.864704774
A26: GENERAL SERVICE 1,000 TO 4,999 KW - INTERVAL METERS | B26: Retail Transmission Rate - Line and Transformation Connection Service Rate | C26: $/kW | E26: 2.057350146
A27: UNMETERED SCATTERED LOAD | B27: Retail Transmission Rate - Network Service Rate | C27: $/kWh | E27: 0.006586925972
A28: UNMETERED SCATTERED LOAD | B28: Retail Transmission Rate - Line and Transformation Connection Service Rate | C28: $/kWh | E28: 0.00484640917
A29: SENTINEL LIGHTING | B29: Retail Transmission Rate - Network Service Rate | C29: $/kW | E29: 2.043669786
A30: SENTINEL LIGHTING | B30: Retail Transmission Rate - Line and Transformation Connection Service Rate | C30: $/kW | E30: 1.481121986
A31: STREET LIGHTING | B31: Retail Transmission Rate - Network Service Rate | C31: $/kW | E31: 2.034346752
A32: STREET LIGHTING | B32: Retail Transmission Rate - Line and Transformation Connection Service Rate | C32: $/kW | E32: 1.450856655

Sheet 24. Rev2Cost_GDPIPI
Y1: FALSE | Z1: 0 | AC1: NO
Y2: TRUE
A12: If applicable, please enter any adjustments related to the revenue to cost ratio model into columns C and E. The Price Escalator and Stretch Factor have been set at the 2014 values and will be updated by Board staff at a later date.
A15: Price Escalator | B15: 0.016 | C15: Choose Stretch Factor Group | E15: I
A16: Productivity Factor | B16: 0 | C16: Associated Stretch Factor Value | E16: =IF(E15="I", 0%, IF(E15="II", 0.15%, IF(E15="III", 0.3%, IF(E15="IV", 0.45%, 0.6%)))) -> 0
A17: Price Cap Index | B17: =B15-B16-E16 -> 0.016
B19: Current MFC | C19: MFC Adjustment from R/C Model | D19: Current Volumetric Charge | E19: DVR Adjustment from R/C Model | F19: Price Cap Index to be Applied to MFC and DVR | G19: Proposed MFC | H19: Proposed Volumetric Charge
A20: Rate Class
A22: RESIDENTIAL - TIME OF USE | B22: 12.52 | C22: 0 | D22: 0.0118 | E22: 0 | F22: =$B$17 -> 0.016 | G22: =ROUND(SUM(B22,C22)*(1+F22),2) -> 12.72 | H22: =ROUND(SUM(D22,E22)*(1+F22),4) -> 0.012
A23: GENERAL SERVICE LESS THAN 50 KW | B23: 27.08 | C23: 0 | D23: 0.0084 | E23: 0 | F23: 0.016 | G23: 27.51 | H23: 0.0085
A24: GENERAL SERVICE 50 TO 999 KW | B24: 76.28 | C24: 0 | D24: 3.4016 | E24: 0 | F24: 0.016 | G24: 77.5 | H24: 3.456
A25: GENERAL SERVICE 1,000 TO 4,999 KW - INTERVAL METERS | B25: 177.1 | C25: 0 | D25: 3.1184 | E25: 0 | F25: 0.016 | G25: 179.93 | H25: 3.1683
A26: GENERAL SERVICE GREATER THAN 50 kW - WMP | F26: 0.016 | G26: 0 | H26: 0
A27: UNMETERED SCATTERED LOAD | B27: 6.64 | C27: 0 | D27: 0.0044 | E27: 0 | F27: 0.016 | G27: 6.75 | H27: 0.0045
A28: SENTINEL LIGHTING | B28: 4.98 | C28: 0 | D28: 18.8596 | E28: 0 | F28: 0.016 | G28: 5.06 | H28: 19.1614
A29: STREET LIGHTING | B29: 2.19 | C29: 0 | D29: 29.5874 | E29: 0 | F29: 0.016 | G29: 2.23 | H29: 30.0608
A30: microFIT | B30: 5.4 | G30: 5.4

Sheet 24. hidden (hidden)
A1: Rate Class | B1: MFC Adjustment from R/C Model | C1: DVR Adjustment from R/C Model
A2: RESIDENTIAL - TIME OF USE | B2: 12.52 | C2: 0 | D2: 0.0118 | E2: 0
A3: GENERAL SERVICE LESS THAN 50 KW | B3: 27.08 | C3: 0 | D3: 0.0084 | E3: 0
A4: GENERAL SERVICE 50 TO 999 KW | B4: 76.28 | C4: 0 | D4: 3.4016 | E4: 0
A5: GENERAL SERVICE 1,000 TO 4,999 KW - INTERVAL METERS | B5: 177.1 | C5: 0 | D5: 3.1184 | E5: 0
A6: GENERAL SERVICE GREATER THAN 50 kW - WMP
A7: UNMETERED SCATTERED LOAD | B7: 6.64 | C7: 0 | D7: 0.0044 | E7: 0
A8: SENTINEL LIGHTING | B8: 4.98 | C8: 0 | D8: 18.8596 | E8: 0
A9: STREET LIGHTING | B9: 2.19 | C9: 0 | D9: 29.5874 | E9: 0

Sheet 25. Other Charges & LF
A11: Please enter the following charges as found on your most recent Board-Approved Tariff Schedule. The standard Allowance rates have been included as default entries. If you have different rates, please make the appropriate corrections in the applicable cells below. As well, please enter the current Specific Service Charges below. The standard Retail Service Charges have been entered below. If you have different rates, please make the appropriate corrections in columns A, C or D as applicable (cells are unlocked).
C13: UNIT | D13: RATE
A15: ALLOWANCES
A17: Transformer Allowance for Ownership - per kW of billing demand/month | C17: $/kW | D17: -0.5
A20: Primary Metering Allowance for transformer losses – applied to measured demand and energy | C20: % | D20: -1
A22: SPECIFIC SERVICE CHARGES
A24: APPLICATION
A26: The application of these rates and charges shall be in accordance with the Licence of the Distributor and any Code or Order of the Board, and amendments thereto as approved by the Board, which may be applicable to the administration of this schedule.
A27: No charges to meet the costs of any work or service done or furnished for the purpose of the distribution of electricity shall be made except as permitted by this schedule, unless required by the Distributor’s Licence or a Code or Order of the Board, and amendments thereto as approved by the Board, or as specified herein.
A28: It should be noted that this schedule does not list any charges, assessments or credits that are required by law to be invoiced by a distributor and that are not subject to Board approval, such as the Debt Retirement Charge, the Global Adjustment, the Ontario Clean Energy Benefit and the HST.
A30: Customer Administration
A31: Arrears certificate | C31: $ | D31: 15
A32: Statement of Account | C32: $ | D32: 15
A33: Pulling Post Dated Cheques | C33: $ | D33: 15
A34: Duplicate Invoices for previous billing | C34: $ | D34: 15
A35: Request for other billing information | C35: $ | D35: 15
A36: Easement Letter | C36: $ | D36: 15
A37: Income Tax Letter | C37: $ | D37: 15
A38: Notification charge | C38: $ | D38: 15
A39: Account History | C39: $ | D39: 15
A40: Credit Reference/credit check (plus credit agency costs) | C40: $ | D40: 15
A41: Returned cheque (plus bank charges) | C41: $ | D41: 15
A42: Charge to certify cheque | C42: $ | D42: 15
A43: Legal letter charge | C43: $ | D43: 15
A44: Account set up charge/change of occupancy charge (plus credit agency costs if applicable) | C44: $ | D44: 30
A45: Special meter reads | C45: $ | D45: 30
A46: Meter dispute charge plus Measurement Canada fees (if meter found correct) | C46: $ | D46: 30
A67: Non-Payment of Account
A68: Late Payment – per month | C68: % | D68: 1.5
A69: Late Payment – per annum | C69: % | D69: 19.56
A70: Collection of account charge – no disconnection | C70: $ | D70: 30
A71: Collection of account charge – no disconnection – after regular hours | C71: $ | D71: 165
A72: Disconnect/Reconnect at meter – during regular hours | C72: $ | D72: 65
A73: Disconnect/Reconnect at meter – after regular hours | C73: $ | D73: 185
A74: Disconnect/Reconnect at pole – during regular hours | C74: $ | D74: 185
A75: Disconnect/Reconnect at pole – after regular hours | C75: $ | D75: 415
A94: Install/Remove load control device – during regular hours | C94: $ | D94: 65
A95: Install/Remove load control device – after regular hours | C95: $ | D95: 185
A96: Service call – customer owned equipment | C96: $ | D96: 30
A97: Service call – after regular hours | C97: $ | D97: 165
A98: Temporary Service – Install & remove – overhead – no transformer | C98: $ | D98: 500
A99: Temporary service installation and removal – underground – no transformer | C99: $ | D99: 300
A100: Temporary Service Install & Remove – Overhead – With Transformer | C100: $ | D100: 1000
A101: Specific Charge for Access to the Power Poles - $/pole/year | C101: $ | D101: 22.35
A102: Interval Meter Charge | C102: $ | D102: 20
A116: RETAIL SERVICE CHARGES (if applicable)
A118: The application of these rates and charges shall be in accordance with the Licence of the Distributor and any Code or Order of the Board, and amendments thereto as approved by the Board, which may be applicable to the administration of this schedule.
A120: No rates and charges for the distribution of electricity and charges to meet the costs of any work or service done or furnished for the purpose of the distribution of electricity shall be made except as permitted by this schedule, unless required by the Distributor’s Licence or a Code or Order of the Board, and amendments thereto as approved by the Board, or as specified herein.
A122: Unless specifically noted, this schedule does not contain any charges for the electricity commodity, be it under the Regulated Price Plan, a contract with a retailer or the wholesale market price, as applicable.
A124: It should be noted that this schedule does not list any charges, assessments, or credits that are required by law to be invoiced by a distributor and that are not subject to Board approval, such as the Debt Retirement Charge, the Global Adjustment, the Ontario Clean Energy Benefit and the HST.
A126: Retail Service Charges refer to services provided by a distributor to retailers or customers related to the supply of competitive electricity.
A128: One-time charge, per retailer, to establish the service agreement between the distributor and the retailer | C128: $ | D128: 100
A129: Monthly Fixed Charge, per retailer | C129: $ | D129: 20
A130: Monthly Variable Charge, per customer, per retailer | C130: $/cust. | D130: 0.5
A131: Distributor-consolidated billing monthly charge, per customer, per retailer | C131: $/cust. | D131: 0.3
A132: Retailer-consolidated billing monthly credit, per customer, per retailer | C132: $/cust. | D132: -0.3
A133: Service Transaction Requests (STR)
A134: Request fee, per request, applied to the requesting party | C134: $ | D134: 0.25
A135: Processing fee, per request, applied to the requesting party | C135: $ | D135: 0.5
A136: Request for customer information as outlined in Section 10.6.3 and Chapter 11 of the Retail
A137: Settlement Code directly to retailers and customers, if not delivered electronically through the
A138: Electronic Business Transaction (EBT) system, applied to the requesting party
A139: Up to twice a year | C139: $ | D139: no charge
A140: More than twice a year, per request (plus incremental delivery costs) | C140: $ | D140: 2
A143: LOSS FACTORS
A145: If the distributor is not capable of prorating changed loss factors jointly with distribution rates, the revised loss factors will be implemented upon the first subsequent billing for each billing cycle.
A148: Total Loss Factor – Secondary Metered Customer < 5,000 kW | D148: 1.0602 | H148: TLF_Secondary_LT_5000kW
A149: Total Loss Factor – Primary Metered Customer < 5,000 kW | D149: 1.0496 | H149: TLF_Primary_LT_5000kW

Sheet 26. Proposed Rates
Z1: 3
L5: =ROUND(LEN(B5), -2) / 100 -> 0
L9: =ROUND(LEN(B9), -2) / 100 -> 0
B12: In the Green Cells below, enter any proposed rate riders that are not already included in this model (e.g: ICM rate riders). In column B, the rate rider descriptions must begin with "Rate Rider for". In column C, choose the associated unit from the drop-down menu. In column D, enter the rate. All rate riders with a "$" unit will be rounded to 2 decimal places and all others will be rounded to 4 decimal places.
A20: RESIDENTIAL - TIME OF USE | B20: RESIDENTIAL - TIME OF USE SERVICE CLASSIFICATION | C20: Unit | D20: Rate
A21: RESIDENTIAL - TIME OF USE | B21: Rate Rider for Recovery of Ice Storm Cost - effective until October 31, 2016 | C21: $ | D21: 2.23
A22: RESIDENTIAL - TIME OF USE
A23: RESIDENTIAL - TIME OF USE
A24: RESIDENTIAL - TIME OF USE
A25: RESIDENTIAL - TIME OF USE
A26: RESIDENTIAL - TIME OF USE
A27: RESIDENTIAL - TIME OF USE
A28: RESIDENTIAL - TIME OF USE
A29: RESIDENTIAL - TIME OF USE
A30: RESIDENTIAL - TIME OF USE
A32: GENERAL SERVICE LESS THAN 50 KW | B32: GENERAL SERVICE LESS THAN 50 KW SERVICE CLASSIFICATION | C32: Unit | D32: Rate
A33: GENERAL SERVICE LESS THAN 50 KW | B33: Rate Rider for Recovery of Ice Storm Cost - effective until October 31, 2016 | C33: $ | D33: 4.87
A34: GENERAL SERVICE LESS THAN 50 KW
A35: GENERAL SERVICE LESS THAN 50 KW
A36: GENERAL SERVICE LESS THAN 50 KW
A37: GENERAL SERVICE LESS THAN 50 KW
A38: GENERAL SERVICE LESS THAN 50 KW
A39: GENERAL SERVICE LESS THAN 50 KW
A40: GENERAL SERVICE LESS THAN 50 KW
A41: GENERAL SERVICE LESS THAN 50 KW
A42: GENERAL SERVICE LESS THAN 50 KW
A44: GENERAL SERVICE 50 TO 999 KW | B44: GENERAL SERVICE 50 TO 999 KW SERVICE CLASSIFICATION | C44: Unit | D44: Rate
A45: GENERAL SERVICE 50 TO 999 KW | B45: Rate Rider for Recovery of Ice Storm Cost - effective until October 31, 2016 | C45: $ | D45: 51.28
A46: GENERAL SERVICE 50 TO 999 KW
A47: GENERAL SERVICE 50 TO 999 KW
A48: GENERAL SERVICE 50 TO 999 KW
A49: GENERAL SERVICE 50 TO 999 KW
A50: GENERAL SERVICE 50 TO 999 KW
A51: GENERAL SERVICE 50 TO 999 KW
A52: GENERAL SERVICE 50 TO 999 KW
A53: GENERAL SERVICE 50 TO 999 KW
A54: GENERAL SERVICE 50 TO 999 KW
A56: GENERAL SERVICE 1,000 TO 4,999 KW - INTERVAL METERS | B56: GENERAL SERVICE 1,000 TO 4,999 KW - INTERVAL METERS SERVICE CLASSIFICATION | C56: Unit | D56: Rate
A57: GENERAL SERVICE 1,000 TO 4,999 KW - INTERVAL METERS | B57: Rate Rider for Recovery of Ice Storm Cost - effective until October 31, 2016 | C57: $ | D57: 490.55
A58: GENERAL SERVICE 1,000 TO 4,999 KW - INTERVAL METERS
A59: GENERAL SERVICE 1,000 TO 4,999 KW - INTERVAL METERS
A60: GENERAL SERVICE 1,000 TO 4,999 KW - INTERVAL METERS
A61: GENERAL SERVICE 1,000 TO 4,999 KW - INTERVAL METERS
A62: GENERAL SERVICE 1,000 TO 4,999 KW - INTERVAL METERS
A63: GENERAL SERVICE 1,000 TO 4,999 KW - INTERVAL METERS
A64: GENERAL SERVICE 1,000 TO 4,999 KW - INTERVAL METERS
A65: GENERAL SERVICE 1,000 TO 4,999 KW - INTERVAL METERS
A66: GENERAL SERVICE 1,000 TO 4,999 KW - INTERVAL METERS
A68: GENERAL SERVICE GREATER THAN 50 KW - WMP | B68: GENERAL SERVICE GREATER THAN 50 KW - WMP SERVICE CLASSIFICATION | C68: Unit | D68: Rate
A69: GENERAL SERVICE GREATER THAN 50 KW - WMP
A70: GENERAL SERVICE GREATER THAN 50 KW - WMP
A71: GENERAL SERVICE GREATER THAN 50 KW - WMP
A72: GENERAL SERVICE GREATER THAN 50 KW - WMP
A73: GENERAL SERVICE GREATER THAN 50 KW - WMP
A74: GENERAL SERVICE GREATER THAN 50 KW - WMP
A75: GENERAL SERVICE GREATER THAN 50 KW - WMP
A76: GENERAL SERVICE GREATER THAN 50 KW - WMP
A77: GENERAL SERVICE GREATER THAN 50 KW - WMP
A78: GENERAL SERVICE GREATER THAN 50 KW - WMP
A80: UNMETERED SCATTERED LOAD | B80: UNMETERED SCATTERED LOAD SERVICE CLASSIFICATION | C80: Unit | D80: Rate
A81: UNMETERED SCATTERED LOAD | B81: Rate Rider for Recovery of Ice Storm Cost - effective until October 31, 2016 | C81: $ | D81: 0.96
A82: UNMETERED SCATTERED LOAD
A83: UNMETERED SCATTERED LOAD
A84: UNMETERED SCATTERED LOAD
A85: UNMETERED SCATTERED LOAD
A86: UNMETERED SCATTERED LOAD
A87: UNMETERED SCATTERED LOAD
A88: UNMETERED SCATTERED LOAD
A89: UNMETERED SCATTERED LOAD
A90: UNMETERED SCATTERED LOAD
A92: SENTINEL LIGHTING | B92: SENTINEL LIGHTING SERVICE CLASSIFICATION | C92: Unit | D92: Rate
A93: SENTINEL LIGHTING | B93: Rate Rider for Recovery of Ice Storm Cost - effective until October 31, 2016 (per connection) | C93: $ | D93: 1.25
A94: SENTINEL LIGHTING
A95: SENTINEL LIGHTING
A96: SENTINEL LIGHTING
A97: SENTINEL LIGHTING
A98: SENTINEL LIGHTING
A99: SENTINEL LIGHTING
A100: SENTINEL LIGHTING
A101: SENTINEL LIGHTING
A102: SENTINEL LIGHTING
A104: STREET LIGHTING | B104: STREET LIGHTING SERVICE CLASSIFICATION | C104: Unit | D104: Rate
A105: STREET LIGHTING | B105: Rate Rider for Recovery of Ice Storm Cost - effective until October 31, 2016 (per connection) | C105: $ | D105: 0.63
A106: STREET LIGHTING
A107: STREET LIGHTING
A108: STREET LIGHTING
A109: STREET LIGHTING
A110: STREET LIGHTING
A111: STREET LIGHTING
A112: STREET LIGHTING
A113: STREET LIGHTING
A114: STREET LIGHTING
A116: microFIT | B116: microFIT SERVICE CLASSIFICATION | C116: Unit | D116: Rate
A117: microFIT
A118: microFIT
A119: microFIT
A120: microFIT
A121: microFIT
A122: microFIT
A123: microFIT
A124: microFIT
A125: microFIT
A126: microFIT
B130: PROPOSED MONTHLY RATES AND CHARGES - Regulatory Component
A132: Wholesale Market Service Rate | B132: Wholesale Market Service Rate | C132: $/kWh | D132: 0.0044
A133: Rural or Remote Electricity Rate Protection Charge (RRRP) | B133: Rural or Remote Electricity Rate Protection Charge (RRRP) | C133: $/kWh | D133: 0.0013
A134: Standard Supply Service - Administrative Charge (if applicable) | B134: Standard Supply Service - Administrative Charge (if applicable) | C134: $ | D134: 0.25

Sheet 26. Hidden (hidden)
A1: RESIDENTIAL - TIME OF USE | B1: RESIDENTIAL - TIME OF USE SERVICE CLASSIFICATION | C1: Unit | D1: Rate
A2: RESIDENTIAL - TIME OF USE
A3: RESIDENTIAL - TIME OF USE
A4: RESIDENTIAL - TIME OF USE
A5: RESIDENTIAL - TIME OF USE
A6: RESIDENTIAL - TIME OF USE
A7: RESIDENTIAL - TIME OF USE
A8: RESIDENTIAL - TIME OF USE
A9: RESIDENTIAL - TIME OF USE
A10: RESIDENTIAL - TIME OF USE
A11: RESIDENTIAL - TIME OF USE
A13: GENERAL SERVICE LESS THAN 50 KW | B13: GENERAL SERVICE LESS THAN 50 KW SERVICE CLASSIFICATION | C13: Unit | D13: Rate
A14: GENERAL SERVICE LESS THAN 50 KW
A15: GENERAL SERVICE LESS THAN 50 KW
A16: GENERAL SERVICE LESS THAN 50 KW
A17: GENERAL SERVICE LESS THAN 50 KW
A18: GENERAL SERVICE LESS THAN 50 KW
A19: GENERAL SERVICE LESS THAN 50 KW
A20: GENERAL SERVICE LESS THAN 50 KW
A21: GENERAL SERVICE LESS THAN 50 KW
A22: GENERAL SERVICE LESS THAN 50 KW
A23: GENERAL SERVICE LESS THAN 50 KW
A25: GENERAL SERVICE 50 TO 999 KW | B25: GENERAL SERVICE 50 TO 999 KW SERVICE CLASSIFICATION | C25: Unit | D25: Rate
A26: GENERAL SERVICE 50 TO 999 KW
A27: GENERAL SERVICE 50 TO 999 KW
A28: GENERAL SERVICE 50 TO 999 KW
A29: GENERAL SERVICE 50 TO 999 KW
A30: GENERAL SERVICE 50 TO 999 KW
A31: GENERAL SERVICE 50 TO 999 KW
A32: GENERAL SERVICE 50 TO 999 KW
A33: GENERAL SERVICE 50 TO 999 KW
A34: GENERAL SERVICE 50 TO 999 KW
A35: GENERAL SERVICE 50 TO 999 KW
A37: GENERAL SERVICE 1,000 TO 4,999 KW - INTERVAL METERS | B37: GENERAL SERVICE 1,000 TO 4,999 KW - INTERVAL METERS SERVICE CLASSIFICATION | C37: Unit | D37: Rate
A38: GENERAL SERVICE 1,000 TO 4,999 KW - INTERVAL METERS
A39: GENERAL SERVICE 1,000 TO 4,999 KW - INTERVAL METERS
A40: GENERAL SERVICE 1,000 TO 4,999 KW - INTERVAL METERS
A41: GENERAL SERVICE 1,000 TO 4,999 KW - INTERVAL METERS
A42: GENERAL SERVICE 1,000 TO 4,999 KW - INTERVAL METERS
A43: GENERAL SERVICE 1,000 TO 4,999 KW - INTERVAL METERS
A44: GENERAL SERVICE 1,000 TO 4,999 KW - INTERVAL METERS
A45: GENERAL SERVICE 1,000 TO 4,999 KW - INTERVAL METERS
A46: GENERAL SERVICE 1,000 TO 4,999 KW - INTERVAL METERS
A47: GENERAL SERVICE 1,000 TO 4,999 KW - INTERVAL METERS
A49: GENERAL SERVICE GREATER THAN 50 KW - WMP | B49: GENERAL SERVICE GREATER THAN 50 KW - WMP SERVICE CLASSIFICATION | C49: Unit | D49: Rate
A50: GENERAL SERVICE GREATER THAN 50 KW - WMP
A51: GENERAL SERVICE GREATER THAN 50 KW - WMP
A52: GENERAL SERVICE GREATER THAN 50 KW - WMP
A53: GENERAL SERVICE GREATER THAN 50 KW - WMP
A54: GENERAL SERVICE GREATER THAN 50 KW - WMP
A55: GENERAL SERVICE GREATER THAN 50 KW - WMP
A56: GENERAL SERVICE GREATER THAN 50 KW - WMP
A57: GENERAL SERVICE GREATER THAN 50 KW - WMP
A58: GENERAL SERVICE GREATER THAN 50 KW - WMP
A59: GENERAL SERVICE GREATER THAN 50 KW - WMP
A61: UNMETERED SCATTERED LOAD | B61: UNMETERED SCATTERED LOAD SERVICE CLASSIFICATION | C61: Unit | D61: Rate
A62: UNMETERED SCATTERED LOAD
A63: UNMETERED SCATTERED LOAD
A64: UNMETERED SCATTERED LOAD
A65: UNMETERED SCATTERED LOAD
A66: UNMETERED SCATTERED LOAD
A67: UNMETERED SCATTERED LOAD
A68: UNMETERED SCATTERED LOAD
A69: UNMETERED SCATTERED LOAD
A70: UNMETERED SCATTERED LOAD
A71: UNMETERED SCATTERED LOAD
A73: SENTINEL LIGHTING | B73: SENTINEL LIGHTING SERVICE CLASSIFICATION | C73: Unit | D73: Rate
A74: SENTINEL LIGHTING
A75: SENTINEL LIGHTING
A76: SENTINEL LIGHTING
A77: SENTINEL LIGHTING
A78: SENTINEL LIGHTING
A79: SENTINEL LIGHTING
A80: SENTINEL LIGHTING
A81: SENTINEL LIGHTING
A82: SENTINEL LIGHTING
A83: SENTINEL LIGHTING
A85: STREET LIGHTING | B85: STREET LIGHTING SERVICE CLASSIFICATION | C85: Unit | D85: Rate
A86: STREET LIGHTING
A87: STREET LIGHTING
A88: STREET LIGHTING
A89: STREET LIGHTING
A90: STREET LIGHTING
A91: STREET LIGHTING
A92: STREET LIGHTING
A93: STREET LIGHTING
A94: STREET LIGHTING
A95: STREET LIGHTING
A97: microFIT | B97: microFIT SERVICE CLASSIFICATION | C97: Unit | D97: Rate
A98: microFIT
A99: microFIT
A100: microFIT
A101: microFIT
A102: microFIT
A103: microFIT
A104: microFIT
A105: microFIT
A106: microFIT
A107: microFIT
B111: PROPOSED MONTHLY RATES AND CHARGES - Regulatory Component
A113: Wholesale Market Service Rate | B113: Wholesale Market Service Rate | C113: $/kWh | D113: 0.0044
A114: Rural or Remote Electricity Rate Protection Charge (RRRP) | B114: Rural or Remote Electricity Rate Protection Charge (RRRP) | C114: $/kWh | D114: 0.0013
A115: Standard Supply Service - Administrative Charge (if applicable) | B115: Standard Supply Service - Administrative Charge (if applicable) | C115: $ | D115: 0.25

Sheet 27. Final Tariff Schedule
A1: hidden column | B1: ='1. Information Sheet'!F14 -> Halton Hills Hydro Inc. | F1: hidden column | Z1: 3
A2: for rate classes | B2: TARIFF OF RATES AND CHARGES | F2: for proposed
B3: ="Effective and Implementation Date " & TEXT('1. Information Sheet'!F26, "mmmm dd, yyyy") -> Effective and Implementation Date May 01, 2015 | F3: labeliing
B5: This schedule supersedes and replaces all previously
B6: approved schedules of Rates, Charges and Loss Factors | L6: =ROUND(LEN(B6), -2) / 100 -> 1
B7: =IF(LEN('1. Information Sheet'!F18)=0, "Please enter your assigned EB# on Sheet 1", '1. Information Sheet'!F18) -> EB-2014-0079
B9: RESIDENTIAL - TIME OF USE SERVICE CLASSIFICATION
B11: This classification applies to an account taking electricity at 750 volts or less where the electricity is used exclusively in a separate metered living accommodation. Customers shall be residing in single-dwelling units that consist of a detached house or one unit of a semi-detached, duplex, triplex or quadruplex house, with a residential zoning. Separately metered dwellings within a town house complex or apartment building also qualify as residential customers. The customer will be supplied at one service entrance only. Further servicing details are available in the distributor’s Conditions of Service. | L11: =ROUND(LEN(B11), -2) / 100 -> 6
B13: APPLICATION
B15: The application of these rates and charges shall be in accordance with the Licence of the Distributor and any Code or Order of the Board, and amendments thereto as approved by the Board, which may be applicable to the administration of this schedule. | L15: =ROUND(LEN(B15), -2) / 100 -> 3
B17: No rates and charges for the distribution of electricity and charges to meet the costs of any work or service done or furnished for the purpose of the distribution of electricity shall be made except as permitted by this schedule, unless required by the Distributor’s Licence or a Code or Order of the Board, and amendments thereto as approved by the Board, or as specified herein. | L17: =ROUND(LEN(B17), -2) / 100 -> 4
B19: Unless specifically noted, this schedule does not contain any charges for the electricity commodity, be it under the Regulated Price Plan, a contract with a retailer or the wholesale market price, as applicable. In addition, the charges in the MONTHLY RATES AND CHARGES - Regulatory of this schedule do not apply to a customer that is an embedded wholesale market participant. | L19: =ROUND(LEN(B19), -2) / 100 -> 4
B21: It should be noted that this schedule does not list any charges, assessments or credits that are required by law to be invoiced by a distributor and that are not subject to Board approval, such as the Debt Retirement Charge, the Global Adjustment, the Ontario Clean Energy Benefit and the HST. | L21: =ROUND(LEN(B21), -2) / 100 -> 3
B23: MONTHLY RATES AND CHARGES - Delivery Component
A25: RESIDENTIAL - TIME OF USE | B25: Service Charge | D25: $ | E25: 12.72 | K25: 1_P_MSC
A26: RESIDENTIAL - TIME OF USE | B26: Rate Rider for Disposition of Residual Historical Smart Meter Costs - effective until April 30, 2016 | D26: $ | E26: 1.31 | K26: 1_P_MSC_Rate_Rider_1
A27: RESIDENTIAL - TIME OF USE | B27: Rate Rider for Recovery of Stranded Meter Assets - effective July 1, 2012 - April 30, 2016 | D27: $ | E27: 1.13 | K27: 1_P_MSC_Rate_Rider_2
A28: RESIDENTIAL - TIME OF USE | B28: Rate Rider for Smart Metering Entity Charge - effective until October 31, 2018 | D28: $ | E28: 0.79 | K28: 1_P_SMEC
A29: RESIDENTIAL - TIME OF USE | B29: Distribution Volumetric Rate | D29: $/kWh | E29: 0.012 | K29: 1_P_VC_1
A30: RESIDENTIAL - TIME OF USE | B30: Low Voltage Service Rate | D30: $/kWh | E30: 0.0012 | K30: 1_P_LVrate
A31: RESIDENTIAL - TIME OF USE | B31: Rate Rider for Recovery of Ice Storm Cost - effective until October 31, 2016 | D31: $ | E31: 2.23 | K31: 1_P_MSC_Rate_Rider_4
A32: RESIDENTIAL - TIME OF USE | B32: Rate Rider for Disposition of Deferral/Variance Accounts (2015) - effective until April 30, 2019 | D32: $/kWh | E32: 0.0033 | K32: 1_P_VC_DEFVAR_kWh_1
A33: RESIDENTIAL - TIME OF USE | B33: Rate Rider for Disposition of Deferral/Variance Accounts (2015) - effective until April 30, 2019 Applicable only for Non RPP Customers | D33: $/kWh | E33: 0.0001 | K33: 1_P_VC_DEFVAR_kWh_2
A34: RESIDENTIAL - TIME OF USE | B34: Retail Transmission Rate - Network Service Rate | D34: $/kWh | E34: 0.007397624554 | K34: 1_P_RTSR_Network
A35: RESIDENTIAL - TIME OF USE | B35: Retail Transmission Rate - Line and Transformation Connection Service Rate | D35: $/kWh | E35: 0.005143128099 | K35: 1_P_RTSR_Connection
A36: RESIDENTIAL - TIME OF USE
A37: RESIDENTIAL - TIME OF USE | B37: MONTHLY RATES AND CHARGES - Regulatory Component
A38: RESIDENTIAL - TIME OF USE
A39: RESIDENTIAL - TIME OF USE | B39: Wholesale Market Service Rate | D39: $/kWh | E39: 0.0044 | K39: 1_P_WMSR
A40: RESIDENTIAL - TIME OF USE | B40: Rural or Remote Electricity Rate Protection Charge (RRRP) | D40: $/kWh | E40: 0.0013 | K40: 1_P_RRPC
A41: RESIDENTIAL - TIME OF USE | B41: Standard Supply Service - Administrative Charge (if applicable) | D41: $ | E41: 0.25 | K41: 1_P_SSS
B43: GENERAL SERVICE LESS THAN 50 KW SERVICE CLASSIFICATION
B45: This classification applies to a non residential account taking electricity at 750 volts or less whose average monthly maximum demand is less than, or is forecast to be less than, 50 kW. Further servicing details are available in the distributor’s Conditions of Service. | L45: =ROUND(LEN(B45), -2) / 100 -> 3
B47: APPLICATION
B49: The application of these rates and charges shall be in accordance with the Licence of the Distributor and any Code or Order of the Board, and amendments thereto as approved by the Board, which may be applicable to the administration of this schedule. | L49: =ROUND(LEN(B49), -2) / 100 -> 3
B51: No rates and charges for the distribution of electricity and charges to meet the costs of any work or service done or furnished for the purpose of the distribution of electricity shall be made except as permitted by this schedule, unless required by the Distributor’s Licence or a Code or Order of the Board, and amendments thereto as approved by the Board, or as specified herein. | L51: =ROUND(LEN(B51), -2) / 100 -> 4
B53: Unless specifically noted, this schedule does not contain any charges for the electricity commodity, be it under the Regulated Price Plan, a contract with a retailer or the wholesale market price, as applicable.In addition, the charges in the MONTHLY RATES AND CHARGES - Regulatory of this schedule do not apply to a customer that is an embedded wholesale market participant. | L53: =ROUND(LEN(B53), -2) / 100 -> 4
B55: It should be noted that this schedule does not list any charges, assessments or credits that are required by law to be invoiced by a distributor and that are not subject to Board approval, such as the Debt Retirement Charge, the Global Adjustment, the Ontario Clean Energy Benefit and the HST. | L55: =ROUND(LEN(B55), -2) / 100 -> 3
B57: MONTHLY RATES AND CHARGES - Delivery Component
A59: GENERAL SERVICE LESS THAN 50 KW | B59: Service Charge | D59: $ | E59: 27.51 | K59: 2_P_MSC
A60: GENERAL SERVICE LESS THAN 50 KW | B60: Rate Rider for Disposition of Residual Historical Smart Meter Costs - effective until April 30, 2016 | D60: $ | E60: 1.38 | K60: 2_P_MSC_Rate_Rider_1
A61: GENERAL SERVICE LESS THAN 50 KW | B61: Rate Rider for Recovery of Stranded Meter Assets - effective until April 30, 2016 | D61: $ | E61: 1.46 | K61: 2_P_MSC_Rate_Rider_2
A62: GENERAL SERVICE LESS THAN 50 KW | B62: Rate Rider for Smart Metering Entity Charge - effective until October 31, 2018 | D62: $ | E62: 0.79 | K62: 2_P_SMEC
A63: GENERAL SERVICE LESS THAN 50 KW | B63: Distribution Volumetric Rate | D63: $/kWh | E63: 0.0085 | K63: 2_P_VC_1
A64: GENERAL SERVICE LESS THAN 50 KW | B64: Low Voltage Service Rate | D64: $/kWh | E64: 0.0011 | K64: 2_P_LVrate
A65: GENERAL SERVICE LESS THAN 50 KW | B65: Rate Rider for Recovery of Ice Storm Cost - effective until October 31, 2016 | D65: $ | E65: 4.87 | K65: 2_P_MSC_Rate_Rider_4
A66: GENERAL SERVICE LESS THAN 50 KW | B66: Rate Rider for Disposition of Deferral/Variance Accounts (2015) - effective until April 30, 2019 | D66: $/kWh | E66: 0.0032 | K66: 2_P_VC_DEFVAR_kWh_1
A67: GENERAL SERVICE LESS THAN 50 KW | B67: Rate Rider for Disposition of Deferral/Variance Accounts (2015) - effective until April 30, 2019 Applicable only for Non RPP Customers | D67: $/kWh | E67: 0.0001 | K67: 2_P_VC_DEFVAR_kWh_2
A68: GENERAL SERVICE LESS THAN 50 KW | B68: Retail Transmission Rate - Network Service Rate | D68: $/kWh | E68: 0.006586925972 | K68: 2_P_RTSR_Network
A69: GENERAL SERVICE LESS THAN 50 KW | B69: Retail Transmission Rate - Line and Transformation Connection Service Rate | D69: $/kWh | E69: 0.00484640917 | K69: 2_P_RTSR_Connection
A70: GENERAL SERVICE LESS THAN 50 KW
A71: GENERAL SERVICE LESS THAN 50 KW | B71: MONTHLY RATES AND CHARGES - Regulatory Component
A72: GENERAL SERVICE LESS THAN 50 KW
A73: GENERAL SERVICE LESS THAN 50 KW | B73: Wholesale Market Service Rate | D73: $/kWh | E73: 0.0044 | K73: 2_P_WMSR
A74: GENERAL SERVICE LESS THAN 50 KW | B74: Rural or Remote Electricity Rate Protection Charge (RRRP) | D74: $/kWh | E74: 0.0013 | K74: 2_P_RRPC
A75: GENERAL SERVICE LESS THAN 50 KW | B75: Standard Supply Service - Administrative Charge (if applicable) | D75: $ | E75: 0.25 | K75: 2_P_SSS
B77: GENERAL SERVICE 50 TO 999 KW SERVICE CLASSIFICATION
B79: This classification applies to a non-residential customer with an average peak demand equal to or greater than 50 kW over the past twelve months, or is forecast to be equal to or greater than 50 kW, but less than 1,000 kW. For a new customer without prior billing history, the peak demand will be based on 90% of the proposed capacity or installed transformer. Further servicing details are available in the distributor’s Conditions of Service. | L79: =ROUND(LEN(B79), -2) / 100 -> 4
B81: APPLICATION
B83: The application of these rates and charges shall be in accordance with the Licence of the Distributor and any Code or Order of the Board, and amendments thereto as approved by the Board, which may be applicable to the administration of this schedule. | L83: =ROUND(LEN(B83), -2) / 100 -> 3
B85: No rates and charges for the distribution of electricity and charges to meet the costs of any work or service done or furnished for the purpose of the distribution of electricity shall be made except as permitted by this schedule, unless required by the Distributor’s Licence or a Code or Order of the Board, and amendments thereto as approved by the Board, or as specified herein. | L85: =ROUND(LEN(B85), -2) / 100 -> 4
B87: Unless specifically noted, this schedule does not contain any charges for the electricity commodity, be it under the Regulated Price Plan, a contract with a retailer or the wholesale market price, as applicable. In addition, the charges in the MONTHLY RATES AND CHARGES - Regulatory of this schedule do not apply to a customer that is an embedded wholesale market participant. | L87: =ROUND(LEN(B87), -2) / 100 -> 4
B89: It should be noted that this schedule does not list any charges, assessments or credits that are required by law to be invoiced by a distributor and that are not subject to Board approval, such as the Debt Retirement Charge, the Global Adjustment, the Ontario Clean Energy Benefit and the HST. | L89: =ROUND(LEN(B89), -2) / 100 -> 3
B91: MONTHLY RATES AND CHARGES - Delivery Component
A93: GENERAL SERVICE 50 TO 999 KW | B93: Service Charge | D93: $ | E93: 77.5 | K93: 3_P_MSC
A94: GENERAL SERVICE 50 TO 999 KW | B94: Distribution Volumetric Rate | D94: $/kW | E94: 3.456 | K94: 3_P_VC_1
A95: GENERAL SERVICE 50 TO 999 KW | B95: Low Voltage Service Rate | D95: $/kW | E95: 0.4734 | K95: 3_P_LVrate
A96: GENERAL SERVICE 50 TO 999 KW | B96: Rate Rider for Recovery of Ice Storm Cost - effective until October 31, 2016 | D96: $ | E96: 51.28 | K96: 3_P_MSC_Rate_Rider_1
A97: GENERAL SERVICE 50 TO 999 KW | B97: Rate Rider for Disposition of Deferral/Variance Accounts (2015) - effective until April 30, 2019 | D97: $/kW | E97: 1.126 | K97: 3_P_VC_DEFVAR_kW_1
A98: GENERAL SERVICE 50 TO 999 KW | B98: Rate Rider for Disposition of Deferral/Variance Accounts (2015) - effective until April 30, 2019 Applicable only for Non RPP Customers | D98: $/kW | E98: 0.0293 | K98: 3_P_VC_DEFVAR_kW_2
A99: GENERAL SERVICE 50 TO 999 KW | B99: Retail Transmission Rate - Network Service Rate | D99: $/kW | E99: 2.864704774 | K99: 3_P_RTSR_Network
A100: GENERAL SERVICE 50 TO 999 KW | B100: Retail Transmission Rate - Line and Transformation Connection Service Rate | D100: $/kW | E100: 2.057350146 | K100: 3_P_RTSR_Connection
A101: GENERAL SERVICE 50 TO 999 KW
A102: GENERAL SERVICE 50 TO 999 KW | B102: MONTHLY RATES AND CHARGES - Regulatory Component
A103: GENERAL SERVICE 50 TO 999 KW
A104: GENERAL SERVICE 50 TO 999 KW | B104: Wholesale Market Service Rate | D104: $/kWh | E104: 0.0044 | K104: 3_P_WMSR
A105: GENERAL SERVICE 50 TO 999 KW | B105: Rural or Remote Electricity Rate Protection Charge (RRRP) | D105: $/kWh | E105: 0.0013 | K105: 3_P_RRPC
A106: GENERAL SERVICE 50 TO 999 KW | B106: Standard Supply Service - Administrative Charge (if applicable) | D106: $ | E106: 0.25 | K106: 3_P_SSS
B108: GENERAL SERVICE 1,000 TO 4,999 KW - INTERVAL METERS SERVICE CLASSIFICATION
B110: This classification applies to a non-residential customer with an average peak demand equal to or greater than 1,000 kW over the past twelve months, or is forecast to be equal to or greater than 1,000 kW, but less than 5,000 kW. For a new customer without prior billing history, the peak demand will be based on 90% of the installed transformer. Further servicing details are available in the distributor’s Conditions of Service. | L110: =ROUND(LEN(B110), -2) / 100 -> 4
B112: APPLICATION
B114: The application of these rates and charges shall be in accordance with the Licence of the Distributor and any Code or Order of the Board, and amendments thereto as approved by the Board, which may be applicable to the administration of this schedule. | L114: =ROUND(LEN(B114), -2) / 100 -> 3
B116: No rates and charges for the distribution of electricity and charges to meet the costs of any work or service done or furnished for the purpose of the distribution of electricity shall be made except as permitted by this schedule, unless required by the Distributor’s Licence or a Code or Order of the Board, and amendments thereto as approved by the Board, or as specified herein. | L116: =ROUND(LEN(B116), -2) / 100 -> 4
B118: Unless specifically noted, this schedule does not contain any charges for the electricity commodity, be it under the Regulated Price Plan, a contract with a retailer or the wholesale market price, as applicable. In addition, the charges in the MONTHLY RATES AND CHARGES - Regulatory of this schedule do not apply to a customer that is an embedded wholesale market participant. | L118: =ROUND(LEN(B118), -2) / 100 -> 4
B120: It should be noted that this schedule does not list any charges, assessments or credits that are required by law to be invoiced by a distributor and that are not subject to Board approval, such as the Debt Retirement Charge, the Global Adjustment, the Ontario Clean Energy Benefit and the HST. | L120: =ROUND(LEN(B120), -2) / 100 -> 3
B122: MONTHLY RATES AND CHARGES - Delivery Component
A124: GENERAL SERVICE 1,000 TO 4,999 KW - INTERVAL METERS | B124: Service Charge | D124: $ | E124: 179.93 | K124: 4_P_MSC
A125: GENERAL SERVICE 1,000 TO 4,999 KW - INTERVAL METERS | B125: Distribution Volumetric Rate | D125: $/kW | E125: 3.1683 | K125: 4_P_VC_1
A126: GENERAL SERVICE 1,000 TO 4,999 KW - INTERVAL METERS | B126: Low Voltage Service Rate | D126: $/kW | E126: 0.4734 | K126: 4_P_LVrate
A127: GENERAL SERVICE 1,000 TO 4,999 KW - INTERVAL METERS | B127: Rate Rider for Recovery of Ice Storm Cost - effective until October 31, 2016 | D127: $ | E127: 490.55 | K127: 4_P_MSC_Rate_Rider_1
A128: GENERAL SERVICE 1,000 TO 4,999 KW - INTERVAL METERS | B128: Rate Rider for Disposition of Deferral/Variance Accounts (2015) - effective until April 30, 2019 | D128: $/kW | E128: 1.1717 | K128: 4_P_VC_DEFVAR_kW_1
A129: GENERAL SERVICE 1,000 TO 4,999 KW - INTERVAL METERS | B129: Rate Rider for Disposition of Deferral/Variance Accounts (2015) - effective until April 30, 2019 Applicable only for Non RPP Customers | D129: $/kW | E129: 0.0305 | K129: 4_P_VC_DEFVAR_kW_2
A130: GENERAL SERVICE 1,000 TO 4,999 KW - INTERVAL METERS | B130: Retail Transmission Rate - Network Service Rate | D130: $/kW | E130: 2.864704774 | K130: 4_P_RTSR_Network
A131: GENERAL SERVICE 1,000 TO 4,999 KW - INTERVAL METERS | B131: Retail Transmission Rate - Line and Transformation Connection Service Rate | D131: $/kW | E131: 2.057350146 | K131: 4_P_RTSR_Connection
A132: GENERAL SERVICE 1,000 TO 4,999 KW - INTERVAL METERS
A133: GENERAL SERVICE 1,000 TO 4,999 KW - INTERVAL METERS | B133: MONTHLY RATES AND CHARGES - Regulatory Component
A134: GENERAL SERVICE 1,000 TO 4,999 KW - INTERVAL METERS
A135: GENERAL SERVICE 1,000 TO 4,999 KW - INTERVAL METERS | B135: Wholesale Market Service Rate | D135: $/kWh | E135: 0.0044 | K135: 4_P_WMSR
A136: GENERAL SERVICE 1,000 TO 4,999 KW - INTERVAL METERS | B136: Rural or Remote Electricity Rate Protection Charge (RRRP) | D136: $/kWh | E136: 0.0013 | K136: 4_P_RRPC
A137: GENERAL SERVICE 1,000 TO 4,999 KW - INTERVAL METERS | B137: Standard Supply Service - Administrative Charge (if applicable) | D137: $ | E137: 0.25 | K137: 4_P_SSS
B139: GENERAL SERVICE GREATER THAN 50 KW - WMP SERVICE CLASSIFICATION
L141: =ROUND(LEN(B141), -2) / 100 -> 0
B143: APPLICATION
L145: =ROUND(LEN(B145), -2) / 100 -> 0
L147: =ROUND(LEN(B147), -2) / 100 -> 0
L149: =ROUND(LEN(B149), -2) / 100 -> 0
L151: =ROUND(LEN(B151), -2) / 100 -> 0
B153: MONTHLY RATES AND CHARGES - Delivery Component
A155: GENERAL SERVICE GREATER THAN 50 KW - WMP | B155: Rate Rider for Disposition of Deferral/Variance Accounts (2015) - effective until April 30, 2019 | D155: $/kW | E155: 1.2861 | K155: 5_P_VC_DEFVAR_kW_1
A156: GENERAL SERVICE GREATER THAN 50 KW - WMP
A157: GENERAL SERVICE GREATER THAN 50 KW - WMP | B157: MONTHLY RATES AND CHARGES - Regulatory Component
A158: GENERAL SERVICE GREATER THAN 50 KW - WMP
A159: GENERAL SERVICE GREATER THAN 50 KW - WMP | B159: Wholesale Market Service Rate | D159: $/kWh | E159: 0.0044 | K159: 5_P_WMSR
A160: GENERAL SERVICE GREATER THAN 50 KW - WMP | B160: Rural or Remote Electricity Rate Protection Charge (RRRP) | D160: $/kWh | E160: 0.0013 | K160: 5_P_RRPC
A161: GENERAL SERVICE GREATER THAN 50 KW - WMP | B161: Standard Supply Service - Administrative Charge (if applicable) | D161: $ | E161: 0.25 | K161: 5_P_SSS
B163: UNMETERED SCATTERED LOAD SERVICE CLASSIFICATION
B165: This classification applies to an account taking electricity at 750 volts or less whose average monthly maximum demand is less than, or is forecast to be less than, 50 kW and the consumption is unmetered. Such connections include cable TV power packs, bus shelters, telephone booths, traffic lights, pedestrian X-Walk signals/beacons, railway crossings, etc. The level of the consumption will be agreed to by the distributor and the customer, based on detailed manufacturer information/documentation with regard to electrical consumption of the unmetered load or periodic monitoring of actual consumption. Further servicing details are available in the distributor’s Conditions of Service. | L165: =ROUND(LEN(B165), -2) / 100 -> 7
B167: APPLICATION
B169: The application of these rates and charges shall be in accordance with the Licence of the Distributor and any Code or Order of the Board, and amendments thereto as approved by the Board, which may be applicable to the administration of this schedule. | L169: =ROUND(LEN(B169), -2) / 100 -> 3
B171: No rates and charges for the distribution of electricity and charges to meet the costs of any work or service done or furnished for the purpose of the distribution of electricity shall be made except as permitted by this schedule, unless required by the Distributor’s Licence or a Code or Order of the Board, and amendments thereto as approved by the Board, or as specified herein. | L171: =ROUND(LEN(B171), -2) / 100 -> 4
B173: Unless specifically noted, this schedule does not contain any charges for the electricity commodity, be it under the Regulated Price Plan, a contract with a retailer or the wholesale market price, as applicable. In addition, the charges in the MONTHLY RATES AND CHARGES - Regulatory of this schedule do not apply to a customer that is an embedded wholesale market participant. | L173: =ROUND(LEN(B173), -2) / 100 -> 4
B175: It should be noted that this schedule does not list any charges, assessments or credits that are required by law to be invoiced by a distributor and that are not subject to Board approval, such as the Debt Retirement Charge, the Global Adjustment, the Ontario Clean Energy Benefit and the HST. | L175: =ROUND(LEN(B175), -2) / 100 -> 3
B177: MONTHLY RATES AND CHARGES - Delivery Component
A179: UNMETERED SCATTERED LOAD | B179: Service Charge | D179: $ | E179: 6.75 | K179: 6_P_MSC
A180: UNMETERED SCATTERED LOAD | B180: Distribution Volumetric Rate | D180: $/kWh | E180: 0.0045 | K180: 6_P_VC_1
A181: UNMETERED SCATTERED LOAD | B181: Low Voltage Service Rate | D181: $/kWh | E181: 0.0011 | K181: 6_P_LVrate
A182: UNMETERED SCATTERED LOAD | B182: Rate Rider for Recovery of Ice Storm Cost - effective until October 31, 2016 | D182: $ | E182: 0.96 | K182: 6_P_MSC_Rate_Rider_1
A183: UNMETERED SCATTERED LOAD | B183: Rate Rider for Disposition of Deferral/Variance Accounts (2015) - effective until April 30, 2019 | D183: $/kWh | E183: 0.0032 | K183: 6_P_VC_DEFVAR_kWh_1
A184: UNMETERED SCATTERED LOAD | B184: Rate Rider for Disposition of Deferral/Variance Accounts (2015) - effective until April 30, 2019 Applicable only for Non RPP Customers | D184: $/kWh | E184: 0.0001 | K184: 6_P_VC_DEFVAR_kWh_2
A185: UNMETERED SCATTERED LOAD | B185: Retail Transmission Rate - Network Service Rate | D185: $/kWh | E185: 0.006586925972 | K185: 6_P_RTSR_Network
A186: UNMETERED SCATTERED LOAD | B186: Retail Transmission Rate - Line and Transformation Connection Service Rate | D186: $/kWh | E186: 0.00484640917 | K186: 6_P_RTSR_Connection
A187: UNMETERED SCATTERED LOAD
A188: UNMETERED SCATTERED LOAD | B188: MONTHLY RATES AND CHARGES - Regulatory Component
A189: UNMETERED SCATTERED LOAD
A190: UNMETERED SCATTERED LOAD | B190: Wholesale Market Service Rate | D190: $/kWh | E190: 0.0044 | K190: 6_P_WMSR
A191: UNMETERED SCATTERED LOAD | B191: Rural or Remote Electricity Rate Protection Charge (RRRP) | D191: $/kWh | E191: 0.0013 | K191: 6_P_RRPC
A192: UNMETERED SCATTERED LOAD | B192: Standard Supply Service - Administrative Charge (if applicable) | D192: $ | E192: 0.25 | K192: 6_P_SSS
B194: SENTINEL LIGHTING SERVICE CLASSIFICATION
B196: This classification refers to accounts that are an unmetered lighting load supplied to a sentinel light. Further servicing details are available in the distributor’s Conditions of Service. | L196: =ROUND(LEN(B196), -2) / 100 -> 2
B198: APPLICATION
B200: The application of these rates and charges shall be in accordance with the Licence of the Distributor and any Code or Order of the Board, and amendments thereto as approved by the Board, which may be applicable to the administration of this schedule. | L200: =ROUND(LEN(B200), -2) / 100 -> 3
B202: No rates and charges for the distribution of electricity and charges to meet the costs of any work or service done or furnished for the purpose of the distribution of electricity shall be made except as permitted by this schedule, unless required by the Distributor’s Licence or a Code or Order of the Board, and amendments thereto as approved by the Board, or as specified herein. | L202: =ROUND(LEN(B202), -2) / 100 -> 4
B204: Unless specifically noted, this schedule does not contain any charges for the electricity commodity, be it under the Regulated Price Plan, a contract with a retailer or the wholesale market price, as applicable. In addition, the charges in the MONTHLY RATES AND CHARGES - Regulatory of this schedule do not apply to a customer that is an embedded wholesale market participant. | L204: =ROUND(LEN(B204), -2) / 100 -> 4
B206: It should be noted that this schedule does not list any charges, assessments or credits that are required by law to be invoiced by a distributor and that are not subject to Board approval, such as the Debt Retirement Charge, the Global Adjustment, the Ontario Clean Energy Benefit and the HST. | L206: =ROUND(LEN(B206), -2) / 100 -> 3
B208: MONTHLY RATES AND CHARGES - Delivery Component
A210: SENTINEL LIGHTING | B210: Service Charge (per connection) | D210: $ | E210: 5.06 | K210: 7_P_MSC
A211: SENTINEL LIGHTING | B211: Distribution Volumetric Rate | D211: $/kW | E211: 19.1614 | K211: 7_P_VC_1
A212: SENTINEL LIGHTING | B212: Low Voltage Service Rate | D212: $/kW | E212: 0.3408 | K212: 7_P_LVrate
A213: SENTINEL LIGHTING | B213: Rate Rider for Recovery of Ice Storm Cost - effective until October 31, 2016 (per connection) | D213: $ | E213: 1.25 | K213: 7_P_MSC_Rate_Rider_1
A214: SENTINEL LIGHTING | B214: Rate Rider for Disposition of Deferral/Variance Accounts (2015) - effective until April 30, 2019 | D214: $/kW | E214: 1.4942 | K214: 7_P_VC_DEFVAR_kW_1
A215: SENTINEL LIGHTING | B215: Rate Rider for Disposition of Deferral/Variance Accounts (2015) - effective until April 30, 2019 Applicable only for Non RPP Customers | D215: $/kW | E215: 0.0389 | K215: 7_P_VC_DEFVAR_kW_2
A216: SENTINEL LIGHTING | B216: Retail Transmission Rate - Network Service Rate | D216: $/kW | E216: 2.043669786 | K216: 7_P_RTSR_Network
A217: SENTINEL LIGHTING | B217: Retail Transmission Rate - Line and Transformation Connection Service Rate | D217: $/kW | E217: 1.481121986 | K217: 7_P_RTSR_Connection
A218: SENTINEL LIGHTING
A219: SENTINEL LIGHTING | B219: MONTHLY RATES AND CHARGES - Regulatory Component
A220: SENTINEL LIGHTING
A221: SENTINEL LIGHTING | B221: Wholesale Market Service Rate | D221: $/kWh | E221: 0.0044 | K221: 7_P_WMSR
A222: SENTINEL LIGHTING | B222: Rural or Remote Electricity Rate Protection Charge (RRRP) | D222: $/kWh | E222: 0.0013 | K222: 7_P_RRPC
A223: SENTINEL LIGHTING | B223: Standard Supply Service - Administrative Charge (if applicable) | D223: $ | E223: 0.25 | K223: 7_P_SSS
B225: STREET LIGHTING SERVICE CLASSIFICATION
B227: All services supplied to street lighting equipment owned by or operated for the Municipality, the Region or the Province of Ontario shall be classified as Street Lighting Service. Street Lighting plant, facilities, or equipment owned by the customer are subject to the Electrical Safety Authority (ESA) requirements and Halton Hills Hydro specifications. Further servicing details are available in the distributor’s Conditions of Service. | L227: =ROUND(LEN(B227), -2) / 100 -> 4
B229: APPLICATION
B231: The application of these rates and charges shall be in accordance with the Licence of the Distributor and any Code or Order of the Board, and amendments thereto as approved by the Board, which may be applicable to the administration of this schedule. | L231: =ROUND(LEN(B231), -2) / 100 -> 3
B233: No rates and charges for the distribution of electricity and charges to meet the costs of any work or service done or furnished for the purpose of the distribution of electricity shall be made except as permitted by this schedule, unless required by the Distributor’s Licence or a Code or Order of the Board, and amendments thereto as approved by the Board, or as specified herein. | L233: =ROUND(LEN(B233), -2) / 100 -> 4
B235: Unless specifically noted, this schedule does not contain any charges for the electricity commodity, be it under the Regulated Price Plan, a contract with a retailer or the wholesale market price, as applicable. In addition, the charges in the MONTHLY RATES AND CHARGES - Regulatory of this schedule do not apply to a customer that is an embedded wholesale market participant. | L235: =ROUND(LEN(B235), -2) / 100 -> 4
B237: It should be noted that this schedule does not list any charges, assessments or credits that are required by law to be invoiced by a distributor and that are not subject to Board approval, such as the Debt Retirement Charge, the Global Adjustment, the Ontario Clean Energy Benefit and the HST. | L237: =ROUND(LEN(B237), -2) / 100 -> 3
B239: MONTHLY RATES AND CHARGES - Delivery Component
A241: STREET LIGHTING | B241: Service Charge (per connection) | D241: $ | E241: 2.23 | K241: 8_P_MSC
A242: STREET LIGHTING | B242: Distribution Volumetric Rate | D242: $/kW | E242: 30.0608 | K242: 8_P_VC_1
A243: STREET LIGHTING | B243: Low Voltage Service Rate | D243: $/kW | E243: 0.3338 | K243: 8_P_LVrate
A244: STREET LIGHTING | B244: Rate Rider for Recovery of Ice Storm Cost - effective until October 31, 2016 (per connection) | D244: $ | E244: 0.63 | K244: 8_P_MSC_Rate_Rider_1
A245: STREET LIGHTING | B245: Rate Rider for Disposition of Deferral/Variance Accounts (2015) - effective until April 30, 2019 | D245: $/kW | E245: 1.1312 | K245: 8_P_VC_DEFVAR_kW_1
A246: STREET LIGHTING | B246: Rate Rider for Disposition of Deferral/Variance Accounts (2015) - effective until April 30, 2019 Applicable only for Non RPP Customers | D246: $/kW | E246: 0.0295 | K246: 8_P_VC_DEFVAR_kW_2
A247: STREET LIGHTING | B247: Retail Transmission Rate - Network Service Rate | D247: $/kW | E247: 2.034346752 | K247: 8_P_RTSR_Network
A248: STREET LIGHTING | B248: Retail Transmission Rate - Line and Transformation Connection Service Rate | D248: $/kW | E248: 1.450856655 | K248: 8_P_RTSR_Connection
A249: STREET LIGHTING
A250: STREET LIGHTING | B250: MONTHLY RATES AND CHARGES - Regulatory Component
A251: STREET LIGHTING
A252: STREET LIGHTING | B252: Wholesale Market Service Rate | D252: $/kWh | E252: 0.0044 | K252: 8_P_WMSR
A253: STREET LIGHTING | B253: Rural or Remote Electricity Rate Protection Charge (RRRP) | D253: $/kWh | E253: 0.0013 | K253: 8_P_RRPC
A254: STREET LIGHTING | B254: Standard Supply Service - Administrative Charge (if applicable) | D254: $ | E254: 0.25 | K254: 8_P_SSS
B256: MICROFIT SERVICE CLASSIFICATION
B258: This classification applies to an electricity generation facility contracted under the Ontario Power Authority’s microFIT program and connected to the distributor’s distribution system. Further servicing details are available in the distributor’s Conditions of Service. | L258: =ROUND(LEN(B258), -2) / 100 -> 3
B260: APPLICATION
B262: The application of these rates and charges shall be in accordance with the Licence of the Distributor and any Code or Order of the Board, and amendments thereto as approved by the Board, which may be applicable to the administration of this schedule. | L262: =ROUND(LEN(B262), -2) / 100 -> 3
B264: No rates and charges for the distribution of electricity and charges to meet the costs of any work or service done or furnished for the purpose of the distribution of electricity shall be made except as permitted by this schedule, unless required by the Distributor’s Licence or a Code or Order of the Board, and amendments thereto as approved by the Board, or as specified herein. | L264: =ROUND(LEN(B264), -2) / 100 -> 4
B266: Unless specifically noted, this schedule does not contain any charges for the electricity commodity, be it under the Regulated Price Plan, a contract with a retailer or the wholesale market price, as applicable. | L266: =ROUND(LEN(B266), -2) / 100 -> 2
B268: It should be noted that this schedule does not list any charges, assessments or credits that are required by law to be invoiced by a distributor and that are not subject to Board approval, such as the Debt Retirement Charge, the Global Adjustment, the Ontario Clean Energy Benefit and the HST. | L268: =ROUND(LEN(B268), -2) / 100 -> 3
B270: MONTHLY RATES AND CHARGES - Delivery Component
A272: MICROFIT | B272: Service Charge | D272: $ | E272: 5.4 | K272: 9_P_MSC
A273: MICROFIT
B274: ALLOWANCES
A275: MICROFIT
B276: Transformer Allowance for Ownership - per kW of billing demand/month | D276: $/kW | E276: -0.5
B277: Primary Metering Allowance for transformer losses – applied to measured demand and energy | D277: % | E277: -1
B279: SPECIFIC SERVICE CHARGES
B281: The application of these rates and charges shall be in accordance with the Licence of the Distributor and any Code or Order of the Board, and amendments thereto as approved by the Board, which may be applicable to the administration of this schedule.
B283: No charges to meet the costs of any work or service done or furnished for the purpose of the distribution of electricity shall be made except as permitted by this schedule, unless required by the Distributor’s Licence or a Code or Order of the Board, and amendments thereto as approved by the Board, or as specified herein.
B285: It should be noted that this schedule does not list any charges, assessments, or credits that are required by law to be invoiced by a distributor and that are not subject to Board approval, such as the Debt Retirement Charge, the Global Adjustment, the Ontario Clean Energy Benefit and the HST.
B287: Customer Administration
... 57 more rows

Sheet 14. Bill Impacts (hidden)
Z1: =MATCH(A13, '3. Rate Class Selection'!B19:B40,0) ->  | AA1: =VLOOKUP(A13, lists!AO:AP,2,0) -> kWh
A11: Choose a Rate Class from the drop-down menu below and click UPDATE. For Street Lighting and USL classes, please ensure that the number of customers is manually entered into cells B30 and B31. Click the UPDATE button to refresh the sheet.
A13: RESIDENTIAL | F13: =IF(ISERROR(SEARCH("MicroFit",A13,1))=FALSE,"Bill impact presentation for this class does not exist.", "") -> 
A15: Consumption | B15: =730*D15*B17 -> 3650000 | C15: kWh | D15: 10000 | E15: =IF(AA1 = "kWh", "", "kW") -> 
A16: RPP Tier One | B16: 600 | C16: kWh | E16: 1
A17: Load Factor | B17: 0.5
A18: Loss Factor | B18: 1
B21: CURRENT ESTIMATED BILL | E21: PROPOSED ESTIMATED BILL
B22: Volume | C22: Current Rate ($) | D22: Current Charge ($) | E22: Volume | F22: Proposed Rate ($) | G22: Proposed Charge ($) | I22: Change ($) | J22: Change (%) | K22: % of Total RPP Bill | L22: % of Total TOU Bill
A23: Energy First Tier (kWh) | B23: 3650000 | C23: 0.075 | D23: =B23*C23 -> 273750 | E23: =B23 -> 3650000 | F23: =C23 -> 0.075 | G23: =E23*F23 -> 273750 | I23: =G23-D23 -> 0 | J23: =I23/D23 -> 0 | K23: =G23/G48 -> 0.8646078577
A24: Energy Second Tier (kWh) | B24: 0 | C24: 0.088 | D24: =B24*C24 -> 0 | E24: =B24 -> 0 | F24: =C24 -> 0.088 | G24: =E24*F24 -> 0 | I24: =G24-D24 -> 0 | J24: 0 | K24: =G24/G48 -> 0
A26: TOU - Off Peak | B26: =0.64*$B$15*$B$18 -> 2336000 | C26: 0.065 | D26: =C26*B26 -> 151840 | E26: =B26 -> 2336000 | F26: =C26 -> 0.065 | G26: =F26*E26 -> 151840 | I26: =G26-D26 -> 0 | J26: =I26/D26 -> 0 | L26: =G26/G54 -> 0.449726096
A27: TOU - Mid Peak | B27: =0.18*$B$15*$B$18 -> 657000 | C27: 0.1 | D27: =C27*B27 -> 65700 | E27: =B27 -> 657000 | F27: =C27 -> 0.1 | G27: =F27*E27 -> 65700 | H27: =G27*F27 -> 6570 | I27: =G27-D27 -> 0 | J27: =I27/D27 -> 0 | L27: =G27/G54 -> 0.1945930223
A28: TOU - On Peak | B28: =0.18*$B$15*$B$18 -> 657000 | C28: 0.117 | D28: 76869 | F28: =C28 -> 0.117 | G28: =F28*E28 -> 0 | H28: =G28*F28 -> 0 | J28: =I28/D28 -> 0 | L28: =G28/G54 -> 0
A30: Service Charge | B30: 1 | D30: 0 | G30: =F30*E30 -> 0 | H30: 0 | J30: 0 | K30: 0 | L30: 0
A31: Service Charge Rate Rider(s) | B31: 1 | C31: 0 | D31: 0 | F31: 0 | G31: 0 | H31: 0 | J31: 0 | K31: 0 | L31: 0
A32: Distribution Volumetric Rate | B32: 10000 | D32: 0 | E32: =B32 -> 10000 | G32: 0 | H32: 0 | I32: =G32-D32 -> 0 | J32: 0 | K32: 0 | L32: 0
A33: Low Voltage Volumetric Rate | B33: 10000 | D33: 0 | G33: 0 | H33: 0 | J33: 0 | K33: 0 | L33: 0
A34: Distribution Volumetric Rate Rider(s) | B34: 10000 | C34: 0 | D34: 0 | F34: 1.2025 | G34: 0 | H34: 0 | J34: 0 | K34: =G34/G48 -> 0 | L34: =G34/G54 -> 0
A35: Total: Distribution | D35: =ROUND(SUM(D30:D34),2) -> 0 | G35: =ROUND(SUM(G30:G34),2) -> 0 | J35: 0 | K35: =G35/G48 -> 0 | L35: =G35/G54 -> 0
A36: Total: Retail Transmission
A37: Sub-Total: Delivery (Distribution and Retail Transmission) | D37: =SUM(D36,D35) -> 0 | G37: =SUM(G36,G35) -> 0 | J37: 0 | K37: =G37/G48 -> 0 | L37: =G37/G54 -> 0
A38: Wholesale Market Service Rate | B38: 3650000 | C38: 0 | D38: =B38*C38 -> 0 | F38: =C38 -> 0 | G38: =E38*F38 -> 0 | J38: 0 | K38: 0 | L38: 0
A39: Rural Rate Protection Charge | B39: 3650000 | C39: 0 | D39: =B39*C39 -> 0 | E39: 3650000 | F39: 0 | G39: =E39*F39 -> 0 | I39: =G39-D39 -> 0 | J39: 0 | K39: 0 | L39: 0
A40: Standard Supply Service – Administration Charge (if applicable) | B40: 1 | C40: 0 | D40: =B40*C40 -> 0 | E40: 1 | F40: 0 | G40: =E40*F40 -> 0 | I40: =G40-D40 -> 0 | J40: 0 | K40: 0 | L40: 0
A41: Sub-Total: Regulatory | D41: =SUM(D38:D40) -> 0 | G41: =SUM(G38:H40) -> 0 | I41: =G41-D41 -> 0 | J41: 0 | K41: 0 | L41: 0
A42: Debt Retirement Charge (DRC) | B42: 3650000 | C42: 0.007 | D42: =B42*C42 -> 25550 | E42: =B42 -> 3650000 | F42: =C42 -> 0.007 | G42: =E42*F42 -> 25550 | I42: =G42-D42 -> 0 | J42: =I42/D42 -> 0 | K42: =G42/G48 -> 0.08069673339 | L42: =G42/G54 -> 0.07567506422
A44: Total Bill on RPP (before taxes) | D44: 299300 | G44: 311325 | I44: =G44-D44 -> 12025 | J44: =I44/D44 -> 0.04017707985 | K44: =G44/G48 -> 0.9832841691
A45: HST | C45: 0.13 | D45: =C45*D44 -> 38909 | F45: =C45 -> 0.13 | G45: =F45*G44 -> 40472.25 | I45: =G45-D45 -> 1563.25 | J45: =I45/D45 -> 0.04017707985 | K45: =G45/G48 -> 0.127826942
A46: Total Bill (including HST) | D46: =D45+D44 -> 338209 | G46: =G45+G44 -> 351797.25 | I46: =G46-D46 -> 13588.25 | J46: =I46/D46 -> 0.04017707985 | K46: =G46/G48 -> 1.111111111
A47: Ontario Clean Energy Benefit (OCEB) | C47: -0.1 | D47: =-0.1*D46 -> -33820.9 | F47: =C47 -> -0.1 | G47: =-0.1*G46 -> -35179.725 | I47: =G47-D47 -> -1358.825 | J47: =I47/D47 -> 0.04017707985 | K47: =G47/G48 -> -0.1111111111
A48: Total Bill on RPP (including OCEB) | D48: =D46+D47 -> 304388.1 | G48: =G46+G47 -> 316617.525 | I48: =G48-D48 -> 12229.425 | J48: =I48/D48 -> 0.04017707985 | K48: =G48/G48 -> 1
A50: Total Bill on TOU (before taxes) | D50: 319959 | G50: 331984 | I50: =G50-D50 -> 12025 | J50: =I50/D50 -> 0.03758294031 | L50: =G50/G54 -> 0.9832841691
A51: HST | C51: 0.13 | D51: =C51*D50 -> 41594.67 | F51: =C51 -> 0.13 | G51: =F51*G50 -> 43157.92 | I51: =G51-D51 -> 1563.25 | J51: =I51/D51 -> 0.03758294031 | L51: =G51/G54 -> 0.127826942
A52: Total Bill (including HST) | D52: =D51+D50 -> 361553.67 | G52: =G51+G50 -> 375141.92 | I52: =G52-D52 -> 13588.25 | J52: =I52/D52 -> 0.03758294031 | L52: =G52/G54 -> 1.111111111
A53: Ontario Clean Energy Benefit (OCEB) | C53: -0.1 | D53: =-0.1*D52 -> -36155.367 | F53: =C53 -> -0.1 | G53: =-0.1*G52 -> -37514.192 | I53: =G53-D53 -> -1358.825 | J53: =I53/D53 -> 0.03758294031 | L53: =G53/G54 -> -0.1111111111
A54: Total Bill on TOU (including OCEB) | D54: =D52+D53 -> 325398.303 | G54: =G52+G53 -> 337627.728 | I54: =G54-D54 -> 12229.425 | J54: =I54/D54 -> 0.03758294031 | L54: =G54/G54 -> 1
A57: Applicants must provide bill impacts for residential at 800 kWh and GS<50kW at 2000 kWh. In addition, their filing should cover the range that is relevant to their service territory, class by class. A general guideline of consumption levels follows: Residential (kWh) - 100, 250, 500, 800, 1000, 1500, 2000 GS<50kW (kWh) - 1000, 2000, 5000, 10000, 15000 GS>50kW (kW) 100, 500, 1000 Large User - range appropriate for utility Street/Sentinel Lighting Classes and USL - 150 kWh and 1 kW, range appropriate for utility.

Sheet 28. Bill Impacts
S1: 1 | Z1: =MATCH(C14, '3. Rate Class Selection'!B19:B40,0) -> 2 | AA1: =VLOOKUP(C14, lists!AO:AP,2,0) -> kWh
A14: Rate Class | C14: GENERAL SERVICE LESS THAN 50 KW
A16: Loss Factor | E16: 1.0602
A18: Consumption | C18: kWh | E18: 2000
A20: If Billed on a kW basis:
A21: Demand | C21: kW
E25: Current Board-Approved | I25: Proposed | M25: Impact
E26: Rate | F26: Volume | G26: Charge | I26: Rate | J26: Volume | K26: Charge | M26: $ Change | N26: % Change
E27: ($) | G27: ($) | I27: ($) | K27: ($)
A28: Monthly Service Charge | E28: 27.08 | F28: 1 | G28: =F28*E28 -> 27.08 | I28: 27.54 | J28: 1 | K28: =J28*I28 -> 27.54 | M28: =K28-G28 -> 0.46 | N28: =IF((G28)=0,"",(M28/G28)) -> 0.01698670606
A29: Distribution Volumetric Rate | E29: 0.0084 | F29: 2000 | G29: =F29*E29 -> 16.8 | I29: 0.0085 | J29: =F29 -> 2000 | K29: =J29*I29 -> 17 | M29: 0.2 | N29: 0.0119047619
A30: Fixed Rate Riders | E30: 2.84 | F30: 1 | G30: =F30*E30 -> 2.84 | I30: 2.84 | J30: 1 | K30: =J30*I30 -> 2.84 | M30: 0 | N30: 0
A31: Volumetric Rate Riders | E31: -0.0001 | F31: 2000 | G31: =F31*E31 -> -0.2 | I31: 0 | J31: =F31 -> 2000 | K31: =J31*I31 -> 0 | M31: 0.2 | N31: -1
A32: Sub-Total A (excluding pass through) | G32: =SUM(G28:G31) -> 46.52 | K32: =SUM(K28:K31) -> 47.38 | M32: 0.86 | N32: 0.0184866724
A33: Line Losses on Cost of Power | E33: =E45*0.64+E46*0.18+E47*0.18 -> 0.08392 | F33: =E18*(E16-1) -> 120.4 | G33: =E33*F33 -> 10.103968 | I33: =I45*0.64+I46*0.18+I47*0.18 -> 0.08392 | J33: =F33 -> 120.4 | K33: =I33*J33 -> 10.103968 | M33: 0 | N33: 0
A34: Total Deferral/Variance Account Rate Riders | E34: 0 | F34: 2000 | G34: =F34*E34 -> 0 | I34: 0.0033 | J34: =F34 -> 2000 | K34: =J34*I34 -> 6.6 | M34: 6.6
A35: Low Voltage Service Charge | E35: 0.0011 | F35: 2000 | G35: =F35*E35 -> 2.2 | I35: 0.0011 | J35: =F35 -> 2000 | K35: =J35*I35 -> 2.2 | M35: 0 | N35: 0
A36: Smart Meter Entity Charge | E36: 0.79 | F36: 1 | G36: =F36*E36 -> 0.79 | I36: 0.79 | J36: =F36 -> 1 | K36: =J36*I36 -> 0.79 | M36: 0 | N36: 0
A37: Sub-Total B - Distribution (includes Sub-Total A) | G37: =SUM(G32:G36) -> 59.613968 | K37: =SUM(K32:K36) -> 67.073968 | M37: =K37-G37 -> 7.46 | N37: =IF((G37)=0,"",(M37/G37)) -> 0.1251384575
A38: RTSR - Network | E38: 0.0065 | F38: 2120.4 | G38: =F38*E38 -> 13.7826 | I38: 0.0066 | J38: =F38 -> 2120.4 | K38: =J38*I38 -> 13.99464 | M38: 0.21204 | N38: 0.01538461538
A39: RTSR - Connection and/or Line and Transformation Connection | E39: 0.0049 | F39: 2120.4 | G39: =F39*E39 -> 10.38996 | I39: 0.0048 | J39: =F39 -> 2120.4 | K39: =J39*I39 -> 10.17792 | M39: -0.21204 | N39: -0.02040816327
A40: Sub-Total C - Delivery (including Sub-Total B) | G40: =SUM(G37:G39) -> 83.786528 | K40: =SUM(K37:K39) -> 91.246528 | M40: 7.46 | N40: 0.08903579344
A41: Wholesale Market Service Charge (WMSC) | E41: 0.0044 | F41: =E18*E16 -> 2120.4 | G41: =F41*E41 -> 9.32976 | I41: 0.0044 | J41: =E18*E16 -> 2120.4 | K41: =J41*I41 -> 9.32976 | M41: 0 | N41: 0
A42: Rural and Remote Rate Protection (RRRP) | E42: 0.0012 | F42: =E18*E16 -> 2120.4 | G42: 2.54448 | I42: 0.0013 | J42: =E18*E16 -> 2120.4 | K42: 2.75652 | M42: 0.21204 | N42: 0.08333333333
A43: Standard Supply Service Charge | E43: 0.25 | F43: 1 | G43: 0.25 | I43: 0.25 | J43: 1 | K43: 0.25 | M43: 0 | N43: 0
A44: Debt Retirement Charge (DRC) | E44: 0.007 | F44: =E18 -> 2000 | G44: 14 | I44: 0.007 | J44: =E18 -> 2000 | K44: 14 | M44: 0 | N44: 0
A45: TOU - Off Peak | E45: 0.067 | F45: 1280 | G45: 85.76 | I45: 0.067 | J45: =F45 -> 1280 | K45: 85.76 | M45: 0 | N45: 0
A46: TOU - Mid Peak | E46: 0.104 | F46: 360 | G46: 37.44 | I46: 0.104 | J46: =F46 -> 360 | K46: 37.44 | M46: 0 | N46: 0
A47: TOU - On Peak | E47: 0.124 | F47: 360 | G47: 44.64 | I47: 0.124 | J47: =F47 -> 360 | K47: 44.64 | M47: 0 | N47: 0
A49: Total Bill on TOU (before Taxes) | G49: =SUM(G40:G44,G45:G47) -> 277.750768 | K49: =SUM(K40:K44,K45:K47) -> 285.422808 | M49: =K49-G49 -> 7.67204 | N49: =IF((G49)=0,"",(M49/G49)) -> 0.02762202983
A50: HST | E50: 0.13 | G50: =G49*E50 -> 36.10759984 | I50: 0.13 | K50: =K49*I50 -> 37.10496504 | M50: 0.9973652 | N50: 0.02762202983
A51: Total Bill (including HST) | G51: =G49+G50 -> 313.8583678 | K51: =K49+K50 -> 322.527773 | M51: 8.6694052 | N51: 0.02762202983
A52: Ontario Clean Energy Benefit 1 | G52: =ROUND(-G51*10%,2) -> -31.39 | K52: =ROUND(-K51*10%,2) -> -32.25 | M52: -0.86 | N52: 0.02739726027
A53: Total Bill on TOU (including OCEB) | G53: =G51+G52 -> 282.4683678 | K53: =K51+K52 -> 290.277773 | M53: 7.8094052 | N53: 0.02764700791
A58: Note: For distributors who have a majority of customers on Tiered pricing, please provide a separate bill impact for such customers.

Sheet lists (hidden)
A1: DISTRIBUTED GENERATION [DGEN] | B1: Embedded Distributor | C1: =COUNTA(B1:B17) -> 4 | I1: A Standby Service Charge will be applied for a month where standby power is not provided. The applicable rate is the approved Distribution Volumetric Rate of the applicable service class and is applied to gross metered demand or contracted amount, whichever is greater. A monthly administration charge of $200, for simple metering arrangements, or $500, for complex metering arrangements, will also be applied. | L1: Loss Factors | N1: Units | O1: Units1 | P1: Units2 | Z1: Account History | AA1: Account set up charge/change of occupancy charge (plus credit agency costs if applicable) | AB1: Total Loss Factor – Embedded Distributor – Hydro One Networks Inc. | AL1: Algoma Power Inc. | AM1: Algoma Power Inc. | AO1: DISTRIBUTED GENERATION [DGEN] | AP1: kW | AT1: Sub-Total: Delivery (Distribution and Retail Transmission)
A2: EMBEDDED DISTRIBUTOR | B2: General Service 3,000 to 4,999 kW | I2: Distribution Volumetric Rate | L2: Total Loss Factor – Primary Metered Customer | N2: $ | O2: $/kWh | P2: $ | Z2: Account set up charge/change of occupancy charge | AA2: Administrative Billing Charge | AB2: Total Loss Factor – Primary Metered Customer | AL2: Atikokan Hydro Inc. | AM2: Atikokan Hydro Inc. | AO2: EMBEDDED DISTRIBUTOR | AP2: kW | AT2: Wholesale Market Service Rate | AW2: =AU2*AV2 -> 0 | AX2: =AU2 -> 0 | AY2: 0 | AZ2: =AX2*AY2 -> 0 | BB2: =AZ2-AW2 -> 0 | BC2: =BB2/AW2 -> 
A3: EMBEDDED DISTRIBUTOR | B3: General Service 1,000 to 4,999 kW | I3: Distribution Volumetric Rate - $/kW of contracted amount | L3: Total Loss Factor – Primary Metered Customer < 5,000 kW | N3: $/kWh | O3: $/kW | P3: % | W3: MSC | Z3: Account set up charge/change of occupancy charge (plus credit agency costs if applicable – Residential) | AA3: Bell Canada Pole Rentals | AB3: Total Loss Factor – Primary Metered Customer < 5,000 kW | AL3: Bluewater Power Distribution Corporation | AM3: Bluewater Power Distribution Corporation | AO3: EMBEDDED DISTRIBUTOR | AP3: kW | AT3: Rural or Remote Electricity Rate Protection Charge (RRRP) | AW3: =AU3*AV3 -> 0 | AX3: 0 | AY3: 0 | AZ3: =AX3*AY3 -> 0 | BB3: =AZ3-AW3 -> 0 | BC3: =BB3/AW3 -> 
A4: FARMS - SINGLE PHASE ENERGY-BILLED [F1] | B4: General Service Equal To Or Greater Than 1,500 kW - Interval Metered | I4: Distribution Wheeling Service Rate | L4: Total Loss Factor – Primary Metered Customer > 5,000 kW | N4: $/kW | O4: $/kVA | W4: SM_Rate_Adder | Z4: Account set up charge/change of occupancy charge (plus credit agency costs if applicable) | AA4: Clearance Pole Attachment charge $/pole/year | AB4: Total Loss Factor – Primary Metered Customer > 5,000 kW | AL4: Brant County Power Inc. | AM4: Brant County Power Inc. | AO4: FARMS - SINGLE PHASE ENERGY-BILLED [F1] | AP4: kWh | AT4: Standard Supply Service – Administration Charge (if applicable) | AW4: =AU4*AV4 -> 0 | AX4: 0 | AY4: 0 | AZ4: =AX4*AY4 -> 0 | BB4: =AZ4-AW4 -> 0 | BC4: =BB4/AW4 -> 
A5: FARMS - THREE PHASE ENERGY-BILLED [F3] | I5: Electricity Rate | L5: Total Loss Factor – Secondary Metered Customer | N5: $/kVA | W5: MSC_Rate_Rider_ | Z5: Arrears certificate | AA5: Collection of account charge – no disconnection | AB5: Total Loss Factor – Secondary Metered Customer | AL5: Brantford Power Inc. | AM5: Brantford Power Inc. | AO5: FARMS - THREE PHASE ENERGY-BILLED [F3] | AP5: kWh | AT5: Sub-Total: Regulatory | AW5: =SUM(AW2:AW4) -> 0 | AZ5: =SUM(AZ2:BA4) -> 0 | BB5: =AZ5-AW5 -> 0 | BC5: =BB5/AW5 -> 
A6: GENERAL SERVICE - COMMERCIAL | I6: Electricity Rate - All Additional kWh | L6: Total Loss Factor – Secondary Metered Customer < 5,000 kW | W6: VC | Z6: Arrears certificate (credit reference) | AA6: Collection of account charge – no disconnection – after regular hours | AB6: Total Loss Factor – Secondary Metered Customer < 5,000 kW | AL6: Burlington Hydro Inc. | AM6: Burlington Hydro Inc. | AO6: GENERAL SERVICE - COMMERCIAL | AP6: kW | AT6: Debt Retirement Charge (DRC) | AW6: =AU6*AV6 -> 0 | AX6: =AU6 -> 0 | AY6: =AV6 -> 0 | AZ6: =AX6*AY6 -> 0 | BB6: =AZ6-AW6 -> 0 | BC6: =BB6/AW6 -> 
A7: GENERAL SERVICE - INSTITUTIONAL | I7: Electricity Rate - First 250 kWh | AL7: Cambridge and North Dumfries Hydro Inc. | AM7: Cambridge and North Dumfries Hydro Inc. | AO7: GENERAL SERVICE - INSTITUTIONAL | AP7: kW
A8: GENERAL SERVICE 1,000 TO 2,999 KW | I8: Electricity Rate -All Additional kWh | L8: Total Loss Factor – Secondary Metered Customer > 5,000 kW | W8: VC_Rate_Rider_ | Z8: Charge to certify cheque | AA8: Collection of account charge – no disconnection - during regular business hours | AB8: Total Loss Factor – Secondary Metered Customer > 5,000 kW | AL8: Canadian Niagara Power Inc. | AM8: Canadian Niagara Power Inc. | AO8: GENERAL SERVICE 1,000 TO 2,999 KW | AP8: kW | AT8: Total Bill on RPP (before taxes) | BB8: =AZ8-AW8 -> 0
A9: GENERAL SERVICE 1,000 TO 4,999 KW | I9: Electricity Rate First 1,000 kWh | L9: Distribution Loss Factor - Secondary Metered Customer < 5,000 kW | W9: VC_GA_Rate_Rider_kW_ | Z9: Collection of Account Charge – No Disconnection | AA9: Collection of account charge – no disconnection – during regular hours | AL9: Centre Wellington Hydro Ltd. | AM9: Centre Wellington Hydro Ltd. | AO9: GENERAL SERVICE 1,000 TO 4,999 KW | AP9: kW | AT9: HST | AW9: =AV9*AW8 -> 0 | AY9: =AV9 -> 0 | AZ9: =AY9*AZ8 -> 0 | BB9: =AZ9-AW9 -> 0 | BC9: =BB9/AW9 -> 
A10: GENERAL SERVICE 1,000 TO 4,999 KW - INTERVAL METERS | I10: Electricity Rate First 25,000 kWh | L10: Distribution Loss Factor - Secondary Metered Customer > 5,000 kW | W10: VC_LV_Rate | Z10: Credit Card Convenience Charge | AA10: Collection/Disconnection/Load Limiter/Reconnection – if in Community | AL10: Chapleau Public Utilities Corporation | AM10: Chapleau Public Utilities Corporation | AO10: GENERAL SERVICE 1,000 TO 4,999 KW - INTERVAL METERS | AP10: kW | AT10: Total Bill (including HST) | AW10: =AW9+AW8 -> 0 | AZ10: =AZ9+AZ8 -> 0 | BB10: =AZ10-AW10 -> 0 | BC10: =BB10/AW10 -> 
A11: GENERAL SERVICE 1,000 TO 4,999 KW (CO-GENERATION) | I11: Electricity Rate First 6,000 kWh | L11: Distribution Loss Factor - Primary Metered Customer < 5,000 kW | W11: RTSR_Network | Z11: Credit check (plus credit agency costs) | AA11: Credit Card Convenience Charge | AL11: Collus PowerStream Corporation | AM11: Collus PowerStream Corporation | AO11: GENERAL SERVICE 1,000 TO 4,999 KW (CO-GENERATION) | AP11: kW | AT11: Ontario Clean Energy Benefit (OCEB) | AW11: =-0.1*AW10 -> 0 | AY11: =AV11 -> 0 | AZ11: =-0.1*AZ10 -> 0 | BB11: =AZ11-AW11 -> 0 | BC11: =BB11/AW11 -> 
A12: GENERAL SERVICE 1,500 TO 4,999 KW | I12: Electricity Rate Next 1,500 kWh | L12: Distribution Loss Factor - Primary Metered Customer > 5,000 kW | W12: RTSR_Connection | Z12: Credit reference Letter | AA12: Disconnect/Reconnect at meter – after regular hours | AL12: Cooperative Hydro Embrun Inc. | AM12: Cooperative Hydro Embrun Inc. | AO12: GENERAL SERVICE 1,500 TO 4,999 KW | AP12: kW | AT12: Total Bill on RPP (including OCEB) | AW12: =AW10+AW11 -> 0 | AZ12: =AZ10+AZ11 -> 0 | BB12: =AZ12-AW12 -> 0 | BC12: =BB12/AW12 -> 
A13: GENERAL SERVICE 2,500 TO 4,999 KW | I13: General Service 1,500 to 4,999 kW customer | AL13: E.L.K. Energy Inc. | AM13: E.L.K. Energy Inc. | AO13: GENERAL SERVICE 2,500 TO 4,999 KW | AP13: kW
A14: GENERAL SERVICE 3,000 TO 4,999 KW | I14: General Service 50 to 1,499 kW customer | L14: Total Loss Factor - Embedded Distributor | W14: RTSR_Network_Interval | Z14: Credit reference/credit check (plus credit agency costs – General Service) | AA14: Disconnect/Reconnect at meter – during regular hours | AL14: Enersource Hydro Mississauga Inc. | AM14: Enersource Hydro Mississauga Inc. | AO14: GENERAL SERVICE 3,000 TO 4,999 KW | AP14: kW | AT14: Total Bill on TOU (before taxes) | BB14: =AZ14-AW14 -> 0
A15: GENERAL SERVICE 3,000 TO 4,999 KW - INTERMEDIATE USE | I15: General Service Large Use customer | L15: Total Loss Factor – Embedded Distributor – Hydro One Networks Inc. | W15: RTSR_Connection_Interval | Z15: Credit Reference/credit check (plus credit agency costs) | AA15: Disconnect/Reconnect at pole – after regular hours | AL15: Entegrus Powerlines Inc. | AM15: Entegrus Powerlines Inc. | AO15: GENERAL SERVICE 3,000 TO 4,999 KW - INTERMEDIATE USE | AP15: kW | AT15: HST | AW15: =AV15*AW14 -> 0 | AY15: =AV15 -> 0 | AZ15: =AY15*AZ14 -> 0 | BB15: =AZ15-AW15 -> 0 | BC15: =BB15/AW15 -> 
A16: GENERAL SERVICE 3,000 TO 4,999 KW - INTERVAL METERED | I16: Green Energy Act Initiatives Funding Adder - effective until the date of the next cost of service-based rate order | W16: RTSR_Network_Interval_GR1000kW | Z16: Dispute Test – Commercial self contained -- MC | AA16: Disconnect/Reconnect at pole – during regular hours | AL16: Entegrus Powerlines Inc. - Dutton Service Area | AM16: Entegrus Powerlines Inc. - Dutton Service Area | AO16: GENERAL SERVICE 3,000 TO 4,999 KW - INTERVAL METERED | AP16: kW | AT16: Total Bill (including HST) | AW16: =AW15+AW14 -> 0 | AZ16: =AZ15+AZ14 -> 0 | BB16: =AZ16-AW16 -> 0 | BC16: =BB16/AW16 -> 
A17: GENERAL SERVICE 3,000 TO 4,999 KW - TIME OF USE | I17: Green Energy Act Plan Funding Adder | W17: RTSR_Connection_Interval_GR1000kW | Z17: Dispute Test – Commercial TT -- MC | AA17: Disconnect/Reconnect Charge – At Meter – After Hours | AL17: Entegrus Powerlines Inc. - former Chatham-Kent Hydro Service Area | AM17: Entegrus Powerlines Inc. - former Chatham-Kent Hydro Service Area | AO17: GENERAL SERVICE 3,000 TO 4,999 KW - TIME OF USE | AP17: kW | AT17: Ontario Clean Energy Benefit (OCEB) | AW17: =-0.1*AW16 -> 0 | AY17: =AV17 -> 0 | AZ17: =-0.1*AZ16 -> 0 | BB17: =AZ17-AW17 -> 0 | BC17: =BB17/AW17 -> 
A18: GENERAL SERVICE 50 TO 1,000 KW | I18: Green Energy Act Plan Funding Adder - effective April 1, 2013 until March 31, 2014 | W18: RTSR_Line_Connection | Z18: Dispute Test – Residential | AA18: Disconnect/Reconnect Charge – At Meter – During Regular Hours | AL18: Entegrus Powerlines Inc. - Newbury Service Area | AM18: Entegrus Powerlines Inc. - Newbury Service Area | AO18: GENERAL SERVICE 50 TO 1,000 KW | AP18: kW | AT18: Total Bill on TOU (including OCEB) | AW18: =AW16+AW17 -> 0 | AZ18: =AZ16+AZ17 -> 0 | BB18: =AZ18-AW18 -> 0 | BC18: =BB18/AW18 -> 
A19: GENERAL SERVICE 50 TO 1,000 KW - INTERVAL METERS | I19: Green Energy Act Plan Funding Adder - effective April 1, 2014 until March 31, 2015 | W19: RTSR_Transformer_Connection | Z19: Duplicate Invoices for previous billing | AA19: Disconnect/Reconnect Charge – At Pole – After Hours | AL19: Entegrus Powerlines Inc. - Strathroy, Mount Brydges and Parkhill Service Areas | AM19: Entegrus Powerlines Inc. - Strathroy, Mount Brydges and Parkhill Service Areas | AO19: GENERAL SERVICE 50 TO 1,000 KW - INTERVAL METERS | AP19: kW
A20: GENERAL SERVICE 50 TO 1,000 KW - NON INTERVAL METERS | I20: ICM Rate Rider (2014) - in effect until the effective date of the next cost of service rates | W20: WMSR | Z20: Easement Letter | AA20: Disconnect/Reconnect Charge – At Pole – During Regular Hours | AL20: ENWIN Utilities Ltd. | AM20: ENWIN Utilities Ltd. | AO20: GENERAL SERVICE 50 TO 1,000 KW - NON INTERVAL METERS | AP20: kW
A21: GENERAL SERVICE 50 TO 1,499 KW | I21: Low Voltage Service Charge | W21: RRRP | Z21: Income Tax Letter | AA21: Disconnect/Reconnect Charges for non payment of account - At Meter After Hours | AL21: Erie Thames Powerlines Corporation | AM21: Erie Thames Powerlines Corporation | AO21: GENERAL SERVICE 50 TO 1,499 KW | AP21: kW
A22: GENERAL SERVICE 50 TO 1,499 KW - INTERVAL METERED | I22: Low Voltage Service Rate | W22: SPC | Z22: Interval Meter Interrogation | AA22: Disconnect/Reconnect charges for non payment of account – at meter after regular hours | AL22: Espanola Regional Hydro Distribution Corporation | AM22: Espanola Regional Hydro Distribution Corporation | AO22: GENERAL SERVICE 50 TO 1,499 KW - INTERVAL METERED | AP22: kW
A23: GENERAL SERVICE 50 TO 2,499 KW | I23: Low Voltage Volumetric Rate | W23: DRC | Z23: Interval meter request change | AA23: Disconnect/Reconnect Charges for non payment of account - At Meter During Regular Hours | AL23: Essex Powerlines Corporation | AM23: Essex Powerlines Corporation | AO23: GENERAL SERVICE 50 TO 2,499 KW | AP23: kW
A24: GENERAL SERVICE 50 TO 2,999 KW | I24: LRAM Rate Rider - Effective Until April 30, 2015 | W24: SSS | Z24: Legal letter | AA24: Disconnect/Reconnect charges for non payment of account – at meter during regular hours | AL24: Festival Hydro Inc. | AM24: Festival Hydro Inc. | AO24: GENERAL SERVICE 50 TO 2,999 KW | AP24: kW
A25: GENERAL SERVICE 50 TO 2,999 KW - INTERVAL METERED | I25: Minimum Distribution Charge - per KW of maximum billing demand in the previous 11 months | W25: SFLF | Z25: Legal letter charge | AA25: Disconnect/Reconnect charges for non payment of account – at pole after regular hours | AL25: Fort Frances Power Corporation | AM25: Fort Frances Power Corporation | AO25: GENERAL SERVICE 50 TO 2,999 KW - INTERVAL METERED | AP25: kW
A26: GENERAL SERVICE 50 TO 2,999 KW - TIME OF USE | B26: January | I26: Monthly Distribution Wheeling Service Rate - Dedicated LV Line | W26: DLF_Secondary_LT_5000kW | Z26: Meter dispute charge plus Measurement Canada fees (if meter found correct) | AA26: Disconnect/Reconnect charges for non payment of account – at pole during regular hours | AL26: Greater Sudbury Hydro Inc. | AM26: Greater Sudbury Hydro Inc. | AO26: GENERAL SERVICE 50 TO 2,999 KW - TIME OF USE | AP26: kW
A27: GENERAL SERVICE 50 TO 4,999 KW | B27: February | I27: Monthly Distribution Wheeling Service Rate - Hydro One Networks | W27: DLF_Secondary_GT_5000kW | Z27: Notification charge | AA27: Disconnect/Reconnection for >300 volts - after regular hours | AL27: Grimsby Power Inc. | AM27: Grimsby Power Inc. | AO27: GENERAL SERVICE 50 TO 4,999 KW | AP27: kW
A28: GENERAL SERVICE 50 TO 4,999 KW - INTERVAL METERED | B28: March | I28: Monthly Distribution Wheeling Service Rate - Shared LV Line | W28: DLF_Primary_LT_5000kW | Z28: Pulling Post Dated Cheques | AA28: Disconnect/Reconnection for >300 volts - during regular hours | AL28: Guelph Hydro Electric Systems Inc. | AM28: Guelph Hydro Electric Systems Inc. | AO28: GENERAL SERVICE 50 TO 4,999 KW - INTERVAL METERED | AP28: kW
A29: GENERAL SERVICE 50 TO 4,999 KW - TIME OF USE | B29: April | I29: Monthly Distribution Wheeling Service Rate - Waterloo North Hydro | W29: DLF_Primary_GT_5000kW | Z29: Request for other billing information | AA29: Disposal of Concrete Poles | AL29: Haldimand County Hydro Inc. | AM29: Haldimand County Hydro Inc. | AO29: GENERAL SERVICE 50 TO 4,999 KW - TIME OF USE | AP29: kW
A30: GENERAL SERVICE 50 TO 4,999 KW (COGENERATION) | B30: May | I30: Rate Rider for Application of Tax Change - effective until April 30, 2015 | W30: TLF_Secondary_LT_5000kW | Z30: Returned cheque (plus bank charges) | AA30: Dispute Test – Commercial TT -- MC | AL30: Halton Hills Hydro Inc. | AM30: Halton Hills Hydro Inc. | AO30: GENERAL SERVICE 50 TO 4,999 KW (COGENERATION) | AP30: kW
A31: GENERAL SERVICE 50 TO 4,999 KW (FORMERLY TIME OF USE) | B31: June | I31: Rate Rider for Application of Tax Change - effective until December 31, 2014 | W31: TLF_Secondary_GT_5000kW | Z31: Returned cheque charge (plus bank charges) | AA31: Install/Remove load control device – after regular hours | AL31: Hearst Power Distribution Company Limited | AM31: Hearst Power Distribution Company Limited | AO31: GENERAL SERVICE 50 TO 4,999 KW (FORMERLY TIME OF USE) | AP31: kW
A32: GENERAL SERVICE 50 TO 499 KW | B32: July | I32: Rate Rider for Application of Tax Change (2014) - effective until April 30, 2015 | W32: TLF_Primary_LT_5000kW | Z32: Special Billing Service (aggregation) | AA32: Install/Remove load control device – during regular hours | AL32: Horizon Utilities Corporation | AM32: Horizon Utilities Corporation | AO32: GENERAL SERVICE 50 TO 499 KW | AP32: kW
A33: GENERAL SERVICE 50 TO 699 KW | B33: August | I33: Rate Rider for Application of Tax Change (per connection) - effective until April 30, 2015 | W33: TLF_Primary_GT_5000kW | Z33: Special Billing Service (sub-metering charge per meter) | AA33: Interval Meter Interrogation | AL33: Hydro 2000 Inc. | AM33: Hydro 2000 Inc. | AO33: GENERAL SERVICE 50 TO 699 KW | AP33: kW
A34: GENERAL SERVICE 50 TO 999 KW | B34: September | I34: Rate Rider for CGAAP Accounting Changes (2013) - effective until April 30, 2017 | W34: TLF_EmbeddedDistributor | Z34: Special meter reads | AA34: Interval Meter Load Management Tool Charge $/month | AL34: Hydro Hawkesbury Inc. | AM34: Hydro Hawkesbury Inc. | AO34: GENERAL SERVICE 50 TO 999 KW | AP34: kW
A35: GENERAL SERVICE 50 TO 999 KW - INTERVAL METERED | B35: October | I35: Rate Rider for Deferral/Variance Account (2012) - effective unitl April 30, 2016 | Z35: Statement of Account | AA35: Interval meter request change | AL35: Hydro One Brampton Networks Inc. | AM35: Hydro One Brampton Networks Inc. | AO35: GENERAL SERVICE 50 TO 999 KW - INTERVAL METERED | AP35: kW
A36: GENERAL SERVICE 500 TO 4,999 KW | B36: November | I36: Rate Rider for Deferral/Variance Account Disposition – effective until April 30, 2015 | Z36: Unprocessed Payment Charge (plus bank charges) | AA36: Late Payment – per annum | AL36: Hydro One Networks Inc. | AM36: Hydro One Networks Inc. | AO36: GENERAL SERVICE 500 TO 4,999 KW | AP36: kW
A37: GENERAL SERVICE 700 TO 4,999 KW | B37: December | I37: Rate Rider for Deferral/Variance Account Disposition (2012) - effective until April 30, 2016 | AA37: Late Payment – per month | AL37: Hydro Ottawa Limited | AM37: Hydro Ottawa Limited | AO37: GENERAL SERVICE 700 TO 4,999 KW | AP37: kW
A38: GENERAL SERVICE DEMAND BILLED (50 KW AND ABOVE) [GSD] | I38: Rate Rider for Deferral/Variance Account Disposition (2013) - effective until April 30, 2014 | AA38: Layout fees | AL38: Innisfil Hydro Distribution Systems Limited | AM38: Innisfil Hydro Distribution Systems Limited | AO38: GENERAL SERVICE DEMAND BILLED (50 KW AND ABOVE) [GSD] | AP38: kW
A39: GENERAL SERVICE ENERGY BILLED (LESS THAN 50 KW) [GSE-METERED] | I39: Rate Rider for Deferral/Variance Account Disposition (2014) - effective until April 28, 2016 | AA39: Meter dispute charge plus Measurement Canada fees (if meter found correct) | AL39: Kenora Hydro Electric Corporation Ltd. | AM39: Kenora Hydro Electric Corporation Ltd. | AO39: GENERAL SERVICE ENERGY BILLED (LESS THAN 50 KW) [GSE-METERED] | AP39: kWh
A40: GENERAL SERVICE ENERGY BILLED (LESS THAN TO 50 KW) [GSE-UNMETERED] | I40: Rate Rider for Deferral/Variance Account Disposition (2014) - effective until April 30, 2015 | AA40: Meter Interrogation Charge | AL40: Kingston Hydro Corporation | AM40: Kingston Hydro Corporation | AO40: GENERAL SERVICE ENERGY BILLED (LESS THAN TO 50 KW) [GSE-UNMETERED] | AP40: kWh
A41: GENERAL SERVICE EQUAL TO OR GREATER THAN 1,500 KW | I41: Rate Rider for Deferral/Variance Account Disposition (2014) - effective until December 31, 2014 | AA41: Missed Service Appointment | AL41: Kitchener-Wilmot Hydro Inc. | AM41: Kitchener-Wilmot Hydro Inc. | AO41: GENERAL SERVICE EQUAL TO OR GREATER THAN 1,500 KW | AP41: kW
A42: GENERAL SERVICE EQUAL TO OR GREATER THAN 1,500 KW - INTERVAL METERED | I42: Rate Rider for Deferral/Variance Account Disposition (2014) - effective until December 31, 2015 | AA42: Norfolk Pole Rentals – Billed | AL42: Lakefront Utilities Inc. | AM42: Lakefront Utilities Inc. | AO42: GENERAL SERVICE EQUAL TO OR GREATER THAN 1,500 KW - INTERVAL METERED | AP42: kW
A43: GENERAL SERVICE GREATER THAN 1,000 KW | I43: Rate Rider for Deferral/Variance Account Dispositon (2012) - effective until April 30, 2016 | AA43: Optional Interval/TOU Meter charge $/month | AL43: Lakeland Power Distribution Ltd. | AM43: Lakeland Power Distribution Ltd. | AO43: GENERAL SERVICE GREATER THAN 1,000 KW | AP43: kW
A44: GENERAL SERVICE GREATER THAN 50 kW - WMP | I44: Rate Rider for Disposition of Accounting Changes Under CGAAP Account 1576 - effective until April 30, 2016 | AA44: Overtime Locate | AL44: London Hydro Inc. | AM44: London Hydro Inc. | AO44: GENERAL SERVICE GREATER THAN 50 kW - WMP | AP44: kW
A45: GENERAL SERVICE INTERMEDIATE 1,000 TO 4,999 KW | I45: Rate Rider for Disposition of Deferral/Variance Accounts (2010) - effective until December 31, 2014 | AA45: Owner Requested Disconnection/Reconnection – after regular hours | AL45: Midland Power Utility Corporation | AM45: Midland Power Utility Corporation | AO45: GENERAL SERVICE INTERMEDIATE 1,000 TO 4,999 KW | AP45: kW
A46: GENERAL SERVICE INTERMEDIATE RATE CLASS 1,000 TO 4,999 KW (FORMERLY GENERAL SERVICE > 50 KW CUSTOMERS) | I46: Rate Rider for Disposition of Deferral/Variance Accounts (2011) - effective until April 30, 2015 | AA46: Owner Requested Disconnection/Reconnection – during regular hours | AL46: Milton Hydro Distribution Inc. | AM46: Milton Hydro Distribution Inc. | AO46: GENERAL SERVICE INTERMEDIATE RATE CLASS 1,000 TO 4,999 KW (FORMERLY GENERAL SERVICE > 50 KW CUSTOMERS) | AP46: kW
A47: GENERAL SERVICE INTERMEDIATE RATE CLASS 1,000 TO 4,999 KW (FORMERLY LARGE USE CUSTOMERS) | I47: Rate Rider for Disposition of Deferral/Variance Accounts (2011) - effective until April 30, 2016 | AA47: Returned cheque (plus bank charges) | AL47: Newmarket - Tay Power Distribution Ltd. | AM47: Newmarket - Tay Power Distribution Ltd. | AO47: GENERAL SERVICE INTERMEDIATE RATE CLASS 1,000 TO 4,999 KW (FORMERLY LARGE USE CUSTOMERS) | AP47: kW
A48: GENERAL SERVICE LESS THAN 50 KW | I48: Rate Rider for Disposition of Deferral/Variance Accounts (2012) - effective until April 30, 2014 | AA48: Rural system expansion / line connection fee | AL48: Niagara Peninsula Energy Inc. | AM48: Niagara Peninsula Energy Inc. | AO48: GENERAL SERVICE LESS THAN 50 KW | AP48: kWh
A49: GENERAL SERVICE LESS THAN 50 KW - SINGLE PHASE ENERGY-BILLED [G1] | I49: Rate Rider for Disposition of Deferral/Variance Accounts (2012) - effective until April 30, 2015 | AA49: Same Day Open Trench | AL49: Niagara-on-the-Lake Hydro Inc. | AM49: Niagara-on-the-Lake Hydro Inc. | AO49: GENERAL SERVICE LESS THAN 50 KW - SINGLE PHASE ENERGY-BILLED [G1] | AP49: kWh
A50: GENERAL SERVICE LESS THAN 50 KW - THREE PHASE ENERGY-BILLED [G3] | I50: Rate Rider for Disposition of Deferral/Variance Accounts (2012) - effective until April 30, 2016 | AA50: Scheduled Day Open Trench | AL50: Norfolk Power Distribution Inc. | AM50: Norfolk Power Distribution Inc. | AO50: GENERAL SERVICE LESS THAN 50 KW - THREE PHASE ENERGY-BILLED [G3] | AP50: kWh
A51: GENERAL SERVICE LESS THAN 50 KW - TRANSMISSION CLASS ENERGY-BILLED [T] | I51: Rate Rider for Disposition of Deferral/Variance Accounts (2012) - effective until August 31, 2014 | AA51: Service call – after regular hours | AL51: North Bay Hydro Distribution Limited | AM51: North Bay Hydro Distribution Limited | AO51: GENERAL SERVICE LESS THAN 50 KW - TRANSMISSION CLASS ENERGY-BILLED [T] | AP51: kWh
A52: GENERAL SERVICE LESS THAN 50 KW - URBAN ENERGY-BILLED [UG] | I52: Rate Rider for Disposition of Deferral/Variance Accounts (2012) - effective until December 31, 2015 | AA52: Service call – customer owned equipment | AL52: Northern Ontario Wires Inc. | AM52: Northern Ontario Wires Inc. | AO52: GENERAL SERVICE LESS THAN 50 KW - URBAN ENERGY-BILLED [UG] | AP52: kWh
A53: GENERAL SERVICE SINGLE PHASE - G1 | I53: Rate Rider for Disposition of Deferral/Variance Accounts (2012) - effective until December 31, 2016 Applicable only in the former service area of Clinton Power | AA53: Service Call – Customer-owned Equipment – After Regular Hours | AL53: Oakville Hydro Electricity Distribution Inc. | AM53: Oakville Hydro Electricity Distribution Inc. | AO53: GENERAL SERVICE SINGLE PHASE - G1 | AP53: kW
A54: GENERAL SERVICE THREE PHASE - G3 | I54: Rate Rider for Disposition of Deferral/Variance Accounts (2012) – effective until December 31, 2016 Applicable only in the former service area of Clinton Power | AA54: Service Call – Customer-owned Equipment – During Regular Hours | AL54: Orangeville Hydro Limited | AM54: Orangeville Hydro Limited | AO54: GENERAL SERVICE THREE PHASE - G3 | AP54: kW
A55: INTERMEDIATE USERS | I55: Rate Rider for Disposition of Deferral/Variance Accounts (2012) - effective until January 31, 2014 | AA55: Service Charge for onsite interrogation of interval meter due to customer phone line failure - required weekly until line repaired $ 6 | AL55: Orillia Power Distribution Corporation | AM55: Orillia Power Distribution Corporation | AO55: INTERMEDIATE USERS | AP55: kW
A56: INTERMEDIATE WITH SELF GENERATION | I56: Rate Rider for Disposition of Deferral/Variance Accounts (2012) - effective until June 30, 2014 | AA56: Service Layout - Commercial | AL56: Oshawa PUC Networks Inc. | AM56: Oshawa PUC Networks Inc. | AO56: INTERMEDIATE WITH SELF GENERATION | AP56: kW
A57: LARGE USE | I57: Rate Rider for Disposition of Deferral/Variance Accounts (2013) - Applicable only to Wholesale Market Participants - effective until April 30, 2015 | AA57: Service Layout - ResidentiaI | AL57: Ottawa River Power Corporation | AM57: Ottawa River Power Corporation | AO57: LARGE USE | AP57: kW
A58: LARGE USE - 3TS | I58: Rate Rider for Disposition of Deferral/Variance Accounts (2013) - effective until April 30, 2014 | AA58: Special Billing Service (sub-metering charge per meter) | AL58: Parry Sound Power Corporation | AM58: Parry Sound Power Corporation | AO58: LARGE USE - 3TS | AP58: kW
A59: LARGE USE - FORD ANNEX | I59: Rate Rider for Disposition of Deferral/Variance Accounts (2013) - effective until April 30, 2015 | AA59: Special meter reads | AL59: Peterborough Distribution Incorporated | AM59: Peterborough Distribution Incorporated | AO59: LARGE USE - FORD ANNEX | AP59: kW
A60: LARGE USE - REGULAR | I60: Rate Rider for Disposition of Deferral/Variance Accounts (2013) - effective until April 30, 2015 - not applicable to Wholesale Market Participants | AA60: Specific Charge for Access to the Power Poles - $/pole/year | AL60: PowerStream Inc. | AM60: PowerStream Inc. | AO60: LARGE USE - REGULAR | AP60: kW
A61: LARGE USE > 5000 KW | I61: Rate Rider for Disposition of Deferral/Variance Accounts (2013) - effective until April 30, 2017 | AA61: Specific Charge for Bell Canada Access to the Power Poles – per pole/year | AL61: PUC Distribution Inc. | AM61: PUC Distribution Inc. | AO61: LARGE USE > 5000 KW | AP61: kW
A62: microFIT | I62: Rate Rider for Disposition of Deferral/Variance Accounts (2013) - effective until August 31, 2014 | AA62: Switching for company maintenance – Charge based on Time and Materials | AL62: Renfrew Hydro Inc. | AM62: Renfrew Hydro Inc. | AO62: microFIT | AP62: $
